Transaction Date,Local Authority Department,Beneficiary,Purpose of Expenditure,Amount (excluding VAT),Non Recoverable VAT,Merchant Category
 20-04-2023,Adults,Prepaid Financial Services 266 Corporate,Private Contractors Payment - Other,500.00,0.00,COMMERCIAL SUPPLIER 
 20-04-2023,Adults,Prepaid Financial Services 266 Corporate,Purchase - Equipment Furniture And Materials,500.00,0.00,COMMERCIAL SUPPLIER 
 24-04-2023,Adults,Outreach Support Services Ltd,Home Care - Private Contractors Payment,502.33,0.00,COMMERCIAL SUPPLIER 
 23-04-2023,Adults,Westminster Homecare Ltd_a,Home Care - Private Contractors Payment,502.34,0.00,COMMERCIAL SUPPLIER 
 24-04-2023,Adults,London Homecare Ltd,Home Care - Private Contractors Payment,502.34,0.00,COMMERCIAL SUPPLIER 
 24-04-2023,Adults,Outreach Support Services Ltd,Home Care - Private Contractors Payment,502.34,0.00,COMMERCIAL SUPPLIER 
 24-04-2023,Adults,Outreach Support Services Ltd,Home Care - Private Contractors Payment,502.34,0.00,COMMERCIAL SUPPLIER 
 25-04-2023,Adults,Prior Care Ltd_a,Home Care - Private Contractors Payment,502.34,0.00,COMMERCIAL SUPPLIER 
 26-04-2023,Adults,Prestige Care & Support Ltd,Home Care - Private Contractors Payment,502.34,0.00,COMMERCIAL SUPPLIER 
 26-04-2023,Adults,Prestige Care & Support Ltd,Home Care - Private Contractors Payment,502.34,0.00,COMMERCIAL SUPPLIER 
 26-04-2023,Adults,Prestige Care & Support Ltd,Home Care - Private Contractors Payment,502.34,0.00,COMMERCIAL SUPPLIER 
 26-04-2023,Adults,Prestige Care & Support Ltd,Home Care - Private Contractors Payment,502.34,0.00,COMMERCIAL SUPPLIER 
 25-04-2023,Adults,Prior Care Ltd_a,Home Care - Private Contractors Payment,502.70,0.00,COMMERCIAL SUPPLIER 
 26-04-2023,Adults,Prestige Care & Support Ltd,Home Care - Private Contractors Payment,502.70,0.00,COMMERCIAL SUPPLIER 
 23-04-2023,Adults,Homestead Care Service,Home Care - Private Contractors Payment,503.07,0.00,COMMERCIAL SUPPLIER 
 05-04-2023,Adults,Quality Healthcare Solutions Ltd t/a Kare Plus Romford,Home Care - Private Contractors Payment,503.15,0.00,COMMERCIAL SUPPLIER 
 12-04-2023,Adults,Care-Away Ltd T/A Care Support,Home Care - Private Contractors Payment,503.36,0.00,COMMERCIAL SUPPLIER 
 25-04-2023,Adults,Anytime Care 2020_a,Home Care - Private Contractors Payment,503.43,0.00,COMMERCIAL SUPPLIER 
 04-04-2023,Adults,Home Support Services (Havering & Essex) Ltd,Home Care - Private Contractors Payment,504.14,0.00,COMMERCIAL SUPPLIER 
 23-04-2023,Adults,Homestead Care Service,Home Care - Private Contractors Payment,505.61,0.00,COMMERCIAL SUPPLIER 
 25-04-2023,Adults,Prior Care Ltd_a,Home Care - Private Contractors Payment,505.98,0.00,COMMERCIAL SUPPLIER 
 25-04-2023,Adults,Prior Care Ltd_a,Home Care - Private Contractors Payment,506.71,0.00,COMMERCIAL SUPPLIER 
 25-04-2023,Adults,Anytime Care 2020_a,Home Care - Private Contractors Payment,508.16,0.00,COMMERCIAL SUPPLIER 
 05-04-2023,Adults,Matrix SCM Ltd,Agency Staff,510.99,0.00,COMMERCIAL SUPPLIER 
 03-04-2023,Adults,Hospiva Care & Associates Agency Ltd_a,Home Care - Private Contractors Payment,511.68,0.00,COMMERCIAL SUPPLIER 
 12-04-2023,Adults,Care-Away Ltd T/A Care Support,Home Care - Private Contractors Payment,511.68,0.00,COMMERCIAL SUPPLIER 
 04-04-2023,Adults,Home Support Services (Havering & Essex) Ltd,Home Care - Private Contractors Payment,512.01,0.00,COMMERCIAL SUPPLIER 
 23-04-2023,Adults,Homestead Care Service,Home Care - Private Contractors Payment,513.26,0.00,COMMERCIAL SUPPLIER 
 12-04-2023,Adults,Home Sweet Home Care Ltd,Home Care - Private Contractors Payment,513.98,0.00,COMMERCIAL SUPPLIER 
 05-04-2023,Adults,Topaz Care and Support Co Ltd,Supported Other Accommodation - Private Contractors Payment,514.08,0.00,COMMERCIAL SUPPLIER 
 23-04-2023,Adults,Homestead Care Service,Home Care - Private Contractors Payment,514.35,0.00,COMMERCIAL SUPPLIER 
 06-04-2023,Adults,Lodge Group Care UK Ltd,Home Care - Private Contractors Payment,514.96,0.00,COMMERCIAL SUPPLIER 
 06-04-2023,Adults,Lodge Group Care UK Ltd,Home Care - Private Contractors Payment,515.62,0.00,COMMERCIAL SUPPLIER 
 05-04-2023,Adults,Barleycroft Care Home Ltd,Residential Care Income,515.70,0.00,COMMERCIAL SUPPLIER 
 25-04-2023,Adults,Anytime Care 2020_a,Home Care - Private Contractors Payment,515.81,0.00,COMMERCIAL SUPPLIER 
 12-04-2023,Adults,Care-Away Ltd T/A Care Support,Home Care - Private Contractors Payment,515.84,0.00,COMMERCIAL SUPPLIER 
 26-04-2023,Adults,Prestige Care & Support Ltd,Home Care - Private Contractors Payment,516.17,0.00,COMMERCIAL SUPPLIER 
 04-04-2023,Adults,Home Support Services (Havering & Essex) Ltd,Home Care - Private Contractors Payment,516.60,0.00,COMMERCIAL SUPPLIER 
 23-04-2023,Adults,Homestead Care Service,Home Care - Private Contractors Payment,516.90,0.00,COMMERCIAL SUPPLIER 
 05-04-2023,Adults,Matrix SCM Ltd,Agency Staff,517.20,0.00,COMMERCIAL SUPPLIER 
 12-04-2023,Adults,Matrix SCM Ltd,Agency Staff,517.20,0.00,COMMERCIAL SUPPLIER 
 19-04-2023,Adults,Matrix SCM Ltd,Agency Staff,517.20,0.00,COMMERCIAL SUPPLIER 
 26-04-2023,Adults,Matrix SCM Ltd,Agency Staff,517.20,0.00,COMMERCIAL SUPPLIER 
 26-04-2023,Adults,Quality Healthcare Solutions Ltd t/a Kare Plus Romford,Home Care - Private Contractors Payment,517.26,0.00,COMMERCIAL SUPPLIER 
 07-04-2023,Adults,Anytime Care 2020_a,Home Care - Private Contractors Payment,518.57,0.00,COMMERCIAL SUPPLIER 
 21-04-2023,Adults,S J Builders,Maintenance - Equipment Furniture And Materials,520.00,0.00,COMMERCIAL SUPPLIER 
 12-04-2023,Adults,Home Sweet Home Care Ltd,Home Care - Private Contractors Payment,521.85,0.00,COMMERCIAL SUPPLIER 
 11-04-2023,Adults,Morepower Ltd t/a Aqs Homecare,Home Care - Private Contractors Payment,523.16,0.00,COMMERCIAL SUPPLIER 
 20-04-2023,Adults,Lodge Group Care UK Ltd,Home Care - Private Contractors Payment,525.00,0.00,COMMERCIAL SUPPLIER 
 12-04-2023,Adults,Care-Away Ltd T/A Care Support,Home Care - Private Contractors Payment,528.32,0.00,COMMERCIAL SUPPLIER 
 06-04-2023,Adults,Lodge Group Care UK Ltd,Home Care - Private Contractors Payment,530.05,0.00,COMMERCIAL SUPPLIER 
 11-04-2023,Adults,Morepower Ltd t/a Aqs Homecare,Home Care - Private Contractors Payment,530.05,0.00,COMMERCIAL SUPPLIER 
 28-04-2023,Adults,Eastway Care Ltd_a,Daycare - Private Contractors Payment,530.28,0.00,COMMERCIAL SUPPLIER 
 28-04-2023,Adults,Eastway Care Ltd_a,Daycare - Private Contractors Payment,530.28,0.00,COMMERCIAL SUPPLIER 
 28-04-2023,Adults,Eastway Care Ltd_a,Daycare - Private Contractors Payment,530.28,0.00,COMMERCIAL SUPPLIER 
 12-04-2023,Adults,Home Sweet Home Care Ltd,Home Care - Private Contractors Payment,531.36,0.00,COMMERCIAL SUPPLIER 
 04-04-2023,Adults,Home Support Services (Havering & Essex) Ltd,Home Care - Private Contractors Payment,531.69,0.00,COMMERCIAL SUPPLIER 
 26-04-2023,Adults,Quality Healthcare Solutions Ltd t/a Kare Plus Romford,Home Care - Private Contractors Payment,532.18,0.00,COMMERCIAL SUPPLIER 
 12-04-2023,Adults,Care-Away Ltd T/A Care Support,Home Care - Private Contractors Payment,532.48,0.00,COMMERCIAL SUPPLIER 
 12-04-2023,Adults,Care-Away Ltd T/A Care Support,Home Care - Private Contractors Payment,532.48,0.00,COMMERCIAL SUPPLIER 
 06-04-2023,Adults,Lodge Group Care UK Ltd,Home Care - Private Contractors Payment,533.33,0.00,COMMERCIAL SUPPLIER 
 12-04-2023,Adults,Matrix SCM Ltd,Agency Staff,534.90,0.00,COMMERCIAL SUPPLIER 
 24-04-2023,Adults,London Homecare Ltd,Home Care - Private Contractors Payment,535.09,0.00,COMMERCIAL SUPPLIER 
 25-04-2023,Adults,Anytime Care 2020_a,Home Care - Private Contractors Payment,535.46,0.00,COMMERCIAL SUPPLIER 
 04-04-2023,Adults,Home Support Services (Havering & Essex) Ltd,Home Care - Private Contractors Payment,535.95,0.00,COMMERCIAL SUPPLIER 
 24-04-2023,Adults,Tapestry_a.,Daycare - Private Contractors Payment,540.28,0.00,COMMERCIAL SUPPLIER 
 26-04-2023,Adults,Matrix SCM Ltd,Agency Staff,540.80,0.00,COMMERCIAL SUPPLIER 
 04-04-2023,Adults,Home Support Services (Havering & Essex) Ltd,Home Care - Private Contractors Payment,541.20,0.00,COMMERCIAL SUPPLIER 
 04-04-2023,Adults,Home Support Services (Havering & Essex) Ltd,Home Care - Private Contractors Payment,541.20,0.00,COMMERCIAL SUPPLIER 
 04-04-2023,Adults,Home Support Services (Havering & Essex) Ltd,Home Care - Private Contractors Payment,541.20,0.00,COMMERCIAL SUPPLIER 
 12-04-2023,Adults,Home Sweet Home Care Ltd,Home Care - Private Contractors Payment,541.20,0.00,COMMERCIAL SUPPLIER 
 14-04-2023,Adults,Potton Services Ltd,Home Care - Private Contractors Payment,541.20,0.00,COMMERCIAL SUPPLIER 
 14-04-2023,Adults,Passion Tree Care Services Ltd,Home Care - Private Contractors Payment,541.20,0.00,COMMERCIAL SUPPLIER 
 26-04-2023,Adults,Quality Healthcare Solutions Ltd t/a Kare Plus Romford,Home Care - Private Contractors Payment,542.74,0.00,COMMERCIAL SUPPLIER 
 03-04-2023,Adults,Hospiva Care & Associates Agency Ltd_a,Home Care - Private Contractors Payment,543.17,0.00,COMMERCIAL SUPPLIER 
 05-04-2023,Adults,Affinia Healthcare Ltd_a,Supported Other Accommodation - Private Contractors Payment,543.20,0.00,COMMERCIAL SUPPLIER 
 05-04-2023,Adults,Outlook Care - 76 Neave Crescent,Supported Other Accommodation - Private Contractors Payment,543.32,0.00,COMMERCIAL SUPPLIER 
 12-04-2023,Adults,Home Sweet Home Care Ltd,Home Care - Private Contractors Payment,543.82,0.00,COMMERCIAL SUPPLIER 
 12-04-2023,Adults,Home Sweet Home Care Ltd,Home Care - Private Contractors Payment,544.15,0.00,COMMERCIAL SUPPLIER 
 04-04-2023,Adults,Home Support Services (Havering & Essex) Ltd,Home Care - Private Contractors Payment,544.48,0.00,COMMERCIAL SUPPLIER 
 11-04-2023,Adults,Morepower Ltd t/a Aqs Homecare,Home Care - Private Contractors Payment,545.14,0.00,COMMERCIAL SUPPLIER 
 25-04-2023,Adults,Anytime Care 2020_a,Home Care - Private Contractors Payment,546.02,0.00,COMMERCIAL SUPPLIER 
 05-04-2023,Adults,Paradise Independent Living,Supported Other Accommodation - Private Contractors Payment,546.24,0.00,NON COMMERCIAL SUPPLIER 
 11-04-2023,Adults,Bluebird Care Havering,Home Care - Private Contractors Payment,547.00,0.00,COMMERCIAL SUPPLIER 
 03-04-2023,Adults,Hospiva Care & Associates Agency Ltd_a,Home Care - Private Contractors Payment,547.76,0.00,COMMERCIAL SUPPLIER 
 06-04-2023,Adults,Lodge Group Care UK Ltd,Home Care - Private Contractors Payment,547.76,0.00,COMMERCIAL SUPPLIER 
 25-04-2023,Adults,Prior Care Ltd_a,Home Care - Private Contractors Payment,547.83,0.00,COMMERCIAL SUPPLIER 
 05-04-2023,Adults,Leonard Cheshire Disability_a.,Residential Placements - Private Contractors Payment,548.16,0.00,COMMERCIAL SUPPLIER 
 05-04-2023,Adults,HC-One Oval Ltd - The Hornchurch Nursing Centre,Nursing Homes - Private Contractors Payment,548.57,0.00,COMMERCIAL SUPPLIER 
 11-04-2023,Adults,Morepower Ltd t/a Aqs Homecare,Home Care - Private Contractors Payment,549.07,0.00,COMMERCIAL SUPPLIER 
 04-04-2023,Adults,Home Support Services (Havering & Essex) Ltd,Home Care - Private Contractors Payment,551.04,0.00,COMMERCIAL SUPPLIER 
 04-04-2023,Adults,Home Support Services (Havering & Essex) Ltd,Home Care - Private Contractors Payment,551.04,0.00,COMMERCIAL SUPPLIER 
 04-04-2023,Adults,Home Support Services (Havering & Essex) Ltd,Home Care - Private Contractors Payment,551.04,0.00,COMMERCIAL SUPPLIER 
 04-04-2023,Adults,Home Support Services (Havering & Essex) Ltd,Home Care - Private Contractors Payment,551.04,0.00,COMMERCIAL SUPPLIER 
 04-04-2023,Adults,Home Support Services (Havering & Essex) Ltd,Home Care - Private Contractors Payment,551.04,0.00,COMMERCIAL SUPPLIER 
 04-04-2023,Adults,Home Support Services (Havering & Essex) Ltd,Home Care - Private Contractors Payment,551.04,0.00,COMMERCIAL SUPPLIER 
 04-04-2023,Adults,Home Support Services (Havering & Essex) Ltd,Home Care - Private Contractors Payment,551.04,0.00,COMMERCIAL SUPPLIER 
 04-04-2023,Adults,Home Support Services (Havering & Essex) Ltd,Home Care - Private Contractors Payment,551.04,0.00,COMMERCIAL SUPPLIER 
 04-04-2023,Adults,Home Support Services (Havering & Essex) Ltd,Home Care - Private Contractors Payment,551.04,0.00,COMMERCIAL SUPPLIER 
 06-04-2023,Adults,Lodge Group Care UK Ltd,Home Care - Private Contractors Payment,551.04,0.00,COMMERCIAL SUPPLIER 
 06-04-2023,Adults,Lodge Group Care UK Ltd,Home Care - Private Contractors Payment,551.04,0.00,COMMERCIAL SUPPLIER 
 06-04-2023,Adults,Lodge Group Care UK Ltd,Home Care - Private Contractors Payment,551.04,0.00,COMMERCIAL SUPPLIER 
 06-04-2023,Adults,Lodge Group Care UK Ltd,Home Care - Private Contractors Payment,551.04,0.00,COMMERCIAL SUPPLIER 
 06-04-2023,Adults,Lodge Group Care UK Ltd,Home Care - Private Contractors Payment,551.04,0.00,COMMERCIAL SUPPLIER 
 06-04-2023,Adults,Lodge Group Care UK Ltd,Home Care - Private Contractors Payment,551.04,0.00,COMMERCIAL SUPPLIER 
 06-04-2023,Adults,Lodge Group Care UK Ltd,Home Care - Private Contractors Payment,551.04,0.00,COMMERCIAL SUPPLIER 
 06-04-2023,Adults,Lodge Group Care UK Ltd,Home Care - Private Contractors Payment,551.04,0.00,COMMERCIAL SUPPLIER 
 12-04-2023,Adults,Home Sweet Home Care Ltd,Home Care - Private Contractors Payment,551.04,0.00,COMMERCIAL SUPPLIER 
 12-04-2023,Adults,Home Sweet Home Care Ltd,Home Care - Private Contractors Payment,551.04,0.00,COMMERCIAL SUPPLIER 
 12-04-2023,Adults,Home Sweet Home Care Ltd,Home Care - Private Contractors Payment,551.04,0.00,COMMERCIAL SUPPLIER 
 12-04-2023,Adults,Home Sweet Home Care Ltd,Home Care - Private Contractors Payment,551.04,0.00,COMMERCIAL SUPPLIER 
 12-04-2023,Adults,Home Sweet Home Care Ltd,Home Care - Private Contractors Payment,551.04,0.00,COMMERCIAL SUPPLIER 
 12-04-2023,Adults,Home Sweet Home Care Ltd,Home Care - Private Contractors Payment,551.04,0.00,COMMERCIAL SUPPLIER 
 12-04-2023,Adults,Home Sweet Home Care Ltd,Home Care - Private Contractors Payment,551.04,0.00,COMMERCIAL SUPPLIER 
 12-04-2023,Adults,Home Sweet Home Care Ltd,Home Care - Private Contractors Payment,551.04,0.00,COMMERCIAL SUPPLIER 
 14-04-2023,Adults,Passion Tree Care Services Ltd,Home Care - Private Contractors Payment,551.04,0.00,COMMERCIAL SUPPLIER 
 14-04-2023,Adults,Passion Tree Care Services Ltd,Home Care - Private Contractors Payment,551.04,0.00,COMMERCIAL SUPPLIER 
 14-04-2023,Adults,Passion Tree Care Services Ltd,Home Care - Private Contractors Payment,551.04,0.00,COMMERCIAL SUPPLIER 
 14-04-2023,Adults,Passion Tree Care Services Ltd,Home Care - Private Contractors Payment,551.04,0.00,COMMERCIAL SUPPLIER 
 14-04-2023,Adults,Passion Tree Care Services Ltd,Home Care - Private Contractors Payment,551.04,0.00,COMMERCIAL SUPPLIER 
 26-04-2023,Adults,Quality Healthcare Solutions Ltd t/a Kare Plus Romford,Home Care - Private Contractors Payment,551.11,0.00,COMMERCIAL SUPPLIER 
 04-04-2023,Adults,Home Support Services (Havering & Essex) Ltd,Home Care - Private Contractors Payment,551.37,0.00,COMMERCIAL SUPPLIER 
 06-04-2023,Adults,Lodge Group Care UK Ltd,Home Care - Private Contractors Payment,551.37,0.00,COMMERCIAL SUPPLIER 
 12-04-2023,Adults,Home Sweet Home Care Ltd,Home Care - Private Contractors Payment,551.37,0.00,COMMERCIAL SUPPLIER 
 04-04-2023,Adults,Home Support Services (Havering & Essex) Ltd,Home Care - Private Contractors Payment,551.70,0.00,COMMERCIAL SUPPLIER 
 12-04-2023,Adults,Home Sweet Home Care Ltd,Home Care - Private Contractors Payment,551.70,0.00,COMMERCIAL SUPPLIER 
 12-04-2023,Adults,Home Sweet Home Care Ltd,Home Care - Private Contractors Payment,551.70,0.00,COMMERCIAL SUPPLIER 
 11-04-2023,Adults,Morepower Ltd t/a Aqs Homecare,Home Care - Private Contractors Payment,552.02,0.00,COMMERCIAL SUPPLIER 
 04-04-2023,Adults,Home Support Services (Havering & Essex) Ltd,Home Care - Private Contractors Payment,552.35,0.00,COMMERCIAL SUPPLIER 
 26-04-2023,Adults,Prestige Care & Support Ltd,Home Care - Private Contractors Payment,552.57,0.00,COMMERCIAL SUPPLIER 
 26-04-2023,Adults,Prestige Care & Support Ltd,Home Care - Private Contractors Payment,552.93,0.00,COMMERCIAL SUPPLIER 
 04-04-2023,Adults,Home Support Services (Havering & Essex) Ltd,Home Care - Private Contractors Payment,553.01,0.00,COMMERCIAL SUPPLIER 
 06-04-2023,Adults,Lodge Group Care UK Ltd,Home Care - Private Contractors Payment,553.66,0.00,COMMERCIAL SUPPLIER 
 04-04-2023,Adults,Home Support Services (Havering & Essex) Ltd,Home Care - Private Contractors Payment,553.99,0.00,COMMERCIAL SUPPLIER 
 11-04-2023,Adults,Morepower Ltd t/a Aqs Homecare,Home Care - Private Contractors Payment,554.98,0.00,COMMERCIAL SUPPLIER 
 04-04-2023,Adults,Home Support Services (Havering & Essex) Ltd,Home Care - Private Contractors Payment,555.30,0.00,COMMERCIAL SUPPLIER 
 07-04-2023,Adults,Anytime Care 2020_a,Home Care - Private Contractors Payment,555.63,0.00,COMMERCIAL SUPPLIER 
 04-04-2023,Adults,Home Support Services (Havering & Essex) Ltd,Home Care - Private Contractors Payment,556.94,0.00,COMMERCIAL SUPPLIER 
 05-04-2023,Adults,Ranc Care Homes Ltd - Romford Care Centre,Respite Care - Private Contractors Payment,557.14,0.00,COMMERCIAL SUPPLIER 
 05-04-2023,Adults,Quality Healthcare Solutions Ltd t/a Kare Plus Romford,Home Care - Private Contractors Payment,557.27,0.00,COMMERCIAL SUPPLIER 
 05-04-2023,Adults,Quality Healthcare Solutions Ltd t/a Kare Plus Romford,Home Care - Private Contractors Payment,557.60,0.00,COMMERCIAL SUPPLIER 
 23-04-2023,Adults,Homestead Care Service,Home Care - Private Contractors Payment,559.12,0.00,COMMERCIAL SUPPLIER 
 11-04-2023,Adults,Morepower Ltd t/a Aqs Homecare,Home Care - Private Contractors Payment,559.90,0.00,COMMERCIAL SUPPLIER 
 05-04-2023,Adults,Efficiency - For Care,Supported Other Accommodation - Private Contractors Payment,560.00,0.00,COMMERCIAL SUPPLIER 
 12-04-2023,Adults,Matrix SCM Ltd,Agency Staff,560.00,0.00,COMMERCIAL SUPPLIER 
 19-04-2023,Adults,Matrix SCM Ltd,Agency Staff,560.00,0.00,COMMERCIAL SUPPLIER 
 11-04-2023,Adults,Morepower Ltd t/a Aqs Homecare,Home Care - Private Contractors Payment,560.22,0.00,COMMERCIAL SUPPLIER 
 19-04-2023,Adults,Matrix SCM Ltd,Agency Staff,560.28,0.00,COMMERCIAL SUPPLIER 
 26-04-2023,Adults,Matrix SCM Ltd,Agency Staff,560.28,0.00,COMMERCIAL SUPPLIER 
 04-04-2023,Adults,Home Support Services (Havering & Essex) Ltd,Home Care - Private Contractors Payment,560.88,0.00,COMMERCIAL SUPPLIER 
 12-04-2023,Adults,Home Sweet Home Care Ltd,Home Care - Private Contractors Payment,560.88,0.00,COMMERCIAL SUPPLIER 
 05-04-2023,Adults,Matrix SCM Ltd,Agency Staff,561.16,0.00,COMMERCIAL SUPPLIER 
 12-04-2023,Adults,Home Sweet Home Care Ltd,Home Care - Private Contractors Payment,561.21,0.00,COMMERCIAL SUPPLIER 
 25-04-2023,Adults,Prior Care Ltd_a,Home Care - Private Contractors Payment,561.31,0.00,COMMERCIAL SUPPLIER 
 03-04-2023,Adults,Hospiva Care & Associates Agency Ltd_a,Home Care - Private Contractors Payment,561.54,0.00,COMMERCIAL SUPPLIER 
 26-04-2023,Adults,Prestige Care & Support Ltd,Home Care - Private Contractors Payment,562.03,0.00,COMMERCIAL SUPPLIER 
 03-04-2023,Adults,Hospiva Care & Associates Agency Ltd_a,Home Care - Private Contractors Payment,562.19,0.00,COMMERCIAL SUPPLIER 
 04-04-2023,Adults,Home Support Services (Havering & Essex) Ltd,Home Care - Private Contractors Payment,562.19,0.00,COMMERCIAL SUPPLIER 
 04-04-2023,Adults,Home Support Services (Havering & Essex) Ltd,Home Care - Private Contractors Payment,562.52,0.00,COMMERCIAL SUPPLIER 
 11-04-2023,Adults,Morepower Ltd t/a Aqs Homecare,Home Care - Private Contractors Payment,563.50,0.00,COMMERCIAL SUPPLIER 
 14-04-2023,Adults,Potton Services Ltd,Home Care - Private Contractors Payment,563.75,0.00,COMMERCIAL SUPPLIER 
 05-04-2023,Adults,Quality Healthcare Solutions Ltd t/a Kare Plus Romford,Home Care - Private Contractors Payment,564.16,0.00,COMMERCIAL SUPPLIER 
 07-04-2023,Adults,Anytime Care 2020_a,Home Care - Private Contractors Payment,564.49,0.00,COMMERCIAL SUPPLIER 
 04-04-2023,Adults,Home Support Services (Havering & Essex) Ltd,Home Care - Private Contractors Payment,565.14,0.00,COMMERCIAL SUPPLIER 
 06-04-2023,Adults,Lodge Group Care UK Ltd,Home Care - Private Contractors Payment,565.80,0.00,COMMERCIAL SUPPLIER 
 11-04-2023,Adults,Morepower Ltd t/a Aqs Homecare,Home Care - Private Contractors Payment,566.46,0.00,COMMERCIAL SUPPLIER 
 06-04-2023,Adults,Lodge Group Care UK Ltd,Home Care - Private Contractors Payment,567.11,0.00,COMMERCIAL SUPPLIER 
 27-04-2023,Adults,Funky Willows Ltd,Daycare - Private Contractors Payment,567.86,0.00,COMMERCIAL SUPPLIER 
 05-04-2023,Adults,Raynet Recruitment Agency Ltd,Supported Other Accommodation - Private Contractors Payment,568.56,0.00,COMMERCIAL SUPPLIER 
 12-04-2023,Adults,Home Sweet Home Care Ltd,Home Care - Private Contractors Payment,569.08,0.00,COMMERCIAL SUPPLIER 
 04-04-2023,Adults,Home Support Services (Havering & Essex) Ltd,Home Care - Private Contractors Payment,570.72,0.00,COMMERCIAL SUPPLIER 
 04-04-2023,Adults,Home Support Services (Havering & Essex) Ltd,Home Care - Private Contractors Payment,572.03,0.00,COMMERCIAL SUPPLIER 
 12-04-2023,Adults,Home Sweet Home Care Ltd,Home Care - Private Contractors Payment,573.34,0.00,COMMERCIAL SUPPLIER 
 12-04-2023,Adults,Home Sweet Home Care Ltd,Home Care - Private Contractors Payment,573.67,0.00,COMMERCIAL SUPPLIER 
 05-04-2023,Adults,Personal Information - Redacted,Direct Payments Income,574.08,0.00,INDIVIDUALS 
 11-04-2023,Adults,Morepower Ltd t/a Aqs Homecare,Home Care - Private Contractors Payment,574.98,0.00,COMMERCIAL SUPPLIER 
 23-04-2023,Adults,Homestead Care Service,Home Care - Private Contractors Payment,575.86,0.00,COMMERCIAL SUPPLIER 
 04-04-2023,Adults,Home Support Services (Havering & Essex) Ltd,Home Care - Private Contractors Payment,576.30,0.00,COMMERCIAL SUPPLIER 
 04-04-2023,Adults,Home Support Services (Havering & Essex) Ltd,Home Care - Private Contractors Payment,577.61,0.00,COMMERCIAL SUPPLIER 
 23-04-2023,Adults,Homestead Care Service,Home Care - Private Contractors Payment,578.42,0.00,COMMERCIAL SUPPLIER 
 05-04-2023,Adults,Quality Healthcare Solutions Ltd t/a Kare Plus Romford,Home Care - Private Contractors Payment,578.59,0.00,COMMERCIAL SUPPLIER 
 06-04-2023,Adults,Lodge Group Care UK Ltd,Home Care - Private Contractors Payment,578.92,0.00,COMMERCIAL SUPPLIER 
 04-04-2023,Adults,Home Support Services (Havering & Essex) Ltd,Home Care - Private Contractors Payment,579.90,0.00,COMMERCIAL SUPPLIER 
 07-04-2023,Adults,Anytime Care 2020_a,Home Care - Private Contractors Payment,580.56,0.00,COMMERCIAL SUPPLIER 
 12-04-2023,Adults,Care-Away Ltd T/A Care Support,Home Care - Private Contractors Payment,582.40,0.00,COMMERCIAL SUPPLIER 
 12-04-2023,Adults,Care-Away Ltd T/A Care Support,Home Care - Private Contractors Payment,582.40,0.00,COMMERCIAL SUPPLIER 
 26-04-2023,Adults,Prestige Care & Support Ltd,Home Care - Private Contractors Payment,584.97,0.00,COMMERCIAL SUPPLIER 
 04-04-2023,Adults,Home Support Services (Havering & Essex) Ltd,Home Care - Private Contractors Payment,585.48,0.00,COMMERCIAL SUPPLIER 
 14-04-2023,Adults,Passion Tree Care Services Ltd,Home Care - Private Contractors Payment,585.48,0.00,COMMERCIAL SUPPLIER 
 04-04-2023,Adults,Home Support Services (Havering & Essex) Ltd,Home Care - Private Contractors Payment,586.79,0.00,COMMERCIAL SUPPLIER 
 12-04-2023,Adults,Home Sweet Home Care Ltd,Home Care - Private Contractors Payment,587.78,0.00,COMMERCIAL SUPPLIER 
 05-04-2023,Adults,Matrix SCM Ltd,Agency Staff,589.68,0.00,COMMERCIAL SUPPLIER 
 05-04-2023,Adults,Matrix SCM Ltd,Agency Staff,589.70,0.00,COMMERCIAL SUPPLIER 
 25-04-2023,Adults,Prior Care Ltd_a,Home Care - Private Contractors Payment,591.52,0.00,COMMERCIAL SUPPLIER 
 07-04-2023,Adults,Anytime Care 2020_a,Home Care - Private Contractors Payment,595.32,0.00,COMMERCIAL SUPPLIER 
 23-04-2023,Adults,Homestead Care Service,Home Care - Private Contractors Payment,595.52,0.00,COMMERCIAL SUPPLIER 
 12-04-2023,Adults,Home Sweet Home Care Ltd,Home Care - Private Contractors Payment,595.65,0.00,COMMERCIAL SUPPLIER 
 06-04-2023,Adults,Lodge Group Care UK Ltd,Home Care - Private Contractors Payment,598.60,0.00,COMMERCIAL SUPPLIER 
 06-04-2023,Adults,Lodge Group Care UK Ltd,Home Care - Private Contractors Payment,598.93,0.00,COMMERCIAL SUPPLIER 
 12-04-2023,Adults,Care-Away Ltd T/A Care Support,Home Care - Private Contractors Payment,599.04,0.00,COMMERCIAL SUPPLIER 
 26-04-2023,Adults,Matrix SCM Ltd,Agency Staff,599.04,0.00,COMMERCIAL SUPPLIER 
 04-04-2023,Adults,Home Support Services (Havering & Essex) Ltd,Home Care - Private Contractors Payment,599.58,0.00,COMMERCIAL SUPPLIER 
 05-04-2023,Adults,Outreach Support Services Ltd,Supported Other Accommodation - Private Contractors Payment,600.00,0.00,COMMERCIAL SUPPLIER 
 06-04-2023,Adults,Lodge Group Care UK Ltd,Home Care - Private Contractors Payment,600.24,0.00,COMMERCIAL SUPPLIER 
 24-04-2023,Adults,Tapestry_a.,Daycare - Private Contractors Payment,601.28,0.00,COMMERCIAL SUPPLIER 
 24-04-2023,Adults,Tapestry_a.,Daycare - Private Contractors Payment,601.28,0.00,COMMERCIAL SUPPLIER 
 24-04-2023,Adults,Tapestry_a.,Daycare - Private Contractors Payment,601.28,0.00,COMMERCIAL SUPPLIER 
 24-04-2023,Adults,Tapestry_a.,Daycare - Private Contractors Payment,601.28,0.00,COMMERCIAL SUPPLIER 
 24-04-2023,Adults,Tapestry_a.,Daycare - Private Contractors Payment,601.28,0.00,COMMERCIAL SUPPLIER 
 24-04-2023,Adults,Tapestry_a.,Daycare - Private Contractors Payment,601.28,0.00,COMMERCIAL SUPPLIER 
 12-04-2023,Adults,Home Sweet Home Care Ltd,Home Care - Private Contractors Payment,603.85,0.00,COMMERCIAL SUPPLIER 
 19-04-2023,Adults,Matrix SCM Ltd,Agency Staff,604.32,0.00,COMMERCIAL SUPPLIER 
 11-04-2023,Adults,Morepower Ltd t/a Aqs Homecare,Home Care - Private Contractors Payment,606.14,0.00,COMMERCIAL SUPPLIER 
 05-04-2023,Adults,Matrix SCM Ltd,Agency Staff,606.72,0.00,COMMERCIAL SUPPLIER 
 05-04-2023,Adults,Quality Healthcare Solutions Ltd t/a Kare Plus Romford,Home Care - Private Contractors Payment,606.80,0.00,COMMERCIAL SUPPLIER 
 05-04-2023,Adults,Matrix SCM Ltd,Agency Staff,608.42,0.00,COMMERCIAL SUPPLIER 
 06-04-2023,Adults,Lodge Group Care UK Ltd,Home Care - Private Contractors Payment,610.08,0.00,COMMERCIAL SUPPLIER 
 26-04-2023,Adults,Quality Healthcare Solutions Ltd t/a Kare Plus Romford,Home Care - Private Contractors Payment,612.63,0.00,COMMERCIAL SUPPLIER 
 28-04-2023,Adults,Eastway Care Ltd_a,Daycare - Private Contractors Payment,614.28,0.00,COMMERCIAL SUPPLIER 
 28-04-2023,Adults,Eastway Care Ltd_a,Daycare - Private Contractors Payment,614.28,0.00,COMMERCIAL SUPPLIER 
 05-04-2023,Adults,Parkside_a,Residential Placements - Private Contractors Payment,617.86,0.00,COMMERCIAL SUPPLIER 
 12-04-2023,Adults,Home Sweet Home Care Ltd,Home Care - Private Contractors Payment,619.92,0.00,COMMERCIAL SUPPLIER 
 26-04-2023,Adults,Action First Assessments Ltd,Private Contractors Payment - Other,620.00,0.00,COMMERCIAL SUPPLIER 
 23-04-2023,Adults,Homestead Care Service,Home Care - Private Contractors Payment,622.46,0.00,COMMERCIAL SUPPLIER 
 24-04-2023,Adults,Premier Carewaiting Ltd,Home Care - Private Contractors Payment,622.46,0.00,COMMERCIAL SUPPLIER 
 24-04-2023,Adults,Premier Carewaiting Ltd,Home Care - Private Contractors Payment,622.46,0.00,COMMERCIAL SUPPLIER 
 05-04-2023,Adults,Blessday Services Ltd,Supported Other Accommodation - Private Contractors Payment,622.93,0.00,COMMERCIAL SUPPLIER 
 06-04-2023,Adults,Lodge Group Care UK Ltd,Home Care - Private Contractors Payment,627.79,0.00,COMMERCIAL SUPPLIER 
 05-04-2023,Adults,GCH - Hillside Nursing Home,Residential Care Income,627.80,0.00,COMMERCIAL SUPPLIER 
 05-04-2023,Adults,GCH - Hillside Nursing Home,Residential Care Income,627.80,0.00,COMMERCIAL SUPPLIER 
 24-04-2023,Adults,London Homecare Ltd,Home Care - Private Contractors Payment,627.92,0.00,COMMERCIAL SUPPLIER 
 24-04-2023,Adults,London Homecare Ltd,Home Care - Private Contractors Payment,627.92,0.00,COMMERCIAL SUPPLIER 
 06-04-2023,Adults,Lodge Group Care UK Ltd,Home Care - Private Contractors Payment,629.76,0.00,COMMERCIAL SUPPLIER 
 05-04-2023,Adults,Cygnet Health Care,Residential Placements - Private Contractors Payment,630.00,0.00,COMMERCIAL SUPPLIER 
 11-04-2023,Adults,Morepower Ltd t/a Aqs Homecare,Home Care - Private Contractors Payment,630.09,0.00,COMMERCIAL SUPPLIER 
 04-04-2023,Adults,Home Support Services (Havering & Essex) Ltd,Home Care - Private Contractors Payment,631.40,0.00,COMMERCIAL SUPPLIER 
 23-04-2023,Adults,Homestead Care Service,Home Care - Private Contractors Payment,631.56,0.00,COMMERCIAL SUPPLIER 
 19-04-2023,Adults,Matrix SCM Ltd,Agency Staff,631.63,0.00,COMMERCIAL SUPPLIER 
 19-04-2023,Adults,Matrix SCM Ltd,Agency Staff,631.63,0.00,COMMERCIAL SUPPLIER 
 19-04-2023,Adults,Matrix SCM Ltd,Agency Staff,631.65,0.00,COMMERCIAL SUPPLIER 
 06-04-2023,Adults,Lodge Group Care UK Ltd,Home Care - Private Contractors Payment,632.06,0.00,COMMERCIAL SUPPLIER 
 24-04-2023,Adults,Outreach Support Services Ltd,Home Care - Private Contractors Payment,633.38,0.00,COMMERCIAL SUPPLIER 
 11-04-2023,Adults,Morepower Ltd t/a Aqs Homecare,Home Care - Private Contractors Payment,633.70,0.00,COMMERCIAL SUPPLIER 
 06-04-2023,Adults,Lodge Group Care UK Ltd,Home Care - Private Contractors Payment,634.35,0.00,COMMERCIAL SUPPLIER 
 12-04-2023,Adults,Matrix SCM Ltd,Agency Staff,637.12,0.00,COMMERCIAL SUPPLIER 
 12-04-2023,Adults,Matrix SCM Ltd,Agency Staff,637.12,0.00,COMMERCIAL SUPPLIER 
 12-04-2023,Adults,Matrix SCM Ltd,Agency Staff,637.12,0.00,COMMERCIAL SUPPLIER 
 12-04-2023,Adults,Matrix SCM Ltd,Agency Staff,637.12,0.00,COMMERCIAL SUPPLIER 
 19-04-2023,Adults,Matrix SCM Ltd,Agency Staff,637.12,0.00,COMMERCIAL SUPPLIER 
 19-04-2023,Adults,Matrix SCM Ltd,Agency Staff,637.14,0.00,COMMERCIAL SUPPLIER 
 26-04-2023,Adults,Matrix SCM Ltd,Agency Staff,637.14,0.00,COMMERCIAL SUPPLIER 
 04-04-2023,Adults,Home Support Services (Havering & Essex) Ltd,Home Care - Private Contractors Payment,639.60,0.00,COMMERCIAL SUPPLIER 
 04-04-2023,Adults,Home Support Services (Havering & Essex) Ltd,Home Care - Private Contractors Payment,639.60,0.00,COMMERCIAL SUPPLIER 
 04-04-2023,Adults,Home Support Services (Havering & Essex) Ltd,Home Care - Private Contractors Payment,640.26,0.00,COMMERCIAL SUPPLIER 
 12-04-2023,Adults,Home Sweet Home Care Ltd,Home Care - Private Contractors Payment,640.26,0.00,COMMERCIAL SUPPLIER 
 03-04-2023,Adults,Hospiva Care & Associates Agency Ltd_a,Home Care - Private Contractors Payment,647.47,0.00,COMMERCIAL SUPPLIER 
 07-04-2023,Adults,Anytime Care 2020_a,Home Care - Private Contractors Payment,649.11,0.00,COMMERCIAL SUPPLIER 
 24-04-2023,Adults,Premier Carewaiting Ltd,Home Care - Private Contractors Payment,649.76,0.00,COMMERCIAL SUPPLIER 
 05-04-2023,Adults,GCH - Hillside Nursing Home,Residential Care Income,650.22,0.00,COMMERCIAL SUPPLIER 
 12-04-2023,Adults,Home Sweet Home Care Ltd,Home Care - Private Contractors Payment,650.75,0.00,COMMERCIAL SUPPLIER 
 04-04-2023,Adults,Home Support Services (Havering & Essex) Ltd,Home Care - Private Contractors Payment,651.74,0.00,COMMERCIAL SUPPLIER 
 11-04-2023,Adults,Morepower Ltd t/a Aqs Homecare,Home Care - Private Contractors Payment,653.38,0.00,COMMERCIAL SUPPLIER 
 23-04-2023,Adults,Homestead Care Service,Home Care - Private Contractors Payment,653.40,0.00,COMMERCIAL SUPPLIER 
 12-04-2023,Adults,Matrix SCM Ltd,Agency Staff,653.52,0.00,COMMERCIAL SUPPLIER 
 19-04-2023,Adults,Matrix SCM Ltd,Agency Staff,653.52,0.00,COMMERCIAL SUPPLIER 
 04-04-2023,Adults,Home Support Services (Havering & Essex) Ltd,Home Care - Private Contractors Payment,653.70,0.00,COMMERCIAL SUPPLIER 
 11-04-2023,Adults,Morepower Ltd t/a Aqs Homecare,Home Care - Private Contractors Payment,653.70,0.00,COMMERCIAL SUPPLIER 
 28-04-2023,Adults,Carers Trust East Midlands,Home Care - Private Contractors Payment,655.20,0.00,COMMERCIAL SUPPLIER 
 05-04-2023,Adults,Matrix SCM Ltd,Agency Staff,657.72,0.00,COMMERCIAL SUPPLIER 
 07-04-2023,Adults,Anytime Care 2020_a,Home Care - Private Contractors Payment,666.82,0.00,COMMERCIAL SUPPLIER 
 06-04-2023,Adults,Lodge Group Care UK Ltd,Home Care - Private Contractors Payment,668.46,0.00,COMMERCIAL SUPPLIER 
 03-04-2023,Adults,London Borough of Barking & Dagenham_a,Daycare - Private Contractors Payment,668.57,0.00,LOCAL AUTHORITY SERVICES 
 07-04-2023,Adults,Anytime Care 2020_a,Home Care - Private Contractors Payment,671.74,0.00,COMMERCIAL SUPPLIER 
 06-04-2023,Adults,REMARK LTD,Home Care - Private Contractors Payment,672.00,0.00,COMMERCIAL SUPPLIER 
 12-04-2023,Adults,Matrix SCM Ltd,Agency Staff,673.03,0.00,COMMERCIAL SUPPLIER 
 30-04-2023,Adults,ECL Person Centred Care,Daycare - Private Contractors Payment,675.00,0.00,COMMERCIAL SUPPLIER 
 19-04-2023,Adults,Matrix SCM Ltd,Agency Staff,678.88,0.00,COMMERCIAL SUPPLIER 
 05-04-2023,Adults,Affinia Healthcare Ltd_a,Supported Other Accommodation - Private Contractors Payment,678.96,0.00,COMMERCIAL SUPPLIER 
 23-04-2023,Adults,New Opportunity Groups Havering,Daycare - Private Contractors Payment,680.14,0.00,COMMERCIAL SUPPLIER 
 07-04-2023,Adults,Anytime Care 2020_a,Home Care - Private Contractors Payment,680.60,0.00,COMMERCIAL SUPPLIER 
 25-04-2023,Adults,Manorcourt Care,Home Care - Private Contractors Payment,683.20,0.00,COMMERCIAL SUPPLIER 
 26-04-2023,Adults,Quality Healthcare Solutions Ltd t/a Kare Plus Romford,Home Care - Private Contractors Payment,683.98,0.00,COMMERCIAL SUPPLIER 
 05-04-2023,Adults,BeTo Solutions Ltd,Supported Other Accommodation - Private Contractors Payment,684.00,0.00,COMMERCIAL SUPPLIER 
 04-04-2023,Adults,Home Support Services (Havering & Essex) Ltd,Home Care - Private Contractors Payment,685.19,0.00,COMMERCIAL SUPPLIER 
 05-04-2023,Adults,Gemini Assisted Living Ltd,Supported Other Accommodation - Private Contractors Payment,686.40,0.00,COMMERCIAL SUPPLIER 
 28-04-2023,Adults,Eastway Care Ltd_a,Daycare - Private Contractors Payment,687.49,0.00,COMMERCIAL SUPPLIER 
 28-04-2023,Adults,Eastway Care Ltd_a,Daycare - Private Contractors Payment,687.49,0.00,COMMERCIAL SUPPLIER 
 05-04-2023,Adults,Quality Healthcare Solutions Ltd t/a Kare Plus Romford,Home Care - Private Contractors Payment,687.82,0.00,COMMERCIAL SUPPLIER 
 05-04-2023,Adults,Quality Healthcare Solutions Ltd t/a Kare Plus Romford,Home Care - Private Contractors Payment,689.46,0.00,COMMERCIAL SUPPLIER 
 24-04-2023,Adults,R G Care Ltd ,Daycare - Private Contractors Payment,690.00,0.00,COMMERCIAL SUPPLIER 
 26-04-2023,Adults,Quality Healthcare Solutions Ltd t/a Kare Plus Romford,Home Care - Private Contractors Payment,690.16,0.00,COMMERCIAL SUPPLIER 
 12-04-2023,Adults,Home Sweet Home Care Ltd,Home Care - Private Contractors Payment,694.05,0.00,COMMERCIAL SUPPLIER 
 05-04-2023,Adults,Matrix SCM Ltd,Agency Staff,696.26,0.00,COMMERCIAL SUPPLIER 
 06-04-2023,Adults,Care-Away Ltd T/A Care Support,Home Care - Private Contractors Payment,698.88,0.00,COMMERCIAL SUPPLIER 
 12-04-2023,Adults,Care-Away Ltd T/A Care Support,Home Care - Private Contractors Payment,698.88,0.00,COMMERCIAL SUPPLIER 
 12-04-2023,Adults,Care-Away Ltd T/A Care Support,Home Care - Private Contractors Payment,698.88,0.00,COMMERCIAL SUPPLIER 
 25-04-2023,Adults,Prior Care Ltd_a,Home Care - Private Contractors Payment,698.91,0.00,COMMERCIAL SUPPLIER 
 26-04-2023,Adults,Prestige Care & Support Ltd,Home Care - Private Contractors Payment,698.91,0.00,COMMERCIAL SUPPLIER 
 26-04-2023,Adults,Prestige Care & Support Ltd,Home Care - Private Contractors Payment,698.91,0.00,COMMERCIAL SUPPLIER 
 04-04-2023,Adults,Home Support Services (Havering & Essex) Ltd,Home Care - Private Contractors Payment,698.97,0.00,COMMERCIAL SUPPLIER 
 04-04-2023,Adults,Home Support Services (Havering & Essex) Ltd,Home Care - Private Contractors Payment,698.97,0.00,COMMERCIAL SUPPLIER 
 13-04-2023,Adults,Inclusive Care Support Limited,Long Term Support - Community: Supported Living,700.84,0.00,COMMERCIAL SUPPLIER 
 13-04-2023,Adults,Inclusive Care Support Limited,Supported Other Accommodation - Private Contractors Payment,700.84,0.00,COMMERCIAL SUPPLIER 
 13-04-2023,Adults,Inclusive Care Support Limited,Supported Other Accommodation - Private Contractors Payment,700.84,0.00,COMMERCIAL SUPPLIER 
 13-04-2023,Adults,Inclusive Care Support Limited,Supported Other Accommodation - Private Contractors Payment,700.84,0.00,COMMERCIAL SUPPLIER 
 13-04-2023,Adults,Inclusive Care Support Limited,Supported Other Accommodation - Private Contractors Payment,700.84,0.00,COMMERCIAL SUPPLIER 
 07-04-2023,Adults,Anytime Care 2020_a,Home Care - Private Contractors Payment,702.58,0.00,COMMERCIAL SUPPLIER 
 05-04-2023,Adults,Quality Healthcare Solutions Ltd t/a Kare Plus Romford,Home Care - Private Contractors Payment,705.20,0.00,COMMERCIAL SUPPLIER 
 12-04-2023,Adults,Care-Away Ltd T/A Care Support,Home Care - Private Contractors Payment,707.20,0.00,COMMERCIAL SUPPLIER 
 03-04-2023,Adults,Dignified Homecare,Home Care - Private Contractors Payment,708.48,0.00,COMMERCIAL SUPPLIER 
 04-04-2023,Adults,Home Support Services (Havering & Essex) Ltd,Home Care - Private Contractors Payment,708.48,0.00,COMMERCIAL SUPPLIER 
 05-04-2023,Adults,Gims Care Solution Ltd_a,Home Care - Private Contractors Payment,708.48,0.00,NON COMMERCIAL SUPPLIER 
 04-04-2023,Adults,Home Support Services (Havering & Essex) Ltd,Home Care - Private Contractors Payment,711.43,0.00,COMMERCIAL SUPPLIER 
 06-04-2023,Adults,Lodge Group Care UK Ltd,Home Care - Private Contractors Payment,713.07,0.00,COMMERCIAL SUPPLIER 
 19-04-2023,Adults,Matrix SCM Ltd,Agency Staff,714.56,0.00,COMMERCIAL SUPPLIER 
 23-04-2023,Adults,Homestead Care Service,Home Care - Private Contractors Payment,714.92,0.00,COMMERCIAL SUPPLIER 
 12-04-2023,Adults,Care-Away Ltd T/A Care Support,Home Care - Private Contractors Payment,715.52,0.00,COMMERCIAL SUPPLIER 
 12-04-2023,Adults,Care-Away Ltd T/A Care Support,Home Care - Private Contractors Payment,715.52,0.00,COMMERCIAL SUPPLIER 
 26-04-2023,Adults,Prestige Care & Support Ltd,Home Care - Private Contractors Payment,716.74,0.00,COMMERCIAL SUPPLIER 
 26-04-2023,Adults,Prestige Care & Support Ltd,Home Care - Private Contractors Payment,717.11,0.00,COMMERCIAL SUPPLIER 
 06-04-2023,Adults,Lodge Group Care UK Ltd,Home Care - Private Contractors Payment,718.98,0.00,COMMERCIAL SUPPLIER 
 26-04-2023,Adults,Prestige Care & Support Ltd,Home Care - Private Contractors Payment,720.75,0.00,COMMERCIAL SUPPLIER 
 06-04-2023,Adults,Lodge Group Care UK Ltd,Home Care - Private Contractors Payment,723.24,0.00,COMMERCIAL SUPPLIER 
 05-04-2023,Adults,Matrix SCM Ltd,Agency Staff,725.00,0.00,COMMERCIAL SUPPLIER 
 06-04-2023,Adults,Lodge Group Care UK Ltd,Home Care - Private Contractors Payment,726.85,0.00,COMMERCIAL SUPPLIER 
 23-04-2023,Adults,Homestead Care Service,Home Care - Private Contractors Payment,728.03,0.00,COMMERCIAL SUPPLIER 
 12-04-2023,Adults,Home Sweet Home Care Ltd,Home Care - Private Contractors Payment,728.16,0.00,COMMERCIAL SUPPLIER 
 25-04-2023,Adults,Prior Care Ltd_a,Home Care - Private Contractors Payment,731.30,0.00,COMMERCIAL SUPPLIER 
 06-04-2023,Adults,Care-Away Ltd T/A Care Support,Home Care - Private Contractors Payment,732.16,0.00,COMMERCIAL SUPPLIER 
 26-04-2023,Adults,Quality Healthcare Solutions Ltd t/a Kare Plus Romford,Home Care - Private Contractors Payment,735.31,0.00,COMMERCIAL SUPPLIER 
 11-04-2023,Adults,Morepower Ltd t/a Aqs Homecare,Home Care - Private Contractors Payment,738.00,0.00,COMMERCIAL SUPPLIER 
 24-04-2023,Adults,R G Care Ltd ,Daycare - Private Contractors Payment,739.28,0.00,COMMERCIAL SUPPLIER 
 27-04-2023,Adults,Funky Willows Ltd,Daycare - Private Contractors Payment,739.28,0.00,COMMERCIAL SUPPLIER 
 28-04-2023,Adults,Carers Trust East Midlands,Home Care - Private Contractors Payment,742.56,0.00,COMMERCIAL SUPPLIER 
 23-04-2023,Adults,Westminster Homecare Ltd_a,Home Care - Private Contractors Payment,742.59,0.00,COMMERCIAL SUPPLIER 
 23-04-2023,Adults,Westminster Homecare Ltd_a,Home Care - Private Contractors Payment,742.59,0.00,COMMERCIAL SUPPLIER 
 12-04-2023,Adults,Matrix SCM Ltd,Agency Staff,742.81,0.00,COMMERCIAL SUPPLIER 
 05-04-2023,Adults,Quality Healthcare Solutions Ltd t/a Kare Plus Romford,Home Care - Private Contractors Payment,743.25,0.00,COMMERCIAL SUPPLIER 
 12-04-2023,Adults,Home Sweet Home Care Ltd,Home Care - Private Contractors Payment,743.25,0.00,COMMERCIAL SUPPLIER 
 23-04-2023,Adults,Homestead Care Service,Home Care - Private Contractors Payment,743.68,0.00,COMMERCIAL SUPPLIER 
 12-04-2023,Adults,Matrix SCM Ltd,Agency Staff,744.58,0.00,COMMERCIAL SUPPLIER 
 05-04-2023,Adults,Ashgate House Ltd_a,Residential Placements - Private Contractors Payment,746.16,0.00,COMMERCIAL SUPPLIER 
 26-04-2023,Adults,Quality Healthcare Solutions Ltd t/a Kare Plus Romford,Home Care - Private Contractors Payment,747.32,0.00,COMMERCIAL SUPPLIER 
 25-04-2023,Adults,Anytime Care 2020_a,Home Care - Private Contractors Payment,748.78,0.00,COMMERCIAL SUPPLIER 
 06-04-2023,Adults,Lodge Group Care UK Ltd,Home Care - Private Contractors Payment,751.78,0.00,COMMERCIAL SUPPLIER 
 24-04-2023,Adults,Outreach Support Services Ltd,Home Care - Private Contractors Payment,753.51,0.00,COMMERCIAL SUPPLIER 
 25-04-2023,Adults,Anytime Care 2020_a,Home Care - Private Contractors Payment,753.51,0.00,COMMERCIAL SUPPLIER 
 26-04-2023,Adults,Prestige Care & Support Ltd,Home Care - Private Contractors Payment,753.51,0.00,COMMERCIAL SUPPLIER 
 23-04-2023,Adults,Westminster Homecare Ltd_a,Home Care - Private Contractors Payment,754.95,0.00,COMMERCIAL SUPPLIER 
 26-04-2023,Adults,Prestige Care & Support Ltd,Home Care - Private Contractors Payment,754.96,0.00,COMMERCIAL SUPPLIER 
 23-04-2023,Adults,Westminster Homecare Ltd_a,Home Care - Private Contractors Payment,755.33,0.00,COMMERCIAL SUPPLIER 
 05-04-2023,Adults,Coastal Supported Living CIC,Supported Other Accommodation - Private Contractors Payment,755.60,0.00,COMMERCIAL SUPPLIER 
 26-04-2023,Adults,Prestige Care & Support Ltd,Home Care - Private Contractors Payment,756.42,0.00,COMMERCIAL SUPPLIER 
 12-04-2023,Adults,Care-Away Ltd T/A Care Support,Home Care - Private Contractors Payment,757.12,0.00,COMMERCIAL SUPPLIER 
 25-04-2023,Adults,Prior Care Ltd_a,Home Care - Private Contractors Payment,757.15,0.00,COMMERCIAL SUPPLIER 
 26-04-2023,Adults,Prestige Care & Support Ltd,Home Care - Private Contractors Payment,758.24,0.00,COMMERCIAL SUPPLIER 
 26-04-2023,Adults,Prestige Care & Support Ltd,Home Care - Private Contractors Payment,758.24,0.00,COMMERCIAL SUPPLIER 
 07-04-2023,Adults,Anytime Care 2020_a,Home Care - Private Contractors Payment,758.66,0.00,COMMERCIAL SUPPLIER 
 25-04-2023,Adults,Prior Care Ltd_a,Home Care - Private Contractors Payment,760.42,0.00,COMMERCIAL SUPPLIER 
 26-04-2023,Adults,Quality Healthcare Solutions Ltd t/a Kare Plus Romford,Home Care - Private Contractors Payment,760.42,0.00,COMMERCIAL SUPPLIER 
 23-04-2023,Adults,Homestead Care Service,Home Care - Private Contractors Payment,761.52,0.00,COMMERCIAL SUPPLIER 
 12-04-2023,Adults,Home Sweet Home Care Ltd,Home Care - Private Contractors Payment,763.58,0.00,COMMERCIAL SUPPLIER 
 23-04-2023,Adults,Homestead Care Service,Home Care - Private Contractors Payment,764.43,0.00,COMMERCIAL SUPPLIER 
 05-04-2023,Adults,Quality Healthcare Solutions Ltd t/a Kare Plus Romford,Home Care - Private Contractors Payment,764.90,0.00,COMMERCIAL SUPPLIER 
 26-04-2023,Adults,Quality Healthcare Solutions Ltd t/a Kare Plus Romford,Home Care - Private Contractors Payment,765.52,0.00,COMMERCIAL SUPPLIER 
 25-04-2023,Adults,Anytime Care 2020_a,Home Care - Private Contractors Payment,766.25,0.00,COMMERCIAL SUPPLIER 
 23-04-2023,Adults,Homestead Care Service,Home Care - Private Contractors Payment,766.98,0.00,COMMERCIAL SUPPLIER 
 12-04-2023,Adults,Home Sweet Home Care Ltd,Home Care - Private Contractors Payment,767.52,0.00,COMMERCIAL SUPPLIER 
 12-04-2023,Adults,Home Sweet Home Care Ltd,Home Care - Private Contractors Payment,767.52,0.00,COMMERCIAL SUPPLIER 
 12-04-2023,Adults,Home Sweet Home Care Ltd,Home Care - Private Contractors Payment,767.52,0.00,COMMERCIAL SUPPLIER 
 28-04-2023,Adults,Eastway Care Ltd_a,Daycare - Private Contractors Payment,767.85,0.00,COMMERCIAL SUPPLIER 
 28-04-2023,Adults,Eastway Care Ltd_a,Daycare - Private Contractors Payment,767.85,0.00,COMMERCIAL SUPPLIER 
 28-04-2023,Adults,Eastway Care Ltd_a,Daycare - Private Contractors Payment,767.85,0.00,COMMERCIAL SUPPLIER 
 28-04-2023,Adults,Eastway Care Ltd_a,Daycare - Private Contractors Payment,767.85,0.00,COMMERCIAL SUPPLIER 
 26-04-2023,Adults,Quality Healthcare Solutions Ltd t/a Kare Plus Romford,Home Care - Private Contractors Payment,769.89,0.00,COMMERCIAL SUPPLIER 
 06-04-2023,Adults,Lodge Group Care UK Ltd,Home Care - Private Contractors Payment,770.80,0.00,COMMERCIAL SUPPLIER 
 11-04-2023,Adults,Morepower Ltd t/a Aqs Homecare,Home Care - Private Contractors Payment,771.46,0.00,COMMERCIAL SUPPLIER 
 26-04-2023,Adults,Matrix SCM Ltd,Agency Staff,771.96,0.00,COMMERCIAL SUPPLIER 
 05-04-2023,Adults,Chosen Care Group Ltd,Supported Other Accommodation - Private Contractors Payment,772.60,0.00,COMMERCIAL SUPPLIER 
 23-04-2023,Adults,Homestead Care Service,Home Care - Private Contractors Payment,772.80,0.00,COMMERCIAL SUPPLIER 
 05-04-2023,Adults,BeTo Solutions Ltd,Supported Other Accommodation - Private Contractors Payment,774.00,0.00,COMMERCIAL SUPPLIER 
 05-04-2023,Adults,Headway East London,Daycare - Private Contractors Payment,774.16,0.00,COMMERCIAL SUPPLIER 
 26-04-2023,Adults,Prestige Care & Support Ltd,Home Care - Private Contractors Payment,774.25,0.00,COMMERCIAL SUPPLIER 
 05-04-2023,Adults,Highfield Care Homes Ltd t/a Romford Grange Care Home,Nursing Homes - Private Contractors Payment,774.86,0.00,COMMERCIAL SUPPLIER 
 05-04-2023,Adults,Matrix SCM Ltd,Agency Staff,774.90,0.00,COMMERCIAL SUPPLIER 
 19-04-2023,Adults,Matrix SCM Ltd,Agency Staff,774.90,0.00,COMMERCIAL SUPPLIER 
 26-04-2023,Adults,Matrix SCM Ltd,Agency Staff,774.90,0.00,COMMERCIAL SUPPLIER 
 05-04-2023,Adults,Acorn Village_a,Residential Placements - Private Contractors Payment,774.92,0.00,COMMERCIAL SUPPLIER 
 12-04-2023,Adults,Home Sweet Home Care Ltd,Home Care - Private Contractors Payment,776.38,0.00,COMMERCIAL SUPPLIER 
 23-04-2023,Adults,Homestead Care Service,Home Care - Private Contractors Payment,776.80,0.00,COMMERCIAL SUPPLIER 
 19-04-2023,Adults,Matrix SCM Ltd,Agency Staff,777.08,0.00,COMMERCIAL SUPPLIER 
 26-04-2023,Adults,Matrix SCM Ltd,Agency Staff,780.58,0.00,COMMERCIAL SUPPLIER 
 19-04-2023,Adults,Matrix SCM Ltd,Agency Staff,782.44,0.00,COMMERCIAL SUPPLIER 
 06-04-2023,Adults,Lodge Group Care UK Ltd,Home Care - Private Contractors Payment,783.92,0.00,COMMERCIAL SUPPLIER 
 26-04-2023,Adults,Quality Healthcare Solutions Ltd t/a Kare Plus Romford,Home Care - Private Contractors Payment,784.08,0.00,COMMERCIAL SUPPLIER 
 06-04-2023,Adults,Lodge Group Care UK Ltd,Home Care - Private Contractors Payment,785.89,0.00,COMMERCIAL SUPPLIER 
 12-04-2023,Adults,Home Sweet Home Care Ltd,Home Care - Private Contractors Payment,788.51,0.00,COMMERCIAL SUPPLIER 
 07-04-2023,Adults,Anytime Care 2020_a,Home Care - Private Contractors Payment,788.84,0.00,COMMERCIAL SUPPLIER 
 05-04-2023,Adults,Matrix SCM Ltd,Agency Staff,790.91,0.00,COMMERCIAL SUPPLIER 
 05-04-2023,Adults,Matrix SCM Ltd,Agency Staff,790.91,0.00,COMMERCIAL SUPPLIER 
 05-04-2023,Adults,Matrix SCM Ltd,Agency Staff,790.91,0.00,COMMERCIAL SUPPLIER 
 26-04-2023,Adults,Matrix SCM Ltd,Agency Staff,790.91,0.00,COMMERCIAL SUPPLIER 
 26-04-2023,Adults,Matrix SCM Ltd,Agency Staff,790.91,0.00,COMMERCIAL SUPPLIER 
 26-04-2023,Adults,Matrix SCM Ltd,Agency Staff,790.91,0.00,COMMERCIAL SUPPLIER 
 05-04-2023,Adults,Matrix SCM Ltd,Agency Staff,790.93,0.00,COMMERCIAL SUPPLIER 
 05-04-2023,Adults,Matrix SCM Ltd,Agency Staff,790.93,0.00,COMMERCIAL SUPPLIER 
 26-04-2023,Adults,Matrix SCM Ltd,Agency Staff,790.93,0.00,COMMERCIAL SUPPLIER 
 26-04-2023,Adults,Quality Healthcare Solutions Ltd t/a Kare Plus Romford,Home Care - Private Contractors Payment,792.09,0.00,COMMERCIAL SUPPLIER 
 05-04-2023,Adults,Genesis Residential Homes Ltd - Dothan House,Residential Placements - Private Contractors Payment,794.29,0.00,COMMERCIAL SUPPLIER 
 05-04-2023,Adults,Outlook Care - 76 Neave Crescent,Supported Other Accommodation - Private Contractors Payment,796.96,0.00,COMMERCIAL SUPPLIER 
 04-04-2023,Adults,R G Care Ltd ,Daycare - Private Contractors Payment,800.00,0.00,COMMERCIAL SUPPLIER 
 06-04-2023,Adults,Lodge Group Care UK Ltd,Home Care - Private Contractors Payment,800.65,0.00,COMMERCIAL SUPPLIER 
 23-04-2023,Adults,Homestead Care Service,Home Care - Private Contractors Payment,801.55,0.00,COMMERCIAL SUPPLIER 
 24-04-2023,Adults,Tapestry_a.,Daycare - Private Contractors Payment,801.72,0.00,COMMERCIAL SUPPLIER 
 24-04-2023,Adults,Tapestry_a.,Daycare - Private Contractors Payment,801.72,0.00,COMMERCIAL SUPPLIER 
 24-04-2023,Adults,Tapestry_a.,Daycare - Private Contractors Payment,801.72,0.00,COMMERCIAL SUPPLIER 
 24-04-2023,Adults,Tapestry_a.,Daycare - Private Contractors Payment,801.72,0.00,COMMERCIAL SUPPLIER 
 05-04-2023,Adults,Phoenix Care Havering Ltd,Home Care - Private Contractors Payment,801.96,0.00,COMMERCIAL SUPPLIER 
 12-04-2023,Adults,Home Sweet Home Care Ltd,Home Care - Private Contractors Payment,807.86,0.00,COMMERCIAL SUPPLIER 
 26-04-2023,Adults,Prestige Care & Support Ltd,Home Care - Private Contractors Payment,808.11,0.00,COMMERCIAL SUPPLIER 
 26-04-2023,Adults,Prestige Care & Support Ltd,Home Care - Private Contractors Payment,808.11,0.00,COMMERCIAL SUPPLIER 
 12-04-2023,Adults,Home Sweet Home Care Ltd,Home Care - Private Contractors Payment,808.85,0.00,COMMERCIAL SUPPLIER 
 06-04-2023,Adults,Lodge Group Care UK Ltd,Home Care - Private Contractors Payment,810.49,0.00,COMMERCIAL SUPPLIER 
 03-04-2023,Adults,Dignified Homecare,Home Care - Private Contractors Payment,812.00,0.00,COMMERCIAL SUPPLIER 
 05-04-2023,Adults,Moreland House_a,Respite Care - Private Contractors Payment,812.57,0.00,COMMERCIAL SUPPLIER 
 12-04-2023,Adults,Care-Away Ltd T/A Care Support,Home Care - Private Contractors Payment,815.36,0.00,COMMERCIAL SUPPLIER 
 11-04-2023,Adults,Morepower Ltd t/a Aqs Homecare,Home Care - Private Contractors Payment,815.74,0.00,COMMERCIAL SUPPLIER 
 04-04-2023,Adults,Home Support Services (Havering & Essex) Ltd,Home Care - Private Contractors Payment,816.72,0.00,COMMERCIAL SUPPLIER 
 04-04-2023,Adults,Home Support Services (Havering & Essex) Ltd,Home Care - Private Contractors Payment,816.72,0.00,COMMERCIAL SUPPLIER 
 04-04-2023,Adults,Home Support Services (Havering & Essex) Ltd,Home Care - Private Contractors Payment,816.72,0.00,COMMERCIAL SUPPLIER 
 04-04-2023,Adults,Home Support Services (Havering & Essex) Ltd,Home Care - Private Contractors Payment,816.72,0.00,COMMERCIAL SUPPLIER 
 06-04-2023,Adults,Lodge Group Care UK Ltd,Home Care - Private Contractors Payment,816.72,0.00,COMMERCIAL SUPPLIER 
 06-04-2023,Adults,Lodge Group Care UK Ltd,Home Care - Private Contractors Payment,816.72,0.00,COMMERCIAL SUPPLIER 
 12-04-2023,Adults,Home Sweet Home Care Ltd,Home Care - Private Contractors Payment,816.72,0.00,COMMERCIAL SUPPLIER 
 12-04-2023,Adults,Home Sweet Home Care Ltd,Home Care - Private Contractors Payment,816.72,0.00,COMMERCIAL SUPPLIER 
 12-04-2023,Adults,Home Sweet Home Care Ltd,Home Care - Private Contractors Payment,816.72,0.00,COMMERCIAL SUPPLIER 
 12-04-2023,Adults,Home Sweet Home Care Ltd,Home Care - Private Contractors Payment,816.72,0.00,COMMERCIAL SUPPLIER 
 26-04-2023,Adults,Matrix SCM Ltd,Agency Staff,816.90,0.00,COMMERCIAL SUPPLIER 
 06-04-2023,Adults,Lodge Group Care UK Ltd,Home Care - Private Contractors Payment,817.05,0.00,COMMERCIAL SUPPLIER 
 11-04-2023,Adults,Morepower Ltd t/a Aqs Homecare,Home Care - Private Contractors Payment,817.38,0.00,COMMERCIAL SUPPLIER 
 11-04-2023,Adults,Morepower Ltd t/a Aqs Homecare,Home Care - Private Contractors Payment,817.70,0.00,COMMERCIAL SUPPLIER 
 12-04-2023,Adults,Home Sweet Home Care Ltd,Home Care - Private Contractors Payment,817.70,0.00,COMMERCIAL SUPPLIER 
 11-04-2023,Adults,Morepower Ltd t/a Aqs Homecare,Home Care - Private Contractors Payment,818.36,0.00,COMMERCIAL SUPPLIER 
 04-04-2023,Adults,Home Support Services (Havering & Essex) Ltd,Home Care - Private Contractors Payment,819.02,0.00,COMMERCIAL SUPPLIER 
 04-04-2023,Adults,Home Support Services (Havering & Essex) Ltd,Home Care - Private Contractors Payment,819.02,0.00,COMMERCIAL SUPPLIER 
 12-04-2023,Adults,Home Sweet Home Care Ltd,Home Care - Private Contractors Payment,820.66,0.00,COMMERCIAL SUPPLIER 
 05-04-2023,Adults,Quality Healthcare Solutions Ltd t/a Kare Plus Romford,Home Care - Private Contractors Payment,821.31,0.00,COMMERCIAL SUPPLIER 
 12-04-2023,Adults,Home Sweet Home Care Ltd,Home Care - Private Contractors Payment,822.62,0.00,COMMERCIAL SUPPLIER 
 05-04-2023,Adults,Quality Healthcare Solutions Ltd t/a Kare Plus Romford,Home Care - Private Contractors Payment,822.95,0.00,COMMERCIAL SUPPLIER 
 24-04-2023,Adults,Premier Carewaiting Ltd,Home Care - Private Contractors Payment,824.48,0.00,COMMERCIAL SUPPLIER 
 03-04-2023,Adults,Hospiva Care & Associates Agency Ltd_a,Home Care - Private Contractors Payment,826.56,0.00,COMMERCIAL SUPPLIER 
 03-04-2023,Adults,Hospiva Care & Associates Agency Ltd_a,Home Care - Private Contractors Payment,826.56,0.00,COMMERCIAL SUPPLIER 
 04-04-2023,Adults,Carers Trust East Midlands,Home Care - Private Contractors Payment,826.56,0.00,COMMERCIAL SUPPLIER 
 04-04-2023,Adults,Home Support Services (Havering & Essex) Ltd,Home Care - Private Contractors Payment,826.56,0.00,COMMERCIAL SUPPLIER 
 04-04-2023,Adults,Home Support Services (Havering & Essex) Ltd,Home Care - Private Contractors Payment,826.56,0.00,COMMERCIAL SUPPLIER 
 04-04-2023,Adults,Home Support Services (Havering & Essex) Ltd,Home Care - Private Contractors Payment,826.56,0.00,COMMERCIAL SUPPLIER 
 04-04-2023,Adults,Home Support Services (Havering & Essex) Ltd,Home Care - Private Contractors Payment,826.56,0.00,COMMERCIAL SUPPLIER 
 04-04-2023,Adults,Home Support Services (Havering & Essex) Ltd,Home Care - Private Contractors Payment,826.56,0.00,COMMERCIAL SUPPLIER 
 04-04-2023,Adults,Home Support Services (Havering & Essex) Ltd,Home Care - Private Contractors Payment,826.56,0.00,COMMERCIAL SUPPLIER 
 04-04-2023,Adults,Home Support Services (Havering & Essex) Ltd,Home Care - Private Contractors Payment,826.56,0.00,COMMERCIAL SUPPLIER 
 04-04-2023,Adults,Home Support Services (Havering & Essex) Ltd,Home Care - Private Contractors Payment,826.56,0.00,COMMERCIAL SUPPLIER 
 06-04-2023,Adults,Lodge Group Care UK Ltd,Home Care - Private Contractors Payment,826.56,0.00,COMMERCIAL SUPPLIER 
 06-04-2023,Adults,Lodge Group Care UK Ltd,Home Care - Private Contractors Payment,826.56,0.00,COMMERCIAL SUPPLIER 
 06-04-2023,Adults,Lodge Group Care UK Ltd,Home Care - Private Contractors Payment,826.56,0.00,COMMERCIAL SUPPLIER 
 06-04-2023,Adults,Lodge Group Care UK Ltd,Home Care - Private Contractors Payment,826.56,0.00,COMMERCIAL SUPPLIER 
 06-04-2023,Adults,Lodge Group Care UK Ltd,Home Care - Private Contractors Payment,826.56,0.00,COMMERCIAL SUPPLIER 
 11-04-2023,Adults,Rosemont Care Limited,Home Care - Private Contractors Payment,826.56,0.00,COMMERCIAL SUPPLIER 
 11-04-2023,Adults,Rosemont Care Limited,Home Care - Private Contractors Payment,826.56,0.00,COMMERCIAL SUPPLIER 
 12-04-2023,Adults,Home Sweet Home Care Ltd,Home Care - Private Contractors Payment,826.56,0.00,COMMERCIAL SUPPLIER 
 14-04-2023,Adults,Passion Tree Care Services Ltd,Home Care - Private Contractors Payment,826.56,0.00,COMMERCIAL SUPPLIER 
 12-04-2023,Adults,Home Sweet Home Care Ltd,Home Care - Private Contractors Payment,827.22,0.00,COMMERCIAL SUPPLIER 
 05-04-2023,Adults,Quality Healthcare Solutions Ltd t/a Kare Plus Romford,Home Care - Private Contractors Payment,827.54,0.00,COMMERCIAL SUPPLIER 
 06-04-2023,Adults,Lodge Group Care UK Ltd,Home Care - Private Contractors Payment,827.54,0.00,COMMERCIAL SUPPLIER 
 06-04-2023,Adults,Lodge Group Care UK Ltd,Home Care - Private Contractors Payment,828.20,0.00,COMMERCIAL SUPPLIER 
 11-04-2023,Adults,Morepower Ltd t/a Aqs Homecare,Home Care - Private Contractors Payment,828.86,0.00,COMMERCIAL SUPPLIER 
 12-04-2023,Adults,Home Sweet Home Care Ltd,Home Care - Private Contractors Payment,829.51,0.00,COMMERCIAL SUPPLIER 
 12-04-2023,Adults,Home Sweet Home Care Ltd,Home Care - Private Contractors Payment,829.51,0.00,COMMERCIAL SUPPLIER 
 04-04-2023,Adults,Home Support Services (Havering & Essex) Ltd,Home Care - Private Contractors Payment,830.17,0.00,COMMERCIAL SUPPLIER 
 26-04-2023,Adults,Quality Healthcare Solutions Ltd t/a Kare Plus Romford,Home Care - Private Contractors Payment,830.31,0.00,COMMERCIAL SUPPLIER 
 04-04-2023,Adults,Home Support Services (Havering & Essex) Ltd,Home Care - Private Contractors Payment,830.50,0.00,COMMERCIAL SUPPLIER 
 04-04-2023,Adults,Home Support Services (Havering & Essex) Ltd,Home Care - Private Contractors Payment,830.50,0.00,COMMERCIAL SUPPLIER 
 11-04-2023,Adults,Morepower Ltd t/a Aqs Homecare,Home Care - Private Contractors Payment,830.50,0.00,COMMERCIAL SUPPLIER 
 06-04-2023,Adults,Lodge Group Care UK Ltd,Home Care - Private Contractors Payment,830.82,0.00,COMMERCIAL SUPPLIER 
 06-04-2023,Adults,Lodge Group Care UK Ltd,Home Care - Private Contractors Payment,830.82,0.00,COMMERCIAL SUPPLIER 
 11-04-2023,Adults,Morepower Ltd t/a Aqs Homecare,Home Care - Private Contractors Payment,830.82,0.00,COMMERCIAL SUPPLIER 
 06-04-2023,Adults,Lodge Group Care UK Ltd,Home Care - Private Contractors Payment,831.48,0.00,COMMERCIAL SUPPLIER 
 23-04-2023,Adults,Homestead Care Service,Home Care - Private Contractors Payment,831.77,0.00,COMMERCIAL SUPPLIER 
 06-04-2023,Adults,Lodge Group Care UK Ltd,Home Care - Private Contractors Payment,831.81,0.00,COMMERCIAL SUPPLIER 
 11-04-2023,Adults,Morepower Ltd t/a Aqs Homecare,Home Care - Private Contractors Payment,832.14,0.00,COMMERCIAL SUPPLIER 
 06-04-2023,Adults,Lodge Group Care UK Ltd,Home Care - Private Contractors Payment,832.46,0.00,COMMERCIAL SUPPLIER 
 12-04-2023,Adults,Home Sweet Home Care Ltd,Home Care - Private Contractors Payment,833.12,0.00,COMMERCIAL SUPPLIER 
 07-04-2023,Adults,Anytime Care 2020_a,Home Care - Private Contractors Payment,834.43,0.00,COMMERCIAL SUPPLIER 
 12-04-2023,Adults,Matrix SCM Ltd,Agency Staff,834.74,0.00,COMMERCIAL SUPPLIER 
 19-04-2023,Adults,Matrix SCM Ltd,Agency Staff,834.74,0.00,COMMERCIAL SUPPLIER 
 19-04-2023,Adults,Matrix SCM Ltd,Agency Staff,834.74,0.00,COMMERCIAL SUPPLIER 
 06-04-2023,Adults,Lodge Group Care UK Ltd,Home Care - Private Contractors Payment,834.76,0.00,COMMERCIAL SUPPLIER 
 06-04-2023,Adults,Lodge Group Care UK Ltd,Home Care - Private Contractors Payment,835.09,0.00,COMMERCIAL SUPPLIER 
 05-04-2023,Adults,Quality Healthcare Solutions Ltd t/a Kare Plus Romford,Home Care - Private Contractors Payment,835.74,0.00,COMMERCIAL SUPPLIER 
 06-04-2023,Adults,Lodge Group Care UK Ltd,Home Care - Private Contractors Payment,836.40,0.00,COMMERCIAL SUPPLIER 
 12-04-2023,Adults,Home Sweet Home Care Ltd,Home Care - Private Contractors Payment,836.40,0.00,COMMERCIAL SUPPLIER 
 06-04-2023,Adults,Lodge Group Care UK Ltd,Home Care - Private Contractors Payment,838.04,0.00,COMMERCIAL SUPPLIER 
 06-04-2023,Adults,Lodge Group Care UK Ltd,Home Care - Private Contractors Payment,838.70,0.00,COMMERCIAL SUPPLIER 
 04-04-2023,Adults,Home Support Services (Havering & Essex) Ltd,Home Care - Private Contractors Payment,839.35,0.00,COMMERCIAL SUPPLIER 
 06-04-2023,Adults,Lodge Group Care UK Ltd,Home Care - Private Contractors Payment,839.68,0.00,COMMERCIAL SUPPLIER 
 06-04-2023,Adults,Lodge Group Care UK Ltd,Home Care - Private Contractors Payment,839.68,0.00,COMMERCIAL SUPPLIER 
 06-04-2023,Adults,Lodge Group Care UK Ltd,Home Care - Private Contractors Payment,839.68,0.00,COMMERCIAL SUPPLIER 
 23-04-2023,Adults,Homestead Care Service,Home Care - Private Contractors Payment,840.87,0.00,COMMERCIAL SUPPLIER 
 06-04-2023,Adults,Lodge Group Care UK Ltd,Home Care - Private Contractors Payment,841.32,0.00,COMMERCIAL SUPPLIER 
 06-04-2023,Adults,Lodge Group Care UK Ltd,Home Care - Private Contractors Payment,841.98,0.00,COMMERCIAL SUPPLIER 
 05-04-2023,Adults,Matrix SCM Ltd,Agency Staff,842.75,0.00,COMMERCIAL SUPPLIER 
 26-04-2023,Adults,Matrix SCM Ltd,Agency Staff,842.75,0.00,COMMERCIAL SUPPLIER 
 23-04-2023,Adults,Homestead Care Service,Home Care - Private Contractors Payment,843.42,0.00,COMMERCIAL SUPPLIER 
 12-04-2023,Adults,Home Sweet Home Care Ltd,Home Care - Private Contractors Payment,844.27,0.00,COMMERCIAL SUPPLIER 
 04-04-2023,Adults,Home Support Services (Havering & Essex) Ltd,Home Care - Private Contractors Payment,845.91,0.00,COMMERCIAL SUPPLIER 
 11-04-2023,Adults,Morepower Ltd t/a Aqs Homecare,Home Care - Private Contractors Payment,846.57,0.00,COMMERCIAL SUPPLIER 
 24-04-2023,Adults,Independent People Homecare Services,Home Care - Private Contractors Payment,846.98,0.00,NON COMMERCIAL SUPPLIER 
 04-04-2023,Adults,Home Support Services (Havering & Essex) Ltd,Home Care - Private Contractors Payment,848.21,0.00,COMMERCIAL SUPPLIER 
 04-04-2023,Adults,Home Support Services (Havering & Essex) Ltd,Home Care - Private Contractors Payment,848.54,0.00,COMMERCIAL SUPPLIER 
 12-04-2023,Adults,Matrix SCM Ltd,Agency Staff,848.70,0.00,COMMERCIAL SUPPLIER 
 07-04-2023,Adults,Anytime Care 2020_a,Home Care - Private Contractors Payment,848.86,0.00,COMMERCIAL SUPPLIER 
 28-04-2023,Adults,Eastway Care Ltd_a,Daycare - Private Contractors Payment,850.28,0.00,COMMERCIAL SUPPLIER 
 05-04-2023,Adults,Kadmiel Projects Ltd,Supported Other Accommodation - Private Contractors Payment,854.08,0.00,COMMERCIAL SUPPLIER 
 05-04-2023,Adults,Topaz Care and Support Co Ltd,Supported Other Accommodation - Private Contractors Payment,854.20,0.00,COMMERCIAL SUPPLIER 
 30-04-2023,Adults,ECL Person Centred Care,Daycare - Private Contractors Payment,857.49,0.00,COMMERCIAL SUPPLIER 
 23-04-2023,Adults,Homestead Care Service,Home Care - Private Contractors Payment,859.79,0.00,COMMERCIAL SUPPLIER 
 25-04-2023,Adults,Anytime Care 2020_a,Home Care - Private Contractors Payment,860.14,0.00,COMMERCIAL SUPPLIER 
 26-04-2023,Adults,Quality Healthcare Solutions Ltd t/a Kare Plus Romford,Home Care - Private Contractors Payment,862.71,0.00,COMMERCIAL SUPPLIER 
 04-04-2023,Adults,R G Care Ltd ,Daycare - Private Contractors Payment,864.00,0.00,COMMERCIAL SUPPLIER 
 12-04-2023,Adults,Home Sweet Home Care Ltd,Home Care - Private Contractors Payment,864.61,0.00,COMMERCIAL SUPPLIER 
 06-04-2023,Adults,Care-Away Ltd T/A Care Support,Home Care - Private Contractors Payment,865.28,0.00,COMMERCIAL SUPPLIER 
 23-04-2023,Adults,Homestead Care Service,Home Care - Private Contractors Payment,869.98,0.00,COMMERCIAL SUPPLIER 
 23-04-2023,Adults,Homestead Care Service,Home Care - Private Contractors Payment,870.34,0.00,COMMERCIAL SUPPLIER 
 12-04-2023,Adults,Care-Away Ltd T/A Care Support,Home Care - Private Contractors Payment,873.60,0.00,COMMERCIAL SUPPLIER 
 12-04-2023,Adults,Care-Away Ltd T/A Care Support,Home Care - Private Contractors Payment,873.60,0.00,COMMERCIAL SUPPLIER 
 24-04-2023,Adults,Outreach Support Services Ltd,Home Care - Private Contractors Payment,873.63,0.00,COMMERCIAL SUPPLIER 
 24-04-2023,Adults,Outreach Support Services Ltd,Home Care - Private Contractors Payment,873.63,0.00,COMMERCIAL SUPPLIER 
 04-04-2023,Adults,Home Support Services (Havering & Essex) Ltd,Home Care - Private Contractors Payment,873.79,0.00,COMMERCIAL SUPPLIER 
 23-04-2023,Adults,Homestead Care Service,Home Care - Private Contractors Payment,874.72,0.00,COMMERCIAL SUPPLIER 
 07-04-2023,Adults,Anytime Care 2020_a,Home Care - Private Contractors Payment,874.78,0.00,COMMERCIAL SUPPLIER 
 11-04-2023,Adults,Bluebird Care Havering,Home Care - Private Contractors Payment,875.02,0.00,COMMERCIAL SUPPLIER 
 11-04-2023,Adults,Bluebird Care Havering,Home Care - Private Contractors Payment,875.02,0.00,COMMERCIAL SUPPLIER 
 05-04-2023,Adults,Headway East London,Daycare - Private Contractors Payment,875.52,0.00,COMMERCIAL SUPPLIER 
 05-04-2023,Adults,Ebony Health Care Services Limited,Supported Other Accommodation - Private Contractors Payment,881.48,0.00,COMMERCIAL SUPPLIER 
 23-04-2023,Adults,Homestead Care Service,Home Care - Private Contractors Payment,885.64,0.00,COMMERCIAL SUPPLIER 
 23-04-2023,Adults,Homestead Care Service,Home Care - Private Contractors Payment,886.01,0.00,COMMERCIAL SUPPLIER 
 23-04-2023,Adults,Homestead Care Service,Home Care - Private Contractors Payment,886.37,0.00,COMMERCIAL SUPPLIER 
 14-04-2023,Adults,Trinity London Care Ltd,Daycare - Private Contractors Payment,887.14,0.00,COMMERCIAL SUPPLIER 
 14-04-2023,Adults,Trinity London Care Ltd,Daycare - Private Contractors Payment,887.14,0.00,COMMERCIAL SUPPLIER 
 14-04-2023,Adults,Trinity London Care Ltd,Daycare - Private Contractors Payment,887.14,0.00,COMMERCIAL SUPPLIER 
 24-04-2023,Adults,Bluebird Care Havering,Home Care - Private Contractors Payment,890.10,0.00,COMMERCIAL SUPPLIER 
 11-04-2023,Adults,Morepower Ltd t/a Aqs Homecare,Home Care - Private Contractors Payment,892.49,0.00,COMMERCIAL SUPPLIER 
 05-04-2023,Adults,Masumin Ltd t/s Abbeleigh House,Residential Placements - Private Contractors Payment,893.57,0.00,COMMERCIAL SUPPLIER 
 11-04-2023,Adults,Bluebird Care Havering,Home Care - Private Contractors Payment,894.00,0.00,COMMERCIAL SUPPLIER 
 23-04-2023,Adults,Homestead Care Service,Home Care - Private Contractors Payment,894.38,0.00,COMMERCIAL SUPPLIER 
 05-04-2023,Adults,Fresh Tree Care Services,Supported Other Accommodation - Private Contractors Payment,896.00,0.00,COMMERCIAL SUPPLIER 
 05-04-2023,Adults,Moreland House_a,Respite Care - Private Contractors Payment,902.86,0.00,COMMERCIAL SUPPLIER 
 25-04-2023,Adults,Anytime Care 2020_a,Home Care - Private Contractors Payment,903.12,0.00,COMMERCIAL SUPPLIER 
 05-04-2023,Adults,Pathways Care Group Ltd,Residential Placements - Private Contractors Payment,904.04,0.00,COMMERCIAL SUPPLIER 
 05-04-2023,Adults,Matrix SCM Ltd,Agency Staff,906.48,0.00,COMMERCIAL SUPPLIER 
 12-04-2023,Adults,Care-Away Ltd T/A Care Support,Home Care - Private Contractors Payment,906.88,0.00,COMMERCIAL SUPPLIER 
 23-04-2023,Adults,Homestead Care Service,Home Care - Private Contractors Payment,908.21,0.00,COMMERCIAL SUPPLIER 
 26-04-2023,Adults,Matrix SCM Ltd,Agency Staff,908.64,0.00,COMMERCIAL SUPPLIER 
 23-04-2023,Adults,Homestead Care Service,Home Care - Private Contractors Payment,908.94,0.00,COMMERCIAL SUPPLIER 
 12-04-2023,Adults,Matrix SCM Ltd,Agency Staff,909.44,0.00,COMMERCIAL SUPPLIER 
 04-04-2023,Adults,Home Support Services (Havering & Essex) Ltd,Home Care - Private Contractors Payment,911.18,0.00,COMMERCIAL SUPPLIER 
 26-04-2023,Adults,Prestige Care & Support Ltd,Home Care - Private Contractors Payment,911.85,0.00,COMMERCIAL SUPPLIER 
 26-04-2023,Adults,Prestige Care & Support Ltd,Home Care - Private Contractors Payment,912.58,0.00,COMMERCIAL SUPPLIER 
 11-04-2023,Adults,Morepower Ltd t/a Aqs Homecare,Home Care - Private Contractors Payment,912.82,0.00,COMMERCIAL SUPPLIER 
 26-04-2023,Adults,Prestige Care & Support Ltd,Home Care - Private Contractors Payment,912.94,0.00,COMMERCIAL SUPPLIER 
 23-04-2023,Adults,Homestead Care Service,Home Care - Private Contractors Payment,913.30,0.00,COMMERCIAL SUPPLIER 
 05-04-2023,Adults,Quality Healthcare Solutions Ltd t/a Kare Plus Romford,Home Care - Private Contractors Payment,914.46,0.00,COMMERCIAL SUPPLIER 
 05-04-2023,Adults,The Cedars,Supported Other Accommodation - Private Contractors Payment,915.20,0.00,COMMERCIAL SUPPLIER 
 23-04-2023,Adults,Homestead Care Service,Home Care - Private Contractors Payment,917.31,0.00,COMMERCIAL SUPPLIER 
 23-04-2023,Adults,Homestead Care Service,Home Care - Private Contractors Payment,917.31,0.00,COMMERCIAL SUPPLIER 
 05-04-2023,Adults,Outlook Care - 4 Peel Way,Supported Other Accommodation - Private Contractors Payment,917.60,0.00,COMMERCIAL SUPPLIER 
 05-04-2023,Adults,Omega Elifar Ltd,Residential Placements - Private Contractors Payment,918.40,0.00,COMMERCIAL SUPPLIER 
 11-04-2023,Adults,Morepower Ltd t/a Aqs Homecare,Home Care - Private Contractors Payment,918.73,0.00,COMMERCIAL SUPPLIER 
 03-04-2023,Adults,Hospiva Care & Associates Agency Ltd_a,Home Care - Private Contractors Payment,920.70,0.00,COMMERCIAL SUPPLIER 
 06-04-2023,Adults,Lodge Group Care UK Ltd,Home Care - Private Contractors Payment,922.66,0.00,COMMERCIAL SUPPLIER 
 26-04-2023,Adults,Prestige Care & Support Ltd,Home Care - Private Contractors Payment,924.95,0.00,COMMERCIAL SUPPLIER 
 26-04-2023,Adults,Prestige Care & Support Ltd,Home Care - Private Contractors Payment,927.14,0.00,COMMERCIAL SUPPLIER 
 11-04-2023,Adults,Morepower Ltd t/a Aqs Homecare,Home Care - Private Contractors Payment,927.26,0.00,COMMERCIAL SUPPLIER 
 25-04-2023,Adults,Anytime Care 2020_a,Home Care - Private Contractors Payment,928.23,0.00,COMMERCIAL SUPPLIER 
 04-04-2023,Adults,Home Support Services (Havering & Essex) Ltd,Home Care - Private Contractors Payment,928.90,0.00,COMMERCIAL SUPPLIER 
 26-04-2023,Adults,Action First Assessments Ltd,Private Contractors Payment - Other,930.00,0.00,COMMERCIAL SUPPLIER 
 26-04-2023,Adults,Action First Assessments Ltd,Private Contractors Payment - Other,930.00,0.00,COMMERCIAL SUPPLIER 
 26-04-2023,Adults,Action First Assessments Ltd,Private Contractors Payment - Other,930.00,0.00,COMMERCIAL SUPPLIER 
 26-04-2023,Adults,Prestige Care & Support Ltd,Home Care - Private Contractors Payment,931.51,0.00,COMMERCIAL SUPPLIER 
 12-04-2023,Adults,Care-Away Ltd T/A Care Support,Home Care - Private Contractors Payment,931.84,0.00,COMMERCIAL SUPPLIER 
 12-04-2023,Adults,Care-Away Ltd T/A Care Support,Home Care - Private Contractors Payment,931.84,0.00,COMMERCIAL SUPPLIER 
 12-04-2023,Adults,Care-Away Ltd T/A Care Support,Home Care - Private Contractors Payment,931.84,0.00,COMMERCIAL SUPPLIER 
 12-04-2023,Adults,Care-Away Ltd T/A Care Support,Home Care - Private Contractors Payment,931.84,0.00,COMMERCIAL SUPPLIER 
 12-04-2023,Adults,Care-Away Ltd T/A Care Support,Home Care - Private Contractors Payment,931.84,0.00,COMMERCIAL SUPPLIER 
 12-04-2023,Adults,Care-Away Ltd T/A Care Support,Home Care - Private Contractors Payment,931.84,0.00,COMMERCIAL SUPPLIER 
 04-04-2023,Adults,Home Support Services (Havering & Essex) Ltd,Home Care - Private Contractors Payment,932.50,0.00,COMMERCIAL SUPPLIER 
 04-04-2023,Adults,Home Support Services (Havering & Essex) Ltd,Home Care - Private Contractors Payment,937.10,0.00,COMMERCIAL SUPPLIER 
 06-04-2023,Adults,Lodge Group Care UK Ltd,Home Care - Private Contractors Payment,941.03,0.00,COMMERCIAL SUPPLIER 
 19-04-2023,Adults,Matrix SCM Ltd,Agency Staff,943.28,0.00,COMMERCIAL SUPPLIER 
 05-04-2023,Adults,Quality Healthcare Solutions Ltd t/a Kare Plus Romford,Home Care - Private Contractors Payment,943.98,0.00,COMMERCIAL SUPPLIER 
 25-04-2023,Adults,Mind in Tower Hamlets And Newham,Private Contractors Payment - Other,944.00,0.00,COMMERCIAL SUPPLIER 
 05-04-2023,Adults,Gims Care Solution Ltd_a,Home Care - Private Contractors Payment,944.64,0.00,NON COMMERCIAL SUPPLIER 
 14-04-2023,Adults,Passion Tree Care Services Ltd,Home Care - Private Contractors Payment,944.64,0.00,COMMERCIAL SUPPLIER 
 12-04-2023,Adults,Home Sweet Home Care Ltd,Home Care - Private Contractors Payment,948.25,0.00,COMMERCIAL SUPPLIER 
 12-04-2023,Adults,Matrix SCM Ltd,Agency Staff,951.48,0.00,COMMERCIAL SUPPLIER 
 12-04-2023,Adults,Matrix SCM Ltd,Agency Staff,956.40,0.00,COMMERCIAL SUPPLIER 
 12-04-2023,Adults,Care-Away Ltd T/A Care Support,Home Care - Private Contractors Payment,956.80,0.00,COMMERCIAL SUPPLIER 
 11-04-2023,Adults,Morepower Ltd t/a Aqs Homecare,Home Care - Private Contractors Payment,959.07,0.00,COMMERCIAL SUPPLIER 
 05-04-2023,Adults,2 Peel Way - Outlook Care,Supported Other Accommodation - Private Contractors Payment,963.92,0.00,NON COMMERCIAL SUPPLIER 
 04-04-2023,Adults,Home Support Services (Havering & Essex) Ltd,Home Care - Private Contractors Payment,964.32,0.00,COMMERCIAL SUPPLIER 
 04-04-2023,Adults,Home Support Services (Havering & Essex) Ltd,Home Care - Private Contractors Payment,964.32,0.00,COMMERCIAL SUPPLIER 
 05-04-2023,Adults,IECC Care,Supported Other Accommodation - Private Contractors Payment,964.32,0.00,COMMERCIAL SUPPLIER 
 12-04-2023,Adults,Care-Away Ltd T/A Care Support,Home Care - Private Contractors Payment,965.12,0.00,COMMERCIAL SUPPLIER 
 12-04-2023,Adults,Care-Away Ltd T/A Care Support,Home Care - Private Contractors Payment,965.12,0.00,COMMERCIAL SUPPLIER 
 05-04-2023,Adults,Quality Healthcare Solutions Ltd t/a Kare Plus Romford,Home Care - Private Contractors Payment,969.24,0.00,COMMERCIAL SUPPLIER 
 23-04-2023,Adults,Homestead Care Service,Home Care - Private Contractors Payment,969.73,0.00,COMMERCIAL SUPPLIER 
 23-04-2023,Adults,Homestead Care Service,Home Care - Private Contractors Payment,969.73,0.00,COMMERCIAL SUPPLIER 
 12-04-2023,Adults,Matrix SCM Ltd,Agency Staff,971.20,0.00,COMMERCIAL SUPPLIER 
 19-04-2023,Adults,Matrix SCM Ltd,Agency Staff,971.20,0.00,COMMERCIAL SUPPLIER 
 25-04-2023,Adults,Prior Care Ltd_a,Home Care - Private Contractors Payment,971.92,0.00,COMMERCIAL SUPPLIER 
 05-04-2023,Adults,EC Romford Holdings Ltd,Residential Placements - Private Contractors Payment,972.00,0.00,COMMERCIAL SUPPLIER 
 12-04-2023,Adults,Matrix SCM Ltd,Agency Staff,974.40,0.00,COMMERCIAL SUPPLIER 
 19-04-2023,Adults,Matrix SCM Ltd,Agency Staff,974.40,0.00,COMMERCIAL SUPPLIER 
 23-04-2023,Adults,Homestead Care Service,Home Care - Private Contractors Payment,975.55,0.00,COMMERCIAL SUPPLIER 
 23-04-2023,Adults,Homestead Care Service,Home Care - Private Contractors Payment,976.65,0.00,COMMERCIAL SUPPLIER 
 23-04-2023,Adults,Homestead Care Service,Home Care - Private Contractors Payment,976.65,0.00,COMMERCIAL SUPPLIER 
 23-04-2023,Adults,Homestead Care Service,Home Care - Private Contractors Payment,976.65,0.00,COMMERCIAL SUPPLIER 
 03-04-2023,Adults,Hospiva Care & Associates Agency Ltd_a,Home Care - Private Contractors Payment,977.11,0.00,COMMERCIAL SUPPLIER 
 25-04-2023,Adults,Anytime Care 2020_a,Home Care - Private Contractors Payment,977.37,0.00,COMMERCIAL SUPPLIER 
 26-04-2023,Adults,Prestige Care & Support Ltd,Home Care - Private Contractors Payment,979.92,0.00,COMMERCIAL SUPPLIER 
 05-04-2023,Adults,The Riverside Group,Supported Other Accommodation - Private Contractors Payment,984.29,0.00, 
 04-04-2023,Adults,Home Support Services (Havering & Essex) Ltd,Home Care - Private Contractors Payment,985.97,0.00,COMMERCIAL SUPPLIER 
 06-04-2023,Adults,Lodge Group Care UK Ltd,Home Care - Private Contractors Payment,986.95,0.00,COMMERCIAL SUPPLIER 
 26-04-2023,Adults,Prestige Care & Support Ltd,Home Care - Private Contractors Payment,988.66,0.00,COMMERCIAL SUPPLIER 
 19-04-2023,Adults,Matrix SCM Ltd,Agency Staff,991.30,0.00,COMMERCIAL SUPPLIER 
 05-04-2023,Adults,Ebony Health Care Services Limited,Supported Other Accommodation - Private Contractors Payment,992.24,0.00,COMMERCIAL SUPPLIER 
 05-04-2023,Adults,Masumin Ltd t/s Abbeleigh House,Respite Care - Private Contractors Payment,992.86,0.00,COMMERCIAL SUPPLIER 
 05-04-2023,Adults,Lodge Lane Care Home Limited,Residential Placements - Private Contractors Payment,992.86,0.00,COMMERCIAL SUPPLIER 
 05-04-2023,Adults,Lodge Lane Care Home Limited,Respite Care - Private Contractors Payment,992.86,0.00,COMMERCIAL SUPPLIER 
 23-04-2023,Adults,Homestead Care Service,Home Care - Private Contractors Payment,993.76,0.00,COMMERCIAL SUPPLIER 
 23-04-2023,Adults,Homestead Care Service,Home Care - Private Contractors Payment,993.76,0.00,COMMERCIAL SUPPLIER 
 26-04-2023,Adults,Prestige Care & Support Ltd,Home Care - Private Contractors Payment,993.76,0.00,COMMERCIAL SUPPLIER 
 04-04-2023,Adults,Home Support Services (Havering & Essex) Ltd,Home Care - Private Contractors Payment,993.84,0.00,COMMERCIAL SUPPLIER 
 12-04-2023,Adults,Matrix SCM Ltd,Agency Staff,995.28,0.00,COMMERCIAL SUPPLIER 
 19-04-2023,Adults,Matrix SCM Ltd,Agency Staff,995.28,0.00,COMMERCIAL SUPPLIER 
 25-04-2023,Adults,Prior Care Ltd_a,Home Care - Private Contractors Payment,998.12,0.00,COMMERCIAL SUPPLIER 
 26-04-2023,Adults,Prestige Care & Support Ltd,Home Care - Private Contractors Payment,998.85,0.00,COMMERCIAL SUPPLIER 
 05-04-2023,Adults,Matrix SCM Ltd,Agency Staff,999.92,0.00,COMMERCIAL SUPPLIER 
 12-04-2023,Adults,Matrix SCM Ltd,Agency Staff,999.92,0.00,COMMERCIAL SUPPLIER 
 12-04-2023,Adults,Matrix SCM Ltd,Agency Staff,999.92,0.00,COMMERCIAL SUPPLIER 
 12-04-2023,Adults,Matrix SCM Ltd,Agency Staff,999.92,0.00,COMMERCIAL SUPPLIER 
 12-04-2023,Adults,Matrix SCM Ltd,Agency Staff,999.92,0.00,COMMERCIAL SUPPLIER 
 12-04-2023,Adults,Matrix SCM Ltd,Agency Staff,999.92,0.00,COMMERCIAL SUPPLIER 
 19-04-2023,Adults,Matrix SCM Ltd,Agency Staff,999.92,0.00,COMMERCIAL SUPPLIER 
 19-04-2023,Adults,Matrix SCM Ltd,Agency Staff,999.92,0.00,COMMERCIAL SUPPLIER 
 19-04-2023,Adults,Matrix SCM Ltd,Agency Staff,999.92,0.00,COMMERCIAL SUPPLIER 
 19-04-2023,Adults,Matrix SCM Ltd,Agency Staff,999.92,0.00,COMMERCIAL SUPPLIER 
 20-04-2023,Adults,Lodge Group Care UK Ltd,Home Care - Private Contractors Payment,1000.02,0.00,COMMERCIAL SUPPLIER 
 23-04-2023,Adults,Homestead Care Service,Home Care - Private Contractors Payment,1001.04,0.00,COMMERCIAL SUPPLIER 
 24-04-2023,Adults,Tapestry_a.,Daycare - Private Contractors Payment,1002.14,0.00,COMMERCIAL SUPPLIER 
 24-04-2023,Adults,Tapestry_a.,Daycare - Private Contractors Payment,1002.14,0.00,COMMERCIAL SUPPLIER 
 24-04-2023,Adults,Tapestry_a.,Daycare - Private Contractors Payment,1002.14,0.00,COMMERCIAL SUPPLIER 
 23-04-2023,Adults,Homestead Care Service,Home Care - Private Contractors Payment,1002.49,0.00,COMMERCIAL SUPPLIER 
 05-04-2023,Adults,Coastal Supported Living CIC,Supported Other Accommodation - Private Contractors Payment,1002.56,0.00,COMMERCIAL SUPPLIER 
 26-04-2023,Adults,Prestige Care & Support Ltd,Home Care - Private Contractors Payment,1003.22,0.00,COMMERCIAL SUPPLIER 
 23-04-2023,Adults,Homestead Care Service,Home Care - Private Contractors Payment,1003.58,0.00,COMMERCIAL SUPPLIER 
 27-04-2023,Adults,IJB Healthcare Ltd,Home Care - Private Contractors Payment,1004.65,0.00,COMMERCIAL SUPPLIER 
 23-04-2023,Adults,Homestead Care Service,Home Care - Private Contractors Payment,1004.68,0.00,COMMERCIAL SUPPLIER 
 23-04-2023,Adults,Homestead Care Service,Home Care - Private Contractors Payment,1004.68,0.00,COMMERCIAL SUPPLIER 
 24-04-2023,Adults,London Homecare Ltd,Home Care - Private Contractors Payment,1004.68,0.00,COMMERCIAL SUPPLIER 
 24-04-2023,Adults,London Homecare Ltd,Home Care - Private Contractors Payment,1004.68,0.00,COMMERCIAL SUPPLIER 
 24-04-2023,Adults,London Homecare Ltd,Home Care - Private Contractors Payment,1004.68,0.00,COMMERCIAL SUPPLIER 
 24-04-2023,Adults,Outreach Support Services Ltd,Home Care - Private Contractors Payment,1004.68,0.00,COMMERCIAL SUPPLIER 
 24-04-2023,Adults,Outreach Support Services Ltd,Home Care - Private Contractors Payment,1004.68,0.00,COMMERCIAL SUPPLIER 
 24-04-2023,Adults,Outreach Support Services Ltd,Home Care - Private Contractors Payment,1004.68,0.00,COMMERCIAL SUPPLIER 
 24-04-2023,Adults,Outreach Support Services Ltd,Home Care - Private Contractors Payment,1004.68,0.00,COMMERCIAL SUPPLIER 
 24-04-2023,Adults,Premier Carewaiting Ltd,Home Care - Private Contractors Payment,1004.68,0.00,COMMERCIAL SUPPLIER 
 25-04-2023,Adults,Anytime Care 2020_a,Home Care - Private Contractors Payment,1004.68,0.00,COMMERCIAL SUPPLIER 
 25-04-2023,Adults,Anytime Care 2020_a,Home Care - Private Contractors Payment,1004.68,0.00,COMMERCIAL SUPPLIER 
 26-04-2023,Adults,Quality Healthcare Solutions Ltd t/a Kare Plus Romford,Home Care - Private Contractors Payment,1004.68,0.00,COMMERCIAL SUPPLIER 
 26-04-2023,Adults,Prestige Care & Support Ltd,Home Care - Private Contractors Payment,1004.68,0.00,COMMERCIAL SUPPLIER 
 26-04-2023,Adults,Prestige Care & Support Ltd,Home Care - Private Contractors Payment,1004.68,0.00,COMMERCIAL SUPPLIER 
 26-04-2023,Adults,Prestige Care & Support Ltd,Home Care - Private Contractors Payment,1004.68,0.00,COMMERCIAL SUPPLIER 
 26-04-2023,Adults,Prestige Care & Support Ltd,Home Care - Private Contractors Payment,1004.68,0.00,COMMERCIAL SUPPLIER 
 26-04-2023,Adults,Prestige Care & Support Ltd,Home Care - Private Contractors Payment,1004.68,0.00,COMMERCIAL SUPPLIER 
 27-04-2023,Adults,IJB Healthcare Ltd,Home Care - Private Contractors Payment,1004.68,0.00,COMMERCIAL SUPPLIER 
 26-04-2023,Adults,Prestige Care & Support Ltd,Home Care - Private Contractors Payment,1005.04,0.00,COMMERCIAL SUPPLIER 
 25-04-2023,Adults,Prior Care Ltd_a,Home Care - Private Contractors Payment,1005.40,0.00,COMMERCIAL SUPPLIER 
 23-04-2023,Adults,Homestead Care Service,Home Care - Private Contractors Payment,1006.13,0.00,COMMERCIAL SUPPLIER 
 26-04-2023,Adults,Quality Healthcare Solutions Ltd t/a Kare Plus Romford,Home Care - Private Contractors Payment,1006.50,0.00,COMMERCIAL SUPPLIER 
 23-04-2023,Adults,Homestead Care Service,Home Care - Private Contractors Payment,1006.86,0.00,COMMERCIAL SUPPLIER 
 23-04-2023,Adults,Westminster Homecare Ltd_a,Home Care - Private Contractors Payment,1006.86,0.00,COMMERCIAL SUPPLIER 
 25-04-2023,Adults,Prior Care Ltd_a,Home Care - Private Contractors Payment,1006.86,0.00,COMMERCIAL SUPPLIER 
 19-04-2023,Adults,Matrix SCM Ltd,Agency Staff,1006.88,0.00,COMMERCIAL SUPPLIER 
 06-04-2023,Adults,Lodge Group Care UK Ltd,Home Care - Private Contractors Payment,1006.96,0.00,COMMERCIAL SUPPLIER 
 23-04-2023,Adults,Homestead Care Service,Home Care - Private Contractors Payment,1007.22,0.00,COMMERCIAL SUPPLIER 
 05-04-2023,Adults,Independent Community Support Ltd t/a Wingletye Lodge ,Supported Other Accommodation - Private Contractors Payment,1008.00,0.00,COMMERCIAL SUPPLIER 
 05-04-2023,Adults,Personal Information - Redacted,Supported Other Accommodation - Private Contractors Payment,1008.00,0.00,INDIVIDUALS 
 23-04-2023,Adults,Homestead Care Service,Home Care - Private Contractors Payment,1008.68,0.00,COMMERCIAL SUPPLIER 
 25-04-2023,Adults,Prior Care Ltd_a,Home Care - Private Contractors Payment,1008.68,0.00,COMMERCIAL SUPPLIER 
 25-04-2023,Adults,Prior Care Ltd_a,Home Care - Private Contractors Payment,1009.04,0.00,COMMERCIAL SUPPLIER 
 26-04-2023,Adults,Prestige Care & Support Ltd,Home Care - Private Contractors Payment,1009.04,0.00,COMMERCIAL SUPPLIER 
 25-04-2023,Adults,Prior Care Ltd_a,Home Care - Private Contractors Payment,1009.77,0.00,COMMERCIAL SUPPLIER 
 26-04-2023,Adults,Prestige Care & Support Ltd,Home Care - Private Contractors Payment,1009.77,0.00,COMMERCIAL SUPPLIER 
 26-04-2023,Adults,Prestige Care & Support Ltd,Home Care - Private Contractors Payment,1009.77,0.00,COMMERCIAL SUPPLIER 
 05-04-2023,Adults,Matrix SCM Ltd,Agency Staff,1011.96,0.00,COMMERCIAL SUPPLIER 
 26-04-2023,Adults,Quality Healthcare Solutions Ltd t/a Kare Plus Romford,Home Care - Private Contractors Payment,1012.68,0.00,COMMERCIAL SUPPLIER 
 26-04-2023,Adults,Prestige Care & Support Ltd,Home Care - Private Contractors Payment,1012.68,0.00,COMMERCIAL SUPPLIER 
 26-04-2023,Adults,Prestige Care & Support Ltd,Home Care - Private Contractors Payment,1012.68,0.00,COMMERCIAL SUPPLIER 
 25-04-2023,Adults,Prior Care Ltd_a,Home Care - Private Contractors Payment,1013.41,0.00,COMMERCIAL SUPPLIER 
 26-04-2023,Adults,Prestige Care & Support Ltd,Home Care - Private Contractors Payment,1014.14,0.00,COMMERCIAL SUPPLIER 
 23-04-2023,Adults,Homestead Care Service,Home Care - Private Contractors Payment,1014.87,0.00,COMMERCIAL SUPPLIER 
 26-04-2023,Adults,Quality Healthcare Solutions Ltd t/a Kare Plus Romford,Home Care - Private Contractors Payment,1014.87,0.00,COMMERCIAL SUPPLIER 
 26-04-2023,Adults,Prestige Care & Support Ltd,Home Care - Private Contractors Payment,1014.87,0.00,COMMERCIAL SUPPLIER 
 12-04-2023,Adults,Care-Away Ltd T/A Care Support,Home Care - Private Contractors Payment,1015.04,0.00,COMMERCIAL SUPPLIER 
 06-04-2023,Adults,Lodge Group Care UK Ltd,Home Care - Private Contractors Payment,1015.49,0.00,COMMERCIAL SUPPLIER 
 26-04-2023,Adults,Prestige Care & Support Ltd,Home Care - Private Contractors Payment,1015.96,0.00,COMMERCIAL SUPPLIER 
 26-04-2023,Adults,Prestige Care & Support Ltd,Home Care - Private Contractors Payment,1016.32,0.00,COMMERCIAL SUPPLIER 
 19-04-2023,Adults,Matrix SCM Ltd,Agency Staff,1017.47,0.00,COMMERCIAL SUPPLIER 
 23-04-2023,Adults,Homestead Care Service,Home Care - Private Contractors Payment,1019.24,0.00,COMMERCIAL SUPPLIER 
 23-04-2023,Adults,Homestead Care Service,Home Care - Private Contractors Payment,1019.60,0.00,COMMERCIAL SUPPLIER 
 25-04-2023,Adults,Anytime Care 2020_a,Home Care - Private Contractors Payment,1019.96,0.00,COMMERCIAL SUPPLIER 
 05-04-2023,Adults,Infinite Healthcare Services Ltd.,Supported Other Accommodation - Private Contractors Payment,1020.00,0.00,COMMERCIAL SUPPLIER 
 26-04-2023,Adults,Prestige Care & Support Ltd,Home Care - Private Contractors Payment,1020.69,0.00,COMMERCIAL SUPPLIER 
 05-04-2023,Adults,The Cedars,Supported Other Accommodation - Private Contractors Payment,1020.80,0.00,COMMERCIAL SUPPLIER 
 23-04-2023,Adults,Homestead Care Service,Home Care - Private Contractors Payment,1021.42,0.00,COMMERCIAL SUPPLIER 
 26-04-2023,Adults,Prestige Care & Support Ltd,Home Care - Private Contractors Payment,1021.42,0.00,COMMERCIAL SUPPLIER 
 23-04-2023,Adults,Homestead Care Service,Home Care - Private Contractors Payment,1022.15,0.00,COMMERCIAL SUPPLIER 
 23-04-2023,Adults,Homestead Care Service,Home Care - Private Contractors Payment,1023.24,0.00,COMMERCIAL SUPPLIER 
 06-04-2023,Adults,Amachyck Care Solution Ltd.,Home Care - Private Contractors Payment,1023.36,0.00,COMMERCIAL SUPPLIER 
 11-04-2023,Adults,Morepower Ltd t/a Aqs Homecare,Home Care - Private Contractors Payment,1023.36,0.00,COMMERCIAL SUPPLIER 
 23-04-2023,Adults,Homestead Care Service,Home Care - Private Contractors Payment,1023.61,0.00,COMMERCIAL SUPPLIER 
 05-04-2023,Adults,HSL Compliance Ltd,Professional Services - General,1023.76,0.00,CIS 
 25-04-2023,Adults,Prior Care Ltd_a,Home Care - Private Contractors Payment,1023.97,0.00,COMMERCIAL SUPPLIER 
 26-04-2023,Adults,Prestige Care & Support Ltd,Home Care - Private Contractors Payment,1023.97,0.00,COMMERCIAL SUPPLIER 
 05-04-2023,Adults,Quality Healthcare Solutions Ltd t/a Kare Plus Romford,Home Care - Private Contractors Payment,1024.34,0.00,COMMERCIAL SUPPLIER 
 23-04-2023,Adults,Homestead Care Service,Home Care - Private Contractors Payment,1025.06,0.00,COMMERCIAL SUPPLIER 
 12-04-2023,Adults,Matrix SCM Ltd,Agency Staff,1025.75,0.00,COMMERCIAL SUPPLIER 
 19-04-2023,Adults,Matrix SCM Ltd,Agency Staff,1025.75,0.00,COMMERCIAL SUPPLIER 
 26-04-2023,Adults,Prestige Care & Support Ltd,Home Care - Private Contractors Payment,1025.79,0.00,COMMERCIAL SUPPLIER 
 26-04-2023,Adults,Prestige Care & Support Ltd,Home Care - Private Contractors Payment,1025.79,0.00,COMMERCIAL SUPPLIER 
 12-04-2023,Adults,Matrix SCM Ltd,Agency Staff,1026.32,0.00,COMMERCIAL SUPPLIER 
 23-04-2023,Adults,Homestead Care Service,Home Care - Private Contractors Payment,1026.88,0.00,COMMERCIAL SUPPLIER 
 23-04-2023,Adults,Homestead Care Service,Home Care - Private Contractors Payment,1026.88,0.00,COMMERCIAL SUPPLIER 
 23-04-2023,Adults,Homestead Care Service,Home Care - Private Contractors Payment,1027.61,0.00,COMMERCIAL SUPPLIER 
 25-04-2023,Adults,Prior Care Ltd_a,Home Care - Private Contractors Payment,1027.97,0.00,COMMERCIAL SUPPLIER 
 04-04-2023,Adults,Home Support Services (Havering & Essex) Ltd,Home Care - Private Contractors Payment,1029.26,0.00,COMMERCIAL SUPPLIER 
 04-04-2023,Adults,Home Support Services (Havering & Essex) Ltd,Home Care - Private Contractors Payment,1029.59,0.00,COMMERCIAL SUPPLIER 
 05-04-2023,Adults,Ebony Health Care Services Limited,Home Care - Private Contractors Payment,1030.16,0.00,COMMERCIAL SUPPLIER 
 12-04-2023,Adults,Home Sweet Home Care Ltd,Home Care - Private Contractors Payment,1030.58,0.00,COMMERCIAL SUPPLIER 
 23-04-2023,Adults,Homestead Care Service,Home Care - Private Contractors Payment,1030.88,0.00,COMMERCIAL SUPPLIER 
 12-04-2023,Adults,Care-Away Ltd T/A Care Support,Home Care - Private Contractors Payment,1031.68,0.00,COMMERCIAL SUPPLIER 
 12-04-2023,Adults,Matrix SCM Ltd,Agency Staff,1032.40,0.00,COMMERCIAL SUPPLIER 
 26-04-2023,Adults,Matrix SCM Ltd,Agency Staff,1032.40,0.00,COMMERCIAL SUPPLIER 
 19-04-2023,Adults,Matrix SCM Ltd,Agency Staff,1033.00,0.00,COMMERCIAL SUPPLIER 
 23-04-2023,Adults,Homestead Care Service,Home Care - Private Contractors Payment,1033.07,0.00,COMMERCIAL SUPPLIER 
 11-04-2023,Adults,Rosemont Care Limited,Home Care - Private Contractors Payment,1033.20,0.00,COMMERCIAL SUPPLIER 
 11-04-2023,Adults,Rosemont Care Limited,Home Care - Private Contractors Payment,1033.20,0.00,COMMERCIAL SUPPLIER 
 23-04-2023,Adults,Homestead Care Service,Home Care - Private Contractors Payment,1033.80,0.00,COMMERCIAL SUPPLIER 
 05-04-2023,Adults,One Tree Estates Ltd t/a Ashbrook Nursing Home,Nursing Care Income,1034.04,0.00,COMMERCIAL SUPPLIER 
 05-04-2023,Adults,One Tree Estates Ltd t/a Ashbrook Nursing Home,Nursing Care Income,1034.04,0.00,COMMERCIAL SUPPLIER 
 05-04-2023,Adults,One Tree Estates Ltd t/a Ashbrook Nursing Home,Nursing Care Income,1034.04,0.00,COMMERCIAL SUPPLIER 
 05-04-2023,Adults,One Tree Estates Ltd t/a Ashbrook Nursing Home,Nursing Care Income,1034.04,0.00,COMMERCIAL SUPPLIER 
 05-04-2023,Adults,One Tree Estates Ltd t/a Ashbrook Nursing Home,Nursing Care Income,1034.04,0.00,COMMERCIAL SUPPLIER 
 05-04-2023,Adults,One Tree Estates Ltd t/a Ashbrook Nursing Home,Nursing Care Income,1034.04,0.00,COMMERCIAL SUPPLIER 
 19-04-2023,Adults,Matrix SCM Ltd,Agency Staff,1034.16,0.00,COMMERCIAL SUPPLIER 
 12-04-2023,Adults,Matrix SCM Ltd,Agency Staff,1034.40,0.00,COMMERCIAL SUPPLIER 
 05-04-2023,Adults,Outlook Care - 4 Peel Way,Supported Other Accommodation - Private Contractors Payment,1035.08,0.00,COMMERCIAL SUPPLIER 
 06-04-2023,Adults,Lodge Group Care UK Ltd,Home Care - Private Contractors Payment,1035.17,0.00,COMMERCIAL SUPPLIER 
 05-04-2023,Adults,The Riverside Group,Supported Other Accommodation - Private Contractors Payment,1035.71,0.00, 
 23-04-2023,Adults,Homestead Care Service,Home Care - Private Contractors Payment,1035.98,0.00,COMMERCIAL SUPPLIER 
 23-04-2023,Adults,Homestead Care Service,Home Care - Private Contractors Payment,1035.98,0.00,COMMERCIAL SUPPLIER 
 23-04-2023,Adults,Homestead Care Service,Home Care - Private Contractors Payment,1036.34,0.00,COMMERCIAL SUPPLIER 
 25-04-2023,Adults,Anytime Care 2020_a,Home Care - Private Contractors Payment,1037.44,0.00,COMMERCIAL SUPPLIER 
 25-04-2023,Adults,Prior Care Ltd_a,Home Care - Private Contractors Payment,1037.44,0.00,COMMERCIAL SUPPLIER 
 07-04-2023,Adults,Anytime Care 2020_a,Home Care - Private Contractors Payment,1038.45,0.00,COMMERCIAL SUPPLIER 
 12-04-2023,Adults,Care-Away Ltd T/A Care Support,Home Care - Private Contractors Payment,1040.00,0.00,COMMERCIAL SUPPLIER 
 05-04-2023,Adults,The Cottage Residential Care Home,Residential Placements - Private Contractors Payment,1040.28,0.00,COMMERCIAL SUPPLIER 
 04-04-2023,Adults,Carers Trust East Midlands,Home Care - Private Contractors Payment,1043.04,0.00,COMMERCIAL SUPPLIER 
 12-04-2023,Adults,Home Sweet Home Care Ltd,Home Care - Private Contractors Payment,1045.34,0.00,COMMERCIAL SUPPLIER 
 19-04-2023,Adults,Matrix SCM Ltd,Agency Staff,1045.44,0.00,COMMERCIAL SUPPLIER 
 25-04-2023,Adults,Prior Care Ltd_a,Home Care - Private Contractors Payment,1045.81,0.00,COMMERCIAL SUPPLIER 
 23-04-2023,Adults,Homestead Care Service,Home Care - Private Contractors Payment,1046.17,0.00,COMMERCIAL SUPPLIER 
 05-04-2023,Adults,Ashgate House Ltd_a,Residential Placements - Private Contractors Payment,1046.60,0.00,COMMERCIAL SUPPLIER 
 05-04-2023,Adults,Care Management Group Ltd - The Ridgeway,Supported Other Accommodation - Private Contractors Payment,1047.76,0.00,COMMERCIAL SUPPLIER 
 12-04-2023,Adults,Home Sweet Home Care Ltd,Home Care - Private Contractors Payment,1047.96,0.00,COMMERCIAL SUPPLIER 
 12-04-2023,Adults,Care-Away Ltd T/A Care Support,Home Care - Private Contractors Payment,1048.32,0.00,COMMERCIAL SUPPLIER 
 12-04-2023,Adults,Care-Away Ltd T/A Care Support,Home Care - Private Contractors Payment,1048.32,0.00,COMMERCIAL SUPPLIER 
 28-04-2023,Adults,Carers Trust East Midlands,Home Care - Private Contractors Payment,1048.33,0.00,COMMERCIAL SUPPLIER 
 06-04-2023,Adults,Lodge Group Care UK Ltd,Home Care - Private Contractors Payment,1049.93,0.00,COMMERCIAL SUPPLIER 
 05-04-2023,Adults,Gims Care Solution Ltd_a,Supported Other Accommodation - Private Contractors Payment,1050.00,0.00,NON COMMERCIAL SUPPLIER 
 05-04-2023,Adults,Protecthand Care Ltd ,Supported Other Accommodation - Private Contractors Payment,1050.00,0.00,COMMERCIAL SUPPLIER 
 23-04-2023,Adults,Homestead Care Service,Home Care - Private Contractors Payment,1051.63,0.00,COMMERCIAL SUPPLIER 
 23-04-2023,Adults,Homestead Care Service,Home Care - Private Contractors Payment,1052.36,0.00,COMMERCIAL SUPPLIER 
 04-04-2023,Adults,Home Support Services (Havering & Essex) Ltd,Home Care - Private Contractors Payment,1052.88,0.00,COMMERCIAL SUPPLIER 
 12-04-2023,Adults,Home Sweet Home Care Ltd,Home Care - Private Contractors Payment,1055.18,0.00,COMMERCIAL SUPPLIER 
 23-04-2023,Adults,Homestead Care Service,Home Care - Private Contractors Payment,1055.27,0.00,COMMERCIAL SUPPLIER 
 05-04-2023,Adults,Outreach Support Services Ltd,Supported Other Accommodation - Private Contractors Payment,1058.40,0.00,COMMERCIAL SUPPLIER 
 12-04-2023,Adults,Home Sweet Home Care Ltd,Home Care - Private Contractors Payment,1059.11,0.00,COMMERCIAL SUPPLIER 
 05-04-2023,Adults,The Riverside Group,Supported Other Accommodation - Private Contractors Payment,1060.00,0.00, 
 05-04-2023,Adults,The Riverside Group,Supported Other Accommodation - Private Contractors Payment,1060.00,0.00, 
 05-04-2023,Adults,The Riverside Group,Supported Other Accommodation - Private Contractors Payment,1060.00,0.00, 
 05-04-2023,Adults,The Riverside Group,Supported Other Accommodation - Private Contractors Payment,1060.00,0.00, 
 05-04-2023,Adults,The Riverside Group,Supported Other Accommodation - Private Contractors Payment,1060.00,0.00, 
 05-04-2023,Adults,The Riverside Group,Supported Other Accommodation - Private Contractors Payment,1060.00,0.00, 
 05-04-2023,Adults,The Riverside Group,Supported Other Accommodation - Private Contractors Payment,1060.00,0.00, 
 05-04-2023,Adults,The Riverside Group,Supported Other Accommodation - Private Contractors Payment,1060.00,0.00, 
 05-04-2023,Adults,The Riverside Group,Supported Other Accommodation - Private Contractors Payment,1060.00,0.00, 
 05-04-2023,Adults,The Riverside Group,Supported Other Accommodation - Private Contractors Payment,1060.00,0.00, 
 05-04-2023,Adults,The Riverside Group,Supported Other Accommodation - Private Contractors Payment,1060.00,0.00, 
 05-04-2023,Adults,The Riverside Group,Supported Other Accommodation - Private Contractors Payment,1060.00,0.00, 
 05-04-2023,Adults,The Riverside Group,Supported Other Accommodation - Private Contractors Payment,1060.00,0.00, 
 05-04-2023,Adults,The Riverside Group,Supported Other Accommodation - Private Contractors Payment,1060.00,0.00, 
 05-04-2023,Adults,The Riverside Group,Supported Other Accommodation - Private Contractors Payment,1060.00,0.00, 
 05-04-2023,Adults,The Riverside Group,Supported Other Accommodation - Private Contractors Payment,1060.00,0.00, 
 05-04-2023,Adults,The Riverside Group,Supported Other Accommodation - Private Contractors Payment,1060.00,0.00, 
 05-04-2023,Adults,The Riverside Group,Supported Other Accommodation - Private Contractors Payment,1060.00,0.00, 
 05-04-2023,Adults,The Riverside Group,Supported Other Accommodation - Private Contractors Payment,1060.00,0.00, 
 05-04-2023,Adults,The Riverside Group,Supported Other Accommodation - Private Contractors Payment,1060.00,0.00, 
 05-04-2023,Adults,The Riverside Group,Supported Other Accommodation - Private Contractors Payment,1060.00,0.00, 
 05-04-2023,Adults,The Riverside Group,Supported Other Accommodation - Private Contractors Payment,1060.00,0.00, 
 05-04-2023,Adults,The Riverside Group,Supported Other Accommodation - Private Contractors Payment,1060.00,0.00, 
 05-04-2023,Adults,The Riverside Group,Supported Other Accommodation - Private Contractors Payment,1060.00,0.00, 
 05-04-2023,Adults,The Riverside Group,Supported Other Accommodation - Private Contractors Payment,1060.00,0.00, 
 05-04-2023,Adults,The Riverside Group,Supported Other Accommodation - Private Contractors Payment,1060.00,0.00, 
 05-04-2023,Adults,The Riverside Group,Supported Other Accommodation - Private Contractors Payment,1060.00,0.00, 
 25-04-2023,Adults,Prior Care Ltd_a,Home Care - Private Contractors Payment,1060.00,0.00,COMMERCIAL SUPPLIER 
 11-04-2023,Adults,Morepower Ltd t/a Aqs Homecare,Home Care - Private Contractors Payment,1060.10,0.00,COMMERCIAL SUPPLIER 
 11-04-2023,Adults,Morepower Ltd t/a Aqs Homecare,Home Care - Private Contractors Payment,1061.41,0.00,COMMERCIAL SUPPLIER 
 23-04-2023,Adults,Homestead Care Service,Home Care - Private Contractors Payment,1061.46,0.00,COMMERCIAL SUPPLIER 
 11-04-2023,Adults,Rosemont Care Limited,Home Care - Private Contractors Payment,1062.72,0.00,COMMERCIAL SUPPLIER 
 05-04-2023,Adults,Lodge Lane Care Home Limited,Residential Placements - Private Contractors Payment,1064.00,0.00,COMMERCIAL SUPPLIER 
 25-04-2023,Adults,Anytime Care 2020_a,Home Care - Private Contractors Payment,1064.01,0.00,COMMERCIAL SUPPLIER 
 23-04-2023,Adults,Homestead Care Service,Home Care - Private Contractors Payment,1064.37,0.00,COMMERCIAL SUPPLIER 
 12-04-2023,Adults,Care-Away Ltd T/A Care Support,Home Care - Private Contractors Payment,1064.96,0.00,COMMERCIAL SUPPLIER 
 05-04-2023,Adults,Quality Healthcare Solutions Ltd t/a Kare Plus Romford,Home Care - Private Contractors Payment,1065.34,0.00,COMMERCIAL SUPPLIER 
 12-04-2023,Adults,Home Sweet Home Care Ltd,Home Care - Private Contractors Payment,1066.98,0.00,COMMERCIAL SUPPLIER 
 12-04-2023,Adults,Matrix SCM Ltd,Agency Staff,1068.60,0.00,COMMERCIAL SUPPLIER 
 19-04-2023,Adults,Matrix SCM Ltd,Agency Staff,1068.60,0.00,COMMERCIAL SUPPLIER 
 24-04-2023,Adults,Premier Carewaiting Ltd,Home Care - Private Contractors Payment,1070.19,0.00,COMMERCIAL SUPPLIER 
 05-04-2023,Adults,One Tree Estates Ltd t/a Ashbrook Nursing Home,Nursing Care Income,1070.97,0.00,COMMERCIAL SUPPLIER 
 06-04-2023,Adults,Lodge Group Care UK Ltd,Home Care - Private Contractors Payment,1071.25,0.00,COMMERCIAL SUPPLIER 
 06-04-2023,Adults,Lodge Group Care UK Ltd,Home Care - Private Contractors Payment,1072.23,0.00,COMMERCIAL SUPPLIER 
 04-04-2023,Adults,Home Support Services (Havering & Essex) Ltd,Home Care - Private Contractors Payment,1072.56,0.00,COMMERCIAL SUPPLIER 
 23-04-2023,Adults,Homestead Care Service,Home Care - Private Contractors Payment,1072.75,0.00,COMMERCIAL SUPPLIER 
 30-04-2023,Adults,ECL Person Centred Care,Daycare - Private Contractors Payment,1073.24,0.00,COMMERCIAL SUPPLIER 
 11-04-2023,Adults,Morepower Ltd t/a Aqs Homecare,Home Care - Private Contractors Payment,1074.86,0.00,COMMERCIAL SUPPLIER 
 04-04-2023,Adults,Home Support Services (Havering & Essex) Ltd,Home Care - Private Contractors Payment,1075.18,0.00,COMMERCIAL SUPPLIER 
 23-04-2023,Adults,Homestead Care Service,Home Care - Private Contractors Payment,1075.29,0.00,COMMERCIAL SUPPLIER 
 04-04-2023,Adults,Home Support Services (Havering & Essex) Ltd,Home Care - Private Contractors Payment,1076.17,0.00,COMMERCIAL SUPPLIER 
 04-04-2023,Adults,Home Support Services (Havering & Essex) Ltd,Home Care - Private Contractors Payment,1076.82,0.00,COMMERCIAL SUPPLIER 
 12-04-2023,Adults,Home Sweet Home Care Ltd,Home Care - Private Contractors Payment,1076.82,0.00,COMMERCIAL SUPPLIER 
 04-04-2023,Adults,Home Support Services (Havering & Essex) Ltd,Home Care - Private Contractors Payment,1077.15,0.00,COMMERCIAL SUPPLIER 
 04-04-2023,Adults,Home Support Services (Havering & Essex) Ltd,Home Care - Private Contractors Payment,1077.15,0.00,COMMERCIAL SUPPLIER 
 12-04-2023,Adults,Home Sweet Home Care Ltd,Home Care - Private Contractors Payment,1082.40,0.00,COMMERCIAL SUPPLIER 
 26-04-2023,Adults,Matrix SCM Ltd,Agency Staff,1082.43,0.00,COMMERCIAL SUPPLIER 
 12-04-2023,Adults,Home Sweet Home Care Ltd,Home Care - Private Contractors Payment,1082.73,0.00,COMMERCIAL SUPPLIER 
 12-04-2023,Adults,Home Sweet Home Care Ltd,Home Care - Private Contractors Payment,1083.38,0.00,COMMERCIAL SUPPLIER 
 26-04-2023,Adults,Prestige Care & Support Ltd,Home Care - Private Contractors Payment,1084.39,0.00,COMMERCIAL SUPPLIER 
 12-04-2023,Adults,Home Sweet Home Care Ltd,Home Care - Private Contractors Payment,1086.34,0.00,COMMERCIAL SUPPLIER 
 23-04-2023,Adults,Homestead Care Service,Home Care - Private Contractors Payment,1086.58,0.00,COMMERCIAL SUPPLIER 
 12-04-2023,Adults,Home Sweet Home Care Ltd,Home Care - Private Contractors Payment,1086.99,0.00,COMMERCIAL SUPPLIER 
 04-04-2023,Adults,Home Support Services (Havering & Essex) Ltd,Home Care - Private Contractors Payment,1087.65,0.00,COMMERCIAL SUPPLIER 
 26-04-2023,Adults,Quality Healthcare Solutions Ltd t/a Kare Plus Romford,Home Care - Private Contractors Payment,1088.76,0.00,COMMERCIAL SUPPLIER 
 06-04-2023,Adults,Lodge Group Care UK Ltd,Home Care - Private Contractors Payment,1090.27,0.00,COMMERCIAL SUPPLIER 
 12-04-2023,Adults,Home Sweet Home Care Ltd,Home Care - Private Contractors Payment,1091.26,0.00,COMMERCIAL SUPPLIER 
 05-04-2023,Adults,Lodge Lane Care Home Limited,Respite Care - Private Contractors Payment,1092.14,0.00,COMMERCIAL SUPPLIER 
 12-04-2023,Adults,Home Sweet Home Care Ltd,Home Care - Private Contractors Payment,1092.24,0.00,COMMERCIAL SUPPLIER 
 07-04-2023,Adults,Anytime Care 2020_a,Home Care - Private Contractors Payment,1094.86,0.00,COMMERCIAL SUPPLIER 
 12-04-2023,Adults,Home Sweet Home Care Ltd,Home Care - Private Contractors Payment,1094.86,0.00,COMMERCIAL SUPPLIER 
 12-04-2023,Adults,Home Sweet Home Care Ltd,Home Care - Private Contractors Payment,1094.86,0.00,COMMERCIAL SUPPLIER 
 12-04-2023,Adults,Home Sweet Home Care Ltd,Home Care - Private Contractors Payment,1094.86,0.00,COMMERCIAL SUPPLIER 
 26-04-2023,Adults,Quality Healthcare Solutions Ltd t/a Kare Plus Romford,Home Care - Private Contractors Payment,1094.95,0.00,COMMERCIAL SUPPLIER 
 19-04-2023,Adults,Banner Group Limited,Stationery,1095.30,0.00,COMMERCIAL SUPPLIER 
 19-04-2023,Adults,Banner Group Limited,Stationery,1095.30,0.00,COMMERCIAL SUPPLIER 
 12-04-2023,Adults,Home Sweet Home Care Ltd,Home Care - Private Contractors Payment,1096.50,0.00,COMMERCIAL SUPPLIER 
 12-04-2023,Adults,Home Sweet Home Care Ltd,Home Care - Private Contractors Payment,1096.50,0.00,COMMERCIAL SUPPLIER 
 12-04-2023,Adults,Home Sweet Home Care Ltd,Home Care - Private Contractors Payment,1097.16,0.00,COMMERCIAL SUPPLIER 
 12-04-2023,Adults,Home Sweet Home Care Ltd,Home Care - Private Contractors Payment,1098.14,0.00,COMMERCIAL SUPPLIER 
 12-04-2023,Adults,Home Sweet Home Care Ltd,Home Care - Private Contractors Payment,1098.47,0.00,COMMERCIAL SUPPLIER 
 23-04-2023,Adults,Westminster Homecare Ltd_a,Home Care - Private Contractors Payment,1099.31,0.00,COMMERCIAL SUPPLIER 
 05-04-2023,Adults,Quality Healthcare Solutions Ltd t/a Kare Plus Romford,Home Care - Private Contractors Payment,1101.10,0.00,COMMERCIAL SUPPLIER 
 04-04-2023,Adults,Home Support Services (Havering & Essex) Ltd,Home Care - Private Contractors Payment,1102.08,0.00,COMMERCIAL SUPPLIER 
 04-04-2023,Adults,Home Support Services (Havering & Essex) Ltd,Home Care - Private Contractors Payment,1102.08,0.00,COMMERCIAL SUPPLIER 
 04-04-2023,Adults,Home Support Services (Havering & Essex) Ltd,Home Care - Private Contractors Payment,1102.08,0.00,COMMERCIAL SUPPLIER 
 04-04-2023,Adults,Home Support Services (Havering & Essex) Ltd,Home Care - Private Contractors Payment,1102.08,0.00,COMMERCIAL SUPPLIER 
 04-04-2023,Adults,Home Support Services (Havering & Essex) Ltd,Home Care - Private Contractors Payment,1102.08,0.00,COMMERCIAL SUPPLIER 
 04-04-2023,Adults,Home Support Services (Havering & Essex) Ltd,Home Care - Private Contractors Payment,1102.08,0.00,COMMERCIAL SUPPLIER 
 04-04-2023,Adults,Home Support Services (Havering & Essex) Ltd,Home Care - Private Contractors Payment,1102.08,0.00,COMMERCIAL SUPPLIER 
 06-04-2023,Adults,Lodge Group Care UK Ltd,Home Care - Private Contractors Payment,1102.08,0.00,COMMERCIAL SUPPLIER 
 06-04-2023,Adults,Lodge Group Care UK Ltd,Home Care - Private Contractors Payment,1102.08,0.00,COMMERCIAL SUPPLIER 
 06-04-2023,Adults,Lodge Group Care UK Ltd,Home Care - Private Contractors Payment,1102.08,0.00,COMMERCIAL SUPPLIER 
 06-04-2023,Adults,Lodge Group Care UK Ltd,Home Care - Private Contractors Payment,1102.08,0.00,COMMERCIAL SUPPLIER 
 06-04-2023,Adults,Lodge Group Care UK Ltd,Home Care - Private Contractors Payment,1102.08,0.00,COMMERCIAL SUPPLIER 
 06-04-2023,Adults,Lodge Group Care UK Ltd,Home Care - Private Contractors Payment,1102.08,0.00,COMMERCIAL SUPPLIER 
 06-04-2023,Adults,Lodge Group Care UK Ltd,Home Care - Private Contractors Payment,1102.08,0.00,COMMERCIAL SUPPLIER 
 06-04-2023,Adults,Lodge Group Care UK Ltd,Home Care - Private Contractors Payment,1102.08,0.00,COMMERCIAL SUPPLIER 
 06-04-2023,Adults,Lodge Group Care UK Ltd,Home Care - Private Contractors Payment,1102.08,0.00,COMMERCIAL SUPPLIER 
 11-04-2023,Adults,Rosemont Care Limited,Home Care - Private Contractors Payment,1102.08,0.00,COMMERCIAL SUPPLIER 
 11-04-2023,Adults,Rosemont Care Limited,Home Care - Private Contractors Payment,1102.08,0.00,COMMERCIAL SUPPLIER 
 11-04-2023,Adults,Rosemont Care Limited,Home Care - Private Contractors Payment,1102.08,0.00,COMMERCIAL SUPPLIER 
 11-04-2023,Adults,Rosemont Care Limited,Home Care - Private Contractors Payment,1102.08,0.00,COMMERCIAL SUPPLIER 
 11-04-2023,Adults,Rosemont Care Limited,Home Care - Private Contractors Payment,1102.08,0.00,COMMERCIAL SUPPLIER 
 11-04-2023,Adults,Rosemont Care Limited,Home Care - Private Contractors Payment,1102.08,0.00,COMMERCIAL SUPPLIER 
 12-04-2023,Adults,Home Sweet Home Care Ltd,Home Care - Private Contractors Payment,1102.08,0.00,COMMERCIAL SUPPLIER 
 14-04-2023,Adults,Passion Tree Care Services Ltd,Home Care - Private Contractors Payment,1102.08,0.00,COMMERCIAL SUPPLIER 
 14-04-2023,Adults,Passion Tree Care Services Ltd,Home Care - Private Contractors Payment,1102.08,0.00,COMMERCIAL SUPPLIER 
 04-04-2023,Adults,Home Support Services (Havering & Essex) Ltd,Home Care - Private Contractors Payment,1102.41,0.00,COMMERCIAL SUPPLIER 
 04-04-2023,Adults,Home Support Services (Havering & Essex) Ltd,Home Care - Private Contractors Payment,1102.41,0.00,COMMERCIAL SUPPLIER 
 04-04-2023,Adults,Home Support Services (Havering & Essex) Ltd,Home Care - Private Contractors Payment,1102.41,0.00,COMMERCIAL SUPPLIER 
 06-04-2023,Adults,Lodge Group Care UK Ltd,Home Care - Private Contractors Payment,1102.41,0.00,COMMERCIAL SUPPLIER 
 06-04-2023,Adults,Lodge Group Care UK Ltd,Home Care - Private Contractors Payment,1102.41,0.00,COMMERCIAL SUPPLIER 
 04-04-2023,Adults,Home Support Services (Havering & Essex) Ltd,Home Care - Private Contractors Payment,1102.74,0.00,COMMERCIAL SUPPLIER 
 06-04-2023,Adults,Lodge Group Care UK Ltd,Home Care - Private Contractors Payment,1102.74,0.00,COMMERCIAL SUPPLIER 
 04-04-2023,Adults,Home Support Services (Havering & Essex) Ltd,Home Care - Private Contractors Payment,1103.06,0.00,COMMERCIAL SUPPLIER 
 12-04-2023,Adults,Home Sweet Home Care Ltd,Home Care - Private Contractors Payment,1103.06,0.00,COMMERCIAL SUPPLIER 
 12-04-2023,Adults,Home Sweet Home Care Ltd,Home Care - Private Contractors Payment,1103.06,0.00,COMMERCIAL SUPPLIER 
 12-04-2023,Adults,Home Sweet Home Care Ltd,Home Care - Private Contractors Payment,1103.06,0.00,COMMERCIAL SUPPLIER 
 04-04-2023,Adults,Home Support Services (Havering & Essex) Ltd,Home Care - Private Contractors Payment,1103.39,0.00,COMMERCIAL SUPPLIER 
 04-04-2023,Adults,Home Support Services (Havering & Essex) Ltd,Home Care - Private Contractors Payment,1103.39,0.00,COMMERCIAL SUPPLIER 
 12-04-2023,Adults,Home Sweet Home Care Ltd,Home Care - Private Contractors Payment,1103.72,0.00,COMMERCIAL SUPPLIER 
 04-04-2023,Adults,Home Support Services (Havering & Essex) Ltd,Home Care - Private Contractors Payment,1104.38,0.00,COMMERCIAL SUPPLIER 
 04-04-2023,Adults,Home Support Services (Havering & Essex) Ltd,Home Care - Private Contractors Payment,1104.38,0.00,COMMERCIAL SUPPLIER 
 04-04-2023,Adults,Home Support Services (Havering & Essex) Ltd,Home Care - Private Contractors Payment,1104.70,0.00,COMMERCIAL SUPPLIER 
 04-04-2023,Adults,Home Support Services (Havering & Essex) Ltd,Home Care - Private Contractors Payment,1105.03,0.00,COMMERCIAL SUPPLIER 
 04-04-2023,Adults,Home Support Services (Havering & Essex) Ltd,Home Care - Private Contractors Payment,1105.03,0.00,COMMERCIAL SUPPLIER 
 19-04-2023,Adults,Matrix SCM Ltd,Agency Staff,1105.66,0.00,COMMERCIAL SUPPLIER 
 12-04-2023,Adults,Home Sweet Home Care Ltd,Home Care - Private Contractors Payment,1105.69,0.00,COMMERCIAL SUPPLIER 
 23-04-2023,Adults,Homestead Care Service,Home Care - Private Contractors Payment,1106.96,0.00,COMMERCIAL SUPPLIER 
 07-04-2023,Adults,Anytime Care 2020_a,Home Care - Private Contractors Payment,1107.00,0.00,COMMERCIAL SUPPLIER 
 12-04-2023,Adults,Home Sweet Home Care Ltd,Home Care - Private Contractors Payment,1107.00,0.00,COMMERCIAL SUPPLIER 
 04-04-2023,Adults,Home Support Services (Havering & Essex) Ltd,Home Care - Private Contractors Payment,1107.33,0.00,COMMERCIAL SUPPLIER 
 04-04-2023,Adults,Home Support Services (Havering & Essex) Ltd,Home Care - Private Contractors Payment,1107.66,0.00,COMMERCIAL SUPPLIER 
 04-04-2023,Adults,Home Support Services (Havering & Essex) Ltd,Home Care - Private Contractors Payment,1107.66,0.00,COMMERCIAL SUPPLIER 
 06-04-2023,Adults,Lodge Group Care UK Ltd,Home Care - Private Contractors Payment,1107.66,0.00,COMMERCIAL SUPPLIER 
 04-04-2023,Adults,Home Support Services (Havering & Essex) Ltd,Home Care - Private Contractors Payment,1107.98,0.00,COMMERCIAL SUPPLIER 
 04-04-2023,Adults,Home Support Services (Havering & Essex) Ltd,Home Care - Private Contractors Payment,1107.98,0.00,COMMERCIAL SUPPLIER 
 06-04-2023,Adults,Lodge Group Care UK Ltd,Home Care - Private Contractors Payment,1107.98,0.00,COMMERCIAL SUPPLIER 
 06-04-2023,Adults,Lodge Group Care UK Ltd,Home Care - Private Contractors Payment,1108.31,0.00,COMMERCIAL SUPPLIER 
 04-04-2023,Adults,Home Support Services (Havering & Essex) Ltd,Home Care - Private Contractors Payment,1108.97,0.00,COMMERCIAL SUPPLIER 
 04-04-2023,Adults,Home Support Services (Havering & Essex) Ltd,Home Care - Private Contractors Payment,1109.30,0.00,COMMERCIAL SUPPLIER 
 04-04-2023,Adults,Home Support Services (Havering & Essex) Ltd,Home Care - Private Contractors Payment,1110.28,0.00,COMMERCIAL SUPPLIER 
 04-04-2023,Adults,Home Support Services (Havering & Essex) Ltd,Home Care - Private Contractors Payment,1110.28,0.00,COMMERCIAL SUPPLIER 
 04-04-2023,Adults,Home Support Services (Havering & Essex) Ltd,Home Care - Private Contractors Payment,1110.61,0.00,COMMERCIAL SUPPLIER 
 12-04-2023,Adults,Home Sweet Home Care Ltd,Home Care - Private Contractors Payment,1110.61,0.00,COMMERCIAL SUPPLIER 
 12-04-2023,Adults,Home Sweet Home Care Ltd,Home Care - Private Contractors Payment,1110.61,0.00,COMMERCIAL SUPPLIER 
 04-04-2023,Adults,Home Support Services (Havering & Essex) Ltd,Home Care - Private Contractors Payment,1110.94,0.00,COMMERCIAL SUPPLIER 
 11-04-2023,Adults,Morepower Ltd t/a Aqs Homecare,Home Care - Private Contractors Payment,1110.94,0.00,COMMERCIAL SUPPLIER 
 12-04-2023,Adults,Home Sweet Home Care Ltd,Home Care - Private Contractors Payment,1110.94,0.00,COMMERCIAL SUPPLIER 
 23-04-2023,Adults,Homestead Care Service,Home Care - Private Contractors Payment,1111.33,0.00,COMMERCIAL SUPPLIER 
 06-04-2023,Adults,Lodge Group Care UK Ltd,Home Care - Private Contractors Payment,1111.59,0.00,COMMERCIAL SUPPLIER 
 12-04-2023,Adults,Home Sweet Home Care Ltd,Home Care - Private Contractors Payment,1111.59,0.00,COMMERCIAL SUPPLIER 
 11-04-2023,Adults,Morepower Ltd t/a Aqs Homecare,Home Care - Private Contractors Payment,1112.90,0.00,COMMERCIAL SUPPLIER 
 04-04-2023,Adults,Home Support Services (Havering & Essex) Ltd,Home Care - Private Contractors Payment,1113.56,0.00,COMMERCIAL SUPPLIER 
 04-04-2023,Adults,Home Support Services (Havering & Essex) Ltd,Home Care - Private Contractors Payment,1113.56,0.00,COMMERCIAL SUPPLIER 
 06-04-2023,Adults,Lodge Group Care UK Ltd,Home Care - Private Contractors Payment,1113.56,0.00,COMMERCIAL SUPPLIER 
 12-04-2023,Adults,Home Sweet Home Care Ltd,Home Care - Private Contractors Payment,1113.56,0.00,COMMERCIAL SUPPLIER 
 23-04-2023,Adults,Homestead Care Service,Home Care - Private Contractors Payment,1113.88,0.00,COMMERCIAL SUPPLIER 
 04-04-2023,Adults,Home Support Services (Havering & Essex) Ltd,Home Care - Private Contractors Payment,1114.22,0.00,COMMERCIAL SUPPLIER 
 04-04-2023,Adults,Home Support Services (Havering & Essex) Ltd,Home Care - Private Contractors Payment,1114.22,0.00,COMMERCIAL SUPPLIER 
 06-04-2023,Adults,Lodge Group Care UK Ltd,Home Care - Private Contractors Payment,1114.54,0.00,COMMERCIAL SUPPLIER 
 19-04-2023,Adults,Matrix SCM Ltd,Agency Staff,1114.63,0.00,COMMERCIAL SUPPLIER 
 19-04-2023,Adults,Matrix SCM Ltd,Agency Staff,1114.63,0.00,COMMERCIAL SUPPLIER 
 05-04-2023,Adults,Quality Healthcare Solutions Ltd t/a Kare Plus Romford,Home Care - Private Contractors Payment,1114.87,0.00,COMMERCIAL SUPPLIER 
 26-04-2023,Adults,Matrix SCM Ltd,Agency Staff,1115.36,0.00,COMMERCIAL SUPPLIER 
 23-04-2023,Adults,Homestead Care Service,Home Care - Private Contractors Payment,1116.06,0.00,COMMERCIAL SUPPLIER 
 23-04-2023,Adults,Homestead Care Service,Home Care - Private Contractors Payment,1116.06,0.00,COMMERCIAL SUPPLIER 
 12-04-2023,Adults,Home Sweet Home Care Ltd,Home Care - Private Contractors Payment,1116.18,0.00,COMMERCIAL SUPPLIER 
 12-04-2023,Adults,Home Sweet Home Care Ltd,Home Care - Private Contractors Payment,1116.84,0.00,COMMERCIAL SUPPLIER 
 12-04-2023,Adults,Home Sweet Home Care Ltd,Home Care - Private Contractors Payment,1118.15,0.00,COMMERCIAL SUPPLIER 
 04-04-2023,Adults,Home Support Services (Havering & Essex) Ltd,Home Care - Private Contractors Payment,1121.43,0.00,COMMERCIAL SUPPLIER 
 04-04-2023,Adults,Home Support Services (Havering & Essex) Ltd,Home Care - Private Contractors Payment,1123.07,0.00,COMMERCIAL SUPPLIER 
 06-04-2023,Adults,Lodge Group Care UK Ltd,Home Care - Private Contractors Payment,1123.07,0.00,COMMERCIAL SUPPLIER 
 11-04-2023,Adults,Morepower Ltd t/a Aqs Homecare,Home Care - Private Contractors Payment,1123.40,0.00,COMMERCIAL SUPPLIER 
 11-04-2023,Adults,Morepower Ltd t/a Aqs Homecare,Home Care - Private Contractors Payment,1123.73,0.00,COMMERCIAL SUPPLIER 
 04-04-2023,Adults,Home Support Services (Havering & Essex) Ltd,Home Care - Private Contractors Payment,1124.06,0.00,COMMERCIAL SUPPLIER 
 06-04-2023,Adults,Lodge Group Care UK Ltd,Home Care - Private Contractors Payment,1124.38,0.00,COMMERCIAL SUPPLIER 
 04-04-2023,Adults,Home Support Services (Havering & Essex) Ltd,Home Care - Private Contractors Payment,1125.04,0.00,COMMERCIAL SUPPLIER 
 04-04-2023,Adults,Home Support Services (Havering & Essex) Ltd,Home Care - Private Contractors Payment,1125.37,0.00,COMMERCIAL SUPPLIER 
 04-04-2023,Adults,Home Support Services (Havering & Essex) Ltd,Home Care - Private Contractors Payment,1125.37,0.00,COMMERCIAL SUPPLIER 
 06-04-2023,Adults,Lodge Group Care UK Ltd,Home Care - Private Contractors Payment,1125.70,0.00,COMMERCIAL SUPPLIER 
 26-04-2023,Adults,Quality Healthcare Solutions Ltd t/a Kare Plus Romford,Home Care - Private Contractors Payment,1126.62,0.00,COMMERCIAL SUPPLIER 
 07-04-2023,Adults,Anytime Care 2020_a,Home Care - Private Contractors Payment,1126.68,0.00,COMMERCIAL SUPPLIER 
 04-04-2023,Adults,Home Support Services (Havering & Essex) Ltd,Home Care - Private Contractors Payment,1127.34,0.00,COMMERCIAL SUPPLIER 
 06-04-2023,Adults,Lodge Group Care UK Ltd,Home Care - Private Contractors Payment,1127.34,0.00,COMMERCIAL SUPPLIER 
 24-04-2023,Adults,Headway East London,Daycare - Private Contractors Payment,1128.00,0.00,COMMERCIAL SUPPLIER 
 04-04-2023,Adults,Home Support Services (Havering & Essex) Ltd,Home Care - Private Contractors Payment,1128.98,0.00,COMMERCIAL SUPPLIER 
 04-04-2023,Adults,Home Support Services (Havering & Essex) Ltd,Home Care - Private Contractors Payment,1129.96,0.00,COMMERCIAL SUPPLIER 
 24-04-2023,Adults,London Homecare Ltd,Home Care - Private Contractors Payment,1130.26,0.00,COMMERCIAL SUPPLIER 
 24-04-2023,Adults,London Homecare Ltd,Home Care - Private Contractors Payment,1130.26,0.00,COMMERCIAL SUPPLIER 
 24-04-2023,Adults,London Homecare Ltd,Home Care - Private Contractors Payment,1130.26,0.00,COMMERCIAL SUPPLIER 
 24-04-2023,Adults,London Homecare Ltd,Home Care - Private Contractors Payment,1130.26,0.00,COMMERCIAL SUPPLIER 
 24-04-2023,Adults,London Homecare Ltd,Home Care - Private Contractors Payment,1130.26,0.00,COMMERCIAL SUPPLIER 
 24-04-2023,Adults,Outreach Support Services Ltd,Home Care - Private Contractors Payment,1130.26,0.00,COMMERCIAL SUPPLIER 
 24-04-2023,Adults,Outreach Support Services Ltd,Home Care - Private Contractors Payment,1130.26,0.00,COMMERCIAL SUPPLIER 
 24-04-2023,Adults,Outreach Support Services Ltd,Home Care - Private Contractors Payment,1130.26,0.00,COMMERCIAL SUPPLIER 
 06-04-2023,Adults,Lodge Group Care UK Ltd,Home Care - Private Contractors Payment,1131.27,0.00,COMMERCIAL SUPPLIER 
 11-04-2023,Adults,Morepower Ltd t/a Aqs Homecare,Home Care - Private Contractors Payment,1131.27,0.00,COMMERCIAL SUPPLIER 
 12-04-2023,Adults,Home Sweet Home Care Ltd,Home Care - Private Contractors Payment,1131.27,0.00,COMMERCIAL SUPPLIER 
 12-04-2023,Adults,Home Sweet Home Care Ltd,Home Care - Private Contractors Payment,1131.27,0.00,COMMERCIAL SUPPLIER 
 12-04-2023,Adults,Home Sweet Home Care Ltd,Home Care - Private Contractors Payment,1131.93,0.00,COMMERCIAL SUPPLIER 
 11-04-2023,Adults,Morepower Ltd t/a Aqs Homecare,Home Care - Private Contractors Payment,1132.26,0.00,COMMERCIAL SUPPLIER 
 06-04-2023,Adults,Lodge Group Care UK Ltd,Home Care - Private Contractors Payment,1133.57,0.00,COMMERCIAL SUPPLIER 
 23-04-2023,Adults,Homestead Care Service,Home Care - Private Contractors Payment,1133.90,0.00,COMMERCIAL SUPPLIER 
 11-04-2023,Adults,Morepower Ltd t/a Aqs Homecare,Home Care - Private Contractors Payment,1134.22,0.00,COMMERCIAL SUPPLIER 
 23-04-2023,Adults,Homestead Care Service,Home Care - Private Contractors Payment,1134.63,0.00,COMMERCIAL SUPPLIER 
 06-04-2023,Adults,Lodge Group Care UK Ltd,Home Care - Private Contractors Payment,1134.88,0.00,COMMERCIAL SUPPLIER 
 04-04-2023,Adults,Home Support Services (Havering & Essex) Ltd,Home Care - Private Contractors Payment,1135.54,0.00,COMMERCIAL SUPPLIER 
 04-04-2023,Adults,Home Support Services (Havering & Essex) Ltd,Home Care - Private Contractors Payment,1138.49,0.00,COMMERCIAL SUPPLIER 
 23-04-2023,Adults,Homestead Care Service,Home Care - Private Contractors Payment,1138.63,0.00,COMMERCIAL SUPPLIER 
 06-04-2023,Adults,Lodge Group Care UK Ltd,Home Care - Private Contractors Payment,1139.47,0.00,COMMERCIAL SUPPLIER 
 11-04-2023,Adults,Morepower Ltd t/a Aqs Homecare,Home Care - Private Contractors Payment,1140.13,0.00,COMMERCIAL SUPPLIER 
 06-04-2023,Adults,Lodge Group Care UK Ltd,Home Care - Private Contractors Payment,1141.77,0.00,COMMERCIAL SUPPLIER 
 04-04-2023,Adults,Home Support Services (Havering & Essex) Ltd,Home Care - Private Contractors Payment,1143.08,0.00,COMMERCIAL SUPPLIER 
 23-04-2023,Adults,Westminster Homecare Ltd_a,Home Care - Private Contractors Payment,1143.36,0.00,COMMERCIAL SUPPLIER 
 04-04-2023,Adults,Home Support Services (Havering & Essex) Ltd,Home Care - Private Contractors Payment,1144.39,0.00,COMMERCIAL SUPPLIER 
 11-04-2023,Adults,Morepower Ltd t/a Aqs Homecare,Home Care - Private Contractors Payment,1144.39,0.00,COMMERCIAL SUPPLIER 
 06-04-2023,Adults,Lodge Group Care UK Ltd,Home Care - Private Contractors Payment,1148.66,0.00,COMMERCIAL SUPPLIER 
 06-04-2023,Adults,Lodge Group Care UK Ltd,Home Care - Private Contractors Payment,1149.31,0.00,COMMERCIAL SUPPLIER 
 07-04-2023,Adults,Anytime Care 2020_a,Home Care - Private Contractors Payment,1149.64,0.00,COMMERCIAL SUPPLIER 
 06-04-2023,Adults,Lodge Group Care UK Ltd,Home Care - Private Contractors Payment,1153.58,0.00,COMMERCIAL SUPPLIER 
 06-04-2023,Adults,Lodge Group Care UK Ltd,Home Care - Private Contractors Payment,1154.56,0.00,COMMERCIAL SUPPLIER 
 06-04-2023,Adults,Lodge Group Care UK Ltd,Home Care - Private Contractors Payment,1154.56,0.00,COMMERCIAL SUPPLIER 
 11-04-2023,Adults,Treal Care Limited,Home Care - Private Contractors Payment,1155.00,0.00,COMMERCIAL SUPPLIER 
 19-04-2023,Adults,Matrix SCM Ltd,Agency Staff,1155.08,0.00,COMMERCIAL SUPPLIER 
 12-04-2023,Adults,Matrix SCM Ltd,Agency Staff,1157.12,0.00,COMMERCIAL SUPPLIER 
 19-04-2023,Adults,Matrix SCM Ltd,Agency Staff,1157.12,0.00,COMMERCIAL SUPPLIER 
 26-04-2023,Adults,Matrix SCM Ltd,Agency Staff,1157.12,0.00,COMMERCIAL SUPPLIER 
 04-04-2023,Adults,Home Support Services (Havering & Essex) Ltd,Home Care - Private Contractors Payment,1158.82,0.00,COMMERCIAL SUPPLIER 
 05-04-2023,Adults,The Riverside Group,Supported Other Accommodation - Private Contractors Payment,1160.00,0.00, 
 05-04-2023,Adults,The Riverside Group,Supported Other Accommodation - Private Contractors Payment,1160.00,0.00, 
 05-04-2023,Adults,The Riverside Group,Supported Other Accommodation - Private Contractors Payment,1160.00,0.00, 
 05-04-2023,Adults,The Riverside Group,Supported Other Accommodation - Private Contractors Payment,1160.00,0.00, 
 05-04-2023,Adults,The Riverside Group,Supported Other Accommodation - Private Contractors Payment,1160.00,0.00, 
 05-04-2023,Adults,The Riverside Group,Supported Other Accommodation - Private Contractors Payment,1160.00,0.00, 
 05-04-2023,Adults,The Riverside Group,Supported Other Accommodation - Private Contractors Payment,1160.00,0.00, 
 05-04-2023,Adults,The Riverside Group,Supported Other Accommodation - Private Contractors Payment,1160.00,0.00, 
 05-04-2023,Adults,The Riverside Group,Supported Other Accommodation - Private Contractors Payment,1160.00,0.00, 
 05-04-2023,Adults,The Riverside Group,Supported Other Accommodation - Private Contractors Payment,1160.00,0.00, 
 05-04-2023,Adults,The Riverside Group,Supported Other Accommodation - Private Contractors Payment,1160.00,0.00, 
 05-04-2023,Adults,The Riverside Group,Supported Other Accommodation - Private Contractors Payment,1160.00,0.00, 
 05-04-2023,Adults,The Riverside Group,Supported Other Accommodation - Private Contractors Payment,1160.00,0.00, 
 05-04-2023,Adults,The Riverside Group,Supported Other Accommodation - Private Contractors Payment,1160.00,0.00, 
 05-04-2023,Adults,The Riverside Group,Supported Other Accommodation - Private Contractors Payment,1160.00,0.00, 
 05-04-2023,Adults,The Riverside Group,Supported Other Accommodation - Private Contractors Payment,1160.00,0.00, 
 05-04-2023,Adults,The Riverside Group,Supported Other Accommodation - Private Contractors Payment,1160.00,0.00, 
 24-04-2023,Adults,London Homecare Ltd,Home Care - Private Contractors Payment,1163.01,0.00,COMMERCIAL SUPPLIER 
 25-04-2023,Adults,Prior Care Ltd_a,Home Care - Private Contractors Payment,1163.02,0.00,COMMERCIAL SUPPLIER 
 12-04-2023,Adults,Care-Away Ltd T/A Care Support,Home Care - Private Contractors Payment,1164.80,0.00,COMMERCIAL SUPPLIER 
 05-04-2023,Adults,Quality Healthcare Solutions Ltd t/a Kare Plus Romford,Home Care - Private Contractors Payment,1165.06,0.00,COMMERCIAL SUPPLIER 
 11-04-2023,Adults,Morepower Ltd t/a Aqs Homecare,Home Care - Private Contractors Payment,1168.99,0.00,COMMERCIAL SUPPLIER 
 05-04-2023,Adults,Matrix SCM Ltd,Agency Staff,1169.28,0.00,COMMERCIAL SUPPLIER 
 26-04-2023,Adults,Matrix SCM Ltd,Agency Staff,1169.28,0.00,COMMERCIAL SUPPLIER 
 11-04-2023,Adults,Morepower Ltd t/a Aqs Homecare,Home Care - Private Contractors Payment,1169.65,0.00,COMMERCIAL SUPPLIER 
 04-04-2023,Adults,Home Support Services (Havering & Essex) Ltd,Home Care - Private Contractors Payment,1172.60,0.00,COMMERCIAL SUPPLIER 
 12-04-2023,Adults,Home Sweet Home Care Ltd,Home Care - Private Contractors Payment,1172.60,0.00,COMMERCIAL SUPPLIER 
 04-04-2023,Adults,Home Support Services (Havering & Essex) Ltd,Home Care - Private Contractors Payment,1173.91,0.00,COMMERCIAL SUPPLIER 
 05-04-2023,Adults,Footsteps Support Ltd_a,Supported Other Accommodation - Private Contractors Payment,1176.00,0.00,COMMERCIAL SUPPLIER 
 12-04-2023,Adults,Home Sweet Home Care Ltd,Home Care - Private Contractors Payment,1176.86,0.00,COMMERCIAL SUPPLIER 
 26-04-2023,Adults,Quality Healthcare Solutions Ltd t/a Kare Plus Romford,Home Care - Private Contractors Payment,1180.13,0.00,COMMERCIAL SUPPLIER 
 14-04-2023,Adults,Passion Tree Care Services Ltd,Home Care - Private Contractors Payment,1180.80,0.00,COMMERCIAL SUPPLIER 
 05-04-2023,Adults,Matrix SCM Ltd,Agency Staff,1181.15,0.00,COMMERCIAL SUPPLIER 
 26-04-2023,Adults,Matrix SCM Ltd,Agency Staff,1181.15,0.00,COMMERCIAL SUPPLIER 
 04-04-2023,Adults,Home Support Services (Havering & Essex) Ltd,Home Care - Private Contractors Payment,1185.06,0.00,COMMERCIAL SUPPLIER 
 05-04-2023,Adults,Matrix SCM Ltd,Agency Staff,1189.65,0.00,COMMERCIAL SUPPLIER 
 11-04-2023,Adults,Morepower Ltd t/a Aqs Homecare,Home Care - Private Contractors Payment,1189.66,0.00,COMMERCIAL SUPPLIER 
 11-04-2023,Adults,Morepower Ltd t/a Aqs Homecare,Home Care - Private Contractors Payment,1189.66,0.00,COMMERCIAL SUPPLIER 
 05-04-2023,Adults,Quality Healthcare Solutions Ltd t/a Kare Plus Romford,Home Care - Private Contractors Payment,1189.98,0.00,COMMERCIAL SUPPLIER 
 05-04-2023,Adults,Lodge Lane Care Home Limited,Residential Placements - Private Contractors Payment,1191.43,0.00,COMMERCIAL SUPPLIER 
 05-04-2023,Adults,Optimal Care Services Ltd,Supported Other Accommodation - Private Contractors Payment,1193.28,0.00,COMMERCIAL SUPPLIER 
 23-04-2023,Adults,Westminster Homecare Ltd_a,Home Care - Private Contractors Payment,1195.76,0.00,COMMERCIAL SUPPLIER 
 24-04-2023,Adults,London Homecare Ltd,Home Care - Private Contractors Payment,1195.77,0.00,COMMERCIAL SUPPLIER 
 12-04-2023,Adults,Matrix SCM Ltd,Agency Staff,1199.36,0.00,COMMERCIAL SUPPLIER 
 05-04-2023,Adults,The Riverside Group,Supported Other Accommodation - Private Contractors Payment,1201.43,0.00, 
 04-04-2023,Adults,Home Support Services (Havering & Essex) Ltd,Home Care - Private Contractors Payment,1204.74,0.00,COMMERCIAL SUPPLIER 
 26-04-2023,Adults,Matrix SCM Ltd,Agency Staff,1205.63,0.00,COMMERCIAL SUPPLIER 
 05-04-2023,Adults,Independent Community Support Ltd t/a Wingletye Lodge ,Supported Other Accommodation - Private Contractors Payment,1209.60,0.00,COMMERCIAL SUPPLIER 
 05-04-2023,Adults,Matrix SCM Ltd,Agency Staff,1209.60,0.00,COMMERCIAL SUPPLIER 
 26-04-2023,Adults,Matrix SCM Ltd,Agency Staff,1209.60,0.00,COMMERCIAL SUPPLIER 
 06-04-2023,Adults,Lodge Group Care UK Ltd,Home Care - Private Contractors Payment,1209.99,0.00,COMMERCIAL SUPPLIER 
 04-04-2023,Adults,Home Support Services (Havering & Essex) Ltd,Home Care - Private Contractors Payment,1210.32,0.00,COMMERCIAL SUPPLIER 
 11-04-2023,Adults,Morepower Ltd t/a Aqs Homecare,Home Care - Private Contractors Payment,1210.65,0.00,COMMERCIAL SUPPLIER 
 11-04-2023,Adults,Morepower Ltd t/a Aqs Homecare,Home Care - Private Contractors Payment,1210.65,0.00,COMMERCIAL SUPPLIER 
 26-04-2023,Adults,Quality Healthcare Solutions Ltd t/a Kare Plus Romford,Home Care - Private Contractors Payment,1211.06,0.00,COMMERCIAL SUPPLIER 
 12-04-2023,Adults,Home Sweet Home Care Ltd,Home Care - Private Contractors Payment,1211.30,0.00,COMMERCIAL SUPPLIER 
 26-04-2023,Adults,Quality Healthcare Solutions Ltd t/a Kare Plus Romford,Home Care - Private Contractors Payment,1212.52,0.00,COMMERCIAL SUPPLIER 
 06-04-2023,Adults,Lodge Group Care UK Ltd,Home Care - Private Contractors Payment,1215.90,0.00,COMMERCIAL SUPPLIER 
 12-04-2023,Adults,Home Sweet Home Care Ltd,Home Care - Private Contractors Payment,1218.19,0.00,COMMERCIAL SUPPLIER 
 04-04-2023,Adults,Carers Trust East Midlands,Home Care - Private Contractors Payment,1220.16,0.00,COMMERCIAL SUPPLIER 
 11-04-2023,Adults,Morepower Ltd t/a Aqs Homecare,Home Care - Private Contractors Payment,1221.80,0.00,COMMERCIAL SUPPLIER 
 11-04-2023,Adults,Morepower Ltd t/a Aqs Homecare,Home Care - Private Contractors Payment,1221.80,0.00,COMMERCIAL SUPPLIER 
 12-04-2023,Adults,Home Sweet Home Care Ltd,Home Care - Private Contractors Payment,1225.41,0.00,COMMERCIAL SUPPLIER 
 26-04-2023,Adults,Matrix SCM Ltd,Agency Staff,1225.69,0.00,COMMERCIAL SUPPLIER 
 11-04-2023,Adults,Morepower Ltd t/a Aqs Homecare,Home Care - Private Contractors Payment,1227.38,0.00,COMMERCIAL SUPPLIER 
 04-04-2023,Adults,Home Support Services (Havering & Essex) Ltd,Home Care - Private Contractors Payment,1227.70,0.00,COMMERCIAL SUPPLIER 
 06-04-2023,Adults,Lodge Group Care UK Ltd,Home Care - Private Contractors Payment,1229.02,0.00,COMMERCIAL SUPPLIER 
 04-04-2023,Adults,Home Support Services (Havering & Essex) Ltd,Home Care - Private Contractors Payment,1229.67,0.00,COMMERCIAL SUPPLIER 
 12-04-2023,Adults,Care-Away Ltd T/A Care Support,Home Care - Private Contractors Payment,1231.36,0.00,COMMERCIAL SUPPLIER 
 27-04-2023,Adults,Funky Willows Ltd,Daycare - Private Contractors Payment,1232.15,0.00,COMMERCIAL SUPPLIER 
 05-04-2023,Adults,Matrix SCM Ltd,Agency Staff,1235.52,0.00,COMMERCIAL SUPPLIER 
 12-04-2023,Adults,Matrix SCM Ltd,Agency Staff,1235.52,0.00,COMMERCIAL SUPPLIER 
 26-04-2023,Adults,Matrix SCM Ltd,Agency Staff,1235.52,0.00,COMMERCIAL SUPPLIER 
 14-04-2023,Adults,Passion Tree Care Services Ltd,Home Care - Private Contractors Payment,1239.84,0.00,COMMERCIAL SUPPLIER 
 14-04-2023,Adults,Passion Tree Care Services Ltd,Home Care - Private Contractors Payment,1239.84,0.00,COMMERCIAL SUPPLIER 
 14-04-2023,Adults,Passion Tree Care Services Ltd,Home Care - Private Contractors Payment,1239.84,0.00,COMMERCIAL SUPPLIER 
 05-04-2023,Adults,Matrix SCM Ltd,Agency Staff,1241.28,0.00,COMMERCIAL SUPPLIER 
 05-04-2023,Adults,Matrix SCM Ltd,Agency Staff,1241.28,0.00,COMMERCIAL SUPPLIER 
 05-04-2023,Adults,Matrix SCM Ltd,Agency Staff,1241.28,0.00,COMMERCIAL SUPPLIER 
 05-04-2023,Adults,Matrix SCM Ltd,Agency Staff,1241.28,0.00,COMMERCIAL SUPPLIER 
 05-04-2023,Adults,Matrix SCM Ltd,Agency Staff,1241.28,0.00,COMMERCIAL SUPPLIER 
 05-04-2023,Adults,Matrix SCM Ltd,Agency Staff,1241.28,0.00,COMMERCIAL SUPPLIER 
 12-04-2023,Adults,Matrix SCM Ltd,Agency Staff,1241.28,0.00,COMMERCIAL SUPPLIER 
 19-04-2023,Adults,Matrix SCM Ltd,Agency Staff,1241.28,0.00,COMMERCIAL SUPPLIER 
 26-04-2023,Adults,Matrix SCM Ltd,Agency Staff,1241.28,0.00,COMMERCIAL SUPPLIER 
 26-04-2023,Adults,Matrix SCM Ltd,Agency Staff,1241.28,0.00,COMMERCIAL SUPPLIER 
 26-04-2023,Adults,Matrix SCM Ltd,Agency Staff,1241.28,0.00,COMMERCIAL SUPPLIER 
 26-04-2023,Adults,Matrix SCM Ltd,Agency Staff,1241.28,0.00,COMMERCIAL SUPPLIER 
 23-04-2023,Adults,Homestead Care Service,Home Care - Private Contractors Payment,1242.01,0.00,COMMERCIAL SUPPLIER 
 25-04-2023,Adults,Prior Care Ltd_a,Home Care - Private Contractors Payment,1245.64,0.00,COMMERCIAL SUPPLIER 
 12-04-2023,Adults,Care-Away Ltd T/A Care Support,Home Care - Private Contractors Payment,1248.00,0.00,COMMERCIAL SUPPLIER 
 05-04-2023,Adults,Meadowbanks,Residential Placements - Private Contractors Payment,1254.61,0.00,COMMERCIAL SUPPLIER 
 24-04-2023,Adults,London Homecare Ltd,Home Care - Private Contractors Payment,1255.84,0.00,COMMERCIAL SUPPLIER 
 04-04-2023,Adults,Home Support Services (Havering & Essex) Ltd,Home Care - Private Contractors Payment,1259.52,0.00,COMMERCIAL SUPPLIER 
 03-04-2023,Adults,Hospiva Care & Associates Agency Ltd_a,Home Care - Private Contractors Payment,1260.18,0.00,COMMERCIAL SUPPLIER 
 03-04-2023,Adults,Hospiva Care & Associates Agency Ltd_a,Home Care - Private Contractors Payment,1260.18,0.00,COMMERCIAL SUPPLIER 
 03-04-2023,Adults,Hospiva Care & Associates Agency Ltd_a,Home Care - Private Contractors Payment,1260.83,0.00,COMMERCIAL SUPPLIER 
 03-04-2023,Adults,Hospiva Care & Associates Agency Ltd_a,Home Care - Private Contractors Payment,1260.83,0.00,COMMERCIAL SUPPLIER 
 24-04-2023,Adults,London Homecare Ltd,Home Care - Private Contractors Payment,1261.30,0.00,COMMERCIAL SUPPLIER 
 06-04-2023,Adults,Lodge Group Care UK Ltd,Home Care - Private Contractors Payment,1262.14,0.00,COMMERCIAL SUPPLIER 
 26-04-2023,Adults,Quality Healthcare Solutions Ltd t/a Kare Plus Romford,Home Care - Private Contractors Payment,1266.76,0.00,COMMERCIAL SUPPLIER 
 06-04-2023,Adults,Lodge Group Care UK Ltd,Home Care - Private Contractors Payment,1267.39,0.00,COMMERCIAL SUPPLIER 
 05-04-2023,Adults,Quality Healthcare Solutions Ltd t/a Kare Plus Romford,Home Care - Private Contractors Payment,1268.70,0.00,COMMERCIAL SUPPLIER 
 23-04-2023,Adults,Homestead Care Service,Home Care - Private Contractors Payment,1270.76,0.00,COMMERCIAL SUPPLIER 
 06-04-2023,Adults,Lodge Group Care UK Ltd,Home Care - Private Contractors Payment,1271.66,0.00,COMMERCIAL SUPPLIER 
 05-04-2023,Adults,Matrix SCM Ltd,Agency Staff,1273.31,0.00,COMMERCIAL SUPPLIER 
 05-04-2023,Adults,Matrix SCM Ltd,Agency Staff,1274.05,0.00,COMMERCIAL SUPPLIER 
 26-04-2023,Adults,Matrix SCM Ltd,Agency Staff,1274.05,0.00,COMMERCIAL SUPPLIER 
 06-04-2023,Adults,Lodge Group Care UK Ltd,Home Care - Private Contractors Payment,1281.17,0.00,COMMERCIAL SUPPLIER 
 05-04-2023,Adults,Matrix SCM Ltd,Agency Staff,1281.60,0.00,COMMERCIAL SUPPLIER 
 26-04-2023,Adults,Matrix SCM Ltd,Agency Staff,1281.60,0.00,COMMERCIAL SUPPLIER 
 11-04-2023,Adults,Morepower Ltd t/a Aqs Homecare,Home Care - Private Contractors Payment,1281.82,0.00,COMMERCIAL SUPPLIER 
 05-04-2023,Adults,Matrix SCM Ltd,Agency Staff,1282.34,0.00,COMMERCIAL SUPPLIER 
 05-04-2023,Adults,Matrix SCM Ltd,Agency Staff,1282.34,0.00,COMMERCIAL SUPPLIER 
 26-04-2023,Adults,Matrix SCM Ltd,Agency Staff,1282.34,0.00,COMMERCIAL SUPPLIER 
 26-04-2023,Adults,Matrix SCM Ltd,Agency Staff,1282.34,0.00,COMMERCIAL SUPPLIER 
 05-04-2023,Adults,Matrix SCM Ltd,Agency Staff,1283.78,0.00,COMMERCIAL SUPPLIER 
 26-04-2023,Adults,Matrix SCM Ltd,Agency Staff,1283.78,0.00,COMMERCIAL SUPPLIER 
 05-04-2023,Adults,Nightingale Residential Care Home Ltd,Residential Placements - Private Contractors Payment,1285.71,0.00,COMMERCIAL SUPPLIER 
 05-04-2023,Adults,Nightingale Residential Care Home Ltd,Residential Placements - Private Contractors Payment,1285.71,0.00,COMMERCIAL SUPPLIER 
 05-04-2023,Adults,Nightingale Residential Care Home Ltd,Residential Placements - Private Contractors Payment,1285.71,0.00,COMMERCIAL SUPPLIER 
 26-04-2023,Adults,Matrix SCM Ltd,Agency Staff,1286.60,0.00,COMMERCIAL SUPPLIER 
 04-04-2023,Adults,Home Support Services (Havering & Essex) Ltd,Home Care - Private Contractors Payment,1288.06,0.00,COMMERCIAL SUPPLIER 
 23-04-2023,Adults,Homestead Care Service,Home Care - Private Contractors Payment,1288.60,0.00,COMMERCIAL SUPPLIER 
 05-04-2023,Adults,Quality Healthcare Solutions Ltd t/a Kare Plus Romford,Home Care - Private Contractors Payment,1289.04,0.00,COMMERCIAL SUPPLIER 
 06-04-2023,Adults,Lodge Group Care UK Ltd,Home Care - Private Contractors Payment,1294.62,0.00,COMMERCIAL SUPPLIER 
 05-04-2023,Adults,Independant Community Support Ltd T/A Heaton Lodge,Supported Other Accommodation - Private Contractors Payment,1296.00,0.00,COMMERCIAL SUPPLIER 
 28-04-2023,Adults,Delight Supported Living Ltd,Home Care - Private Contractors Payment,1296.96,0.00,COMMERCIAL SUPPLIER 
 28-04-2023,Adults,Delight Supported Living Ltd,Home Care - Private Contractors Payment,1296.96,0.00,COMMERCIAL SUPPLIER 
 05-04-2023,Adults,Ashgate House Ltd_a,Residential Placements - Private Contractors Payment,1303.80,0.00,COMMERCIAL SUPPLIER 
 04-04-2023,Adults,Home Support Services (Havering & Essex) Ltd,Home Care - Private Contractors Payment,1305.44,0.00,COMMERCIAL SUPPLIER 
 04-04-2023,Adults,Home Support Services (Havering & Essex) Ltd,Home Care - Private Contractors Payment,1307.41,0.00,COMMERCIAL SUPPLIER 
 23-04-2023,Adults,Homestead Care Service,Home Care - Private Contractors Payment,1316.26,0.00,COMMERCIAL SUPPLIER 
 05-04-2023,Adults,L & Q Living (SWIFT Payments),Supported Other Accommodation - Private Contractors Payment,1318.72,0.00,COMMERCIAL SUPPLIER 
 05-04-2023,Adults,Quality Healthcare Solutions Ltd t/a Kare Plus Romford,Home Care - Private Contractors Payment,1320.86,0.00,COMMERCIAL SUPPLIER 
 06-04-2023,Adults,Lodge Group Care UK Ltd,Home Care - Private Contractors Payment,1321.51,0.00,COMMERCIAL SUPPLIER 
 05-04-2023,Adults,Quality Healthcare Solutions Ltd t/a Kare Plus Romford,Home Care - Private Contractors Payment,1325.78,0.00,COMMERCIAL SUPPLIER 
 06-04-2023,Adults,Lodge Group Care UK Ltd,Home Care - Private Contractors Payment,1327.42,0.00,COMMERCIAL SUPPLIER 
 06-04-2023,Adults,Lodge Group Care UK Ltd,Home Care - Private Contractors Payment,1329.71,0.00,COMMERCIAL SUPPLIER 
 04-04-2023,Adults,Home Support Services (Havering & Essex) Ltd,Home Care - Private Contractors Payment,1330.04,0.00,COMMERCIAL SUPPLIER 
 03-04-2023,Adults,London Borough of Barking & Dagenham_a,Daycare - Private Contractors Payment,1337.15,0.00,LOCAL AUTHORITY SERVICES 
 03-04-2023,Adults,London Borough of Barking & Dagenham_a,Daycare - Private Contractors Payment,1337.15,0.00,LOCAL AUTHORITY SERVICES 
 05-04-2023,Adults,Shalom Community Support Services,Supported Other Accommodation - Private Contractors Payment,1344.00,0.00,COMMERCIAL SUPPLIER 
 26-04-2023,Adults,Matrix SCM Ltd,Agency Staff,1349.28,0.00,COMMERCIAL SUPPLIER 
 05-04-2023,Adults,2 Peel Way - Outlook Care,Supported Other Accommodation - Private Contractors Payment,1349.88,0.00,NON COMMERCIAL SUPPLIER 
 04-04-2023,Adults,Home Support Services (Havering & Essex) Ltd,Home Care - Private Contractors Payment,1351.69,0.00,COMMERCIAL SUPPLIER 
 04-04-2023,Adults,Home Support Services (Havering & Essex) Ltd,Home Care - Private Contractors Payment,1360.54,0.00,COMMERCIAL SUPPLIER 
 06-04-2023,Adults,Lodge Group Care UK Ltd,Home Care - Private Contractors Payment,1362.51,0.00,COMMERCIAL SUPPLIER 
 26-04-2023,Adults,Matrix SCM Ltd,Agency Staff,1364.80,0.00,COMMERCIAL SUPPLIER 
 05-04-2023,Adults,Beechcourt Care Centre - Bondcare,Nursing Homes - Private Contractors Payment,1368.00,0.00,COMMERCIAL SUPPLIER 
 05-04-2023,Adults,Outlook Care - 76 Neave Crescent,Supported Other Accommodation - Private Contractors Payment,1376.36,0.00,COMMERCIAL SUPPLIER 
 06-04-2023,Adults,Lodge Group Care UK Ltd,Home Care - Private Contractors Payment,1378.26,0.00,COMMERCIAL SUPPLIER 
 03-04-2023,Adults,Hospiva Care & Associates Agency Ltd_a,Home Care - Private Contractors Payment,1380.88,0.00,COMMERCIAL SUPPLIER 
 03-04-2023,Adults,Hospiva Care & Associates Agency Ltd_a,Home Care - Private Contractors Payment,1380.88,0.00,COMMERCIAL SUPPLIER 
 06-04-2023,Adults,Lodge Group Care UK Ltd,Home Care - Private Contractors Payment,1380.88,0.00,COMMERCIAL SUPPLIER 
 04-04-2023,Adults,Home Support Services (Havering & Essex) Ltd,Home Care - Private Contractors Payment,1381.54,0.00,COMMERCIAL SUPPLIER 
 06-04-2023,Adults,Lodge Group Care UK Ltd,Home Care - Private Contractors Payment,1382.52,0.00,COMMERCIAL SUPPLIER 
 05-04-2023,Adults,Matrix SCM Ltd,Agency Staff,1384.58,0.00,COMMERCIAL SUPPLIER 
 12-04-2023,Adults,Matrix SCM Ltd,Agency Staff,1384.58,0.00,COMMERCIAL SUPPLIER 
 23-04-2023,Adults,Westminster Homecare Ltd_a,Home Care - Private Contractors Payment,1386.88,0.00,COMMERCIAL SUPPLIER 
 23-04-2023,Adults,Westminster Homecare Ltd_a,Home Care - Private Contractors Payment,1386.88,0.00,COMMERCIAL SUPPLIER 
 26-04-2023,Adults,Matrix SCM Ltd,Agency Staff,1387.82,0.00,COMMERCIAL SUPPLIER 
 05-04-2023,Adults,Bettertogether Limited,Supported Other Accommodation - Private Contractors Payment,1388.57,0.00,NON COMMERCIAL SUPPLIER 
 05-04-2023,Adults,Lodge Lane Care Home Limited,Residential Placements - Private Contractors Payment,1390.00,0.00,COMMERCIAL SUPPLIER 
 05-04-2023,Adults,Lodge Lane Care Home Limited,Respite Care - Private Contractors Payment,1390.00,0.00,COMMERCIAL SUPPLIER 
 06-04-2023,Adults,Lodge Group Care UK Ltd,Home Care - Private Contractors Payment,1390.39,0.00,COMMERCIAL SUPPLIER 
 28-04-2023,Adults,Eastway Care Ltd_a,Daycare - Private Contractors Payment,1392.00,0.00,COMMERCIAL SUPPLIER 
 05-04-2023,Adults,Nightingale Residential Care Home Ltd,Residential Placements - Private Contractors Payment,1392.86,0.00,COMMERCIAL SUPPLIER 
 27-04-2023,Adults,Jaktol Day Centers,Daycare - Private Contractors Payment,1393.92,0.00,COMMERCIAL SUPPLIER 
 05-04-2023,Adults,Matrix SCM Ltd,Agency Staff,1395.73,0.00,COMMERCIAL SUPPLIER 
 26-04-2023,Adults,Matrix SCM Ltd,Agency Staff,1395.73,0.00,COMMERCIAL SUPPLIER 
 12-04-2023,Adults,Care-Away Ltd T/A Care Support,Home Care - Private Contractors Payment,1397.76,0.00,COMMERCIAL SUPPLIER 
 12-04-2023,Adults,Care-Away Ltd T/A Care Support,Home Care - Private Contractors Payment,1397.76,0.00,COMMERCIAL SUPPLIER 
 12-04-2023,Adults,Home Sweet Home Care Ltd,Home Care - Private Contractors Payment,1398.92,0.00,COMMERCIAL SUPPLIER 
 03-04-2023,Adults,Flex360 Limited,Private Contractors Payment - Other,1400.00,0.00,COMMERCIAL SUPPLIER 
 12-04-2023,Adults,Home Sweet Home Care Ltd,Home Care - Private Contractors Payment,1413.02,0.00,COMMERCIAL SUPPLIER 
 05-04-2023,Adults,Priory Supporting Care Ltd,Respite Care - Private Contractors Payment,1428.57,0.00,COMMERCIAL SUPPLIER 
 04-04-2023,Adults,Home Support Services (Havering & Essex) Ltd,Home Care - Private Contractors Payment,1434.67,0.00,COMMERCIAL SUPPLIER 
 05-04-2023,Adults,Matrix SCM Ltd,Agency Staff,1436.42,0.00,COMMERCIAL SUPPLIER 
 20-04-2023,Adults,Lodge Group Care UK Ltd,Home Care - Private Contractors Payment,1449.00,0.00,COMMERCIAL SUPPLIER 
 24-04-2023,Adults,Bluebird Care Havering,Home Care - Private Contractors Payment,1453.20,0.00,COMMERCIAL SUPPLIER 
 04-04-2023,Adults,Home Support Services (Havering & Essex) Ltd,Home Care - Private Contractors Payment,1461.24,0.00,COMMERCIAL SUPPLIER 
 05-04-2023,Adults,Black Swan International Ltd - Drummonds,Residential Placements - Private Contractors Payment,1470.00,0.00,COMMERCIAL SUPPLIER 
 05-04-2023,Adults,Blueboard Care Services Ltd,Supported Other Accommodation - Private Contractors Payment,1478.40,0.00,COMMERCIAL SUPPLIER 
 05-04-2023,Adults,Blueboard Care Services Ltd,Supported Other Accommodation - Private Contractors Payment,1478.40,0.00,COMMERCIAL SUPPLIER 
 05-04-2023,Adults,The Cedars,Supported Other Accommodation - Private Contractors Payment,1479.24,0.00,COMMERCIAL SUPPLIER 
 06-04-2023,Adults,Matrix SCM Ltd,Consultancy Fees,1484.67,0.00,COMMERCIAL SUPPLIER 
 06-04-2023,Adults,Lodge Group Care UK Ltd,Home Care - Private Contractors Payment,1485.51,0.00,COMMERCIAL SUPPLIER 
 05-04-2023,Adults,One Tree Estates Ltd t/a Ashbrook Nursing Home,Respite Care - Private Contractors Payment,1492.86,0.00,COMMERCIAL SUPPLIER 
 05-04-2023,Adults,Ebony Health Care Services Limited,Supported Other Accommodation - Private Contractors Payment,1496.24,0.00,COMMERCIAL SUPPLIER 
 05-04-2023,Adults,Matrix SCM Ltd,Agency Staff,1499.20,0.00,COMMERCIAL SUPPLIER 
 05-04-2023,Adults,Masumin Ltd t/s Abbeleigh House,Respite Care - Private Contractors Payment,1500.00,0.00,COMMERCIAL SUPPLIER 
 24-04-2023,Adults,Outreach Support Services Ltd,Home Care - Private Contractors Payment,1501.53,0.00,COMMERCIAL SUPPLIER 
 05-04-2023,Adults,Langley House,Respite Care - Private Contractors Payment,1505.71,0.00,COMMERCIAL SUPPLIER 
 26-04-2023,Adults,Bloomscare Ltd,Home Care - Private Contractors Payment,1506.99,0.00,COMMERCIAL SUPPLIER 
 26-04-2023,Adults,Bloomscare Ltd,Home Care - Private Contractors Payment,1506.99,0.00,COMMERCIAL SUPPLIER 
 24-04-2023,Adults,Outreach Support Services Ltd,Home Care - Private Contractors Payment,1507.00,0.00,COMMERCIAL SUPPLIER 
 24-04-2023,Adults,Premier Carewaiting Ltd,Home Care - Private Contractors Payment,1507.00,0.00,COMMERCIAL SUPPLIER 
 03-04-2023,Adults,Hospiva Care & Associates Agency Ltd_a,Home Care - Private Contractors Payment,1509.78,0.00,COMMERCIAL SUPPLIER 
 05-04-2023,Adults,Heath Care Services Ltd ,Supported Other Accommodation - Private Contractors Payment,1512.00,0.00,COMMERCIAL SUPPLIER 
 06-04-2023,Adults,Care-Away Ltd T/A Care Support,Home Care - Private Contractors Payment,1514.24,0.00,COMMERCIAL SUPPLIER 
 24-04-2023,Adults,Outreach Support Services Ltd,Home Care - Private Contractors Payment,1517.47,0.00,COMMERCIAL SUPPLIER 
 24-04-2023,Adults,Outreach Support Services Ltd,Home Care - Private Contractors Payment,1517.47,0.00,COMMERCIAL SUPPLIER 
 27-04-2023,Adults,IJB Healthcare Ltd,Home Care - Private Contractors Payment,1517.91,0.00,COMMERCIAL SUPPLIER 
 05-04-2023,Adults,The Cedars,Supported Other Accommodation - Private Contractors Payment,1531.00,0.00,COMMERCIAL SUPPLIER 
 05-04-2023,Adults,Affinia Healthcare Ltd_a,Supported Other Accommodation - Private Contractors Payment,1538.48,0.00,COMMERCIAL SUPPLIER 
 23-04-2023,Adults,Homestead Care Service,Home Care - Private Contractors Payment,1545.60,0.00,COMMERCIAL SUPPLIER 
 05-04-2023,Adults,Masumin Ltd t/s Abbeleigh House,Respite Care - Private Contractors Payment,1550.71,0.00,COMMERCIAL SUPPLIER 
 05-04-2023,Adults,Bettertogether Limited,Supported Other Accommodation - Private Contractors Payment,1554.43,0.00,NON COMMERCIAL SUPPLIER 
 05-04-2023,Adults,Outlook Care - 76 Neave Crescent,Supported Other Accommodation - Private Contractors Payment,1562.00,0.00,COMMERCIAL SUPPLIER 
 05-04-2023,Adults,Outlook Care - 76 Neave Crescent,Supported Other Accommodation - Private Contractors Payment,1562.00,0.00,COMMERCIAL SUPPLIER 
 05-04-2023,Adults,Outlook Care - 76 Neave Crescent,Supported Other Accommodation - Private Contractors Payment,1562.00,0.00,COMMERCIAL SUPPLIER 
 05-04-2023,Adults,Outlook Care - 76 Neave Crescent,Supported Other Accommodation - Private Contractors Payment,1562.00,0.00,COMMERCIAL SUPPLIER 
 05-04-2023,Adults,Outlook Care - 76 Neave Crescent,Supported Other Accommodation - Private Contractors Payment,1562.00,0.00,COMMERCIAL SUPPLIER 
 05-04-2023,Adults,Outlook Care - 76 Neave Crescent,Supported Other Accommodation - Private Contractors Payment,1562.00,0.00,COMMERCIAL SUPPLIER 
 05-04-2023,Adults,Outlook Care - 76 Neave Crescent,Supported Other Accommodation - Private Contractors Payment,1562.00,0.00,COMMERCIAL SUPPLIER 
 05-04-2023,Adults,Outlook Care - 76 Neave Crescent,Supported Other Accommodation - Private Contractors Payment,1562.00,0.00,COMMERCIAL SUPPLIER 
 12-04-2023,Adults,Care-Away Ltd T/A Care Support,Home Care - Private Contractors Payment,1564.16,0.00,COMMERCIAL SUPPLIER 
 11-04-2023,Adults,Morepower Ltd t/a Aqs Homecare,Home Care - Private Contractors Payment,1565.54,0.00,COMMERCIAL SUPPLIER 
 05-04-2023,Adults,Outlook Care - 86 Veronica Close,Residential Placements - Private Contractors Payment,1565.56,0.00,COMMERCIAL SUPPLIER 
 05-04-2023,Adults,Outlook Care - 76 Neave Crescent,Supported Other Accommodation - Private Contractors Payment,1566.60,0.00,COMMERCIAL SUPPLIER 
 05-04-2023,Adults,Outlook Care - 76 Neave Crescent,Supported Other Accommodation - Private Contractors Payment,1566.60,0.00,COMMERCIAL SUPPLIER 
 05-04-2023,Adults,Outlook Care - 4 Peel Way,Supported Other Accommodation - Private Contractors Payment,1570.80,0.00,COMMERCIAL SUPPLIER 
 05-04-2023,Adults,Nightingale Residential Care Home Ltd,Residential Placements - Private Contractors Payment,1571.43,0.00,COMMERCIAL SUPPLIER 
 11-04-2023,Adults,Bluebird Care Havering,Home Care - Private Contractors Payment,1574.98,0.00,COMMERCIAL SUPPLIER 
 11-04-2023,Adults,Bluebird Care Havering,Home Care - Private Contractors Payment,1574.98,0.00,COMMERCIAL SUPPLIER 
 05-04-2023,Adults,Pathways Care and Support Services Ltd,Supported Other Accommodation - Private Contractors Payment,1581.72,0.00,COMMERCIAL SUPPLIER 
 05-04-2023,Adults,Lodge Lane Care Home Limited,Residential Placements - Private Contractors Payment,1588.57,0.00,COMMERCIAL SUPPLIER 
 05-04-2023,Adults,Pilgrims Friend Society ,Respite Care - Private Contractors Payment,1588.57,0.00,COMMERCIAL SUPPLIER 
 28-04-2023,Adults,Eastway Care Ltd_a,Daycare - Private Contractors Payment,1590.85,0.00,COMMERCIAL SUPPLIER 
 28-04-2023,Adults,Eastway Care Ltd_a,Daycare - Private Contractors Payment,1590.85,0.00,COMMERCIAL SUPPLIER 
 05-04-2023,Adults,Outlook Care - 76 Neave Crescent,Supported Other Accommodation - Private Contractors Payment,1597.92,0.00,COMMERCIAL SUPPLIER 
 05-04-2023,Adults,Outlook Care - 76 Neave Crescent,Supported Other Accommodation - Private Contractors Payment,1597.92,0.00,COMMERCIAL SUPPLIER 
 05-04-2023,Adults,Outlook Care - 76 Neave Crescent,Supported Other Accommodation - Private Contractors Payment,1597.92,0.00,COMMERCIAL SUPPLIER 
 05-04-2023,Adults,Outlook Care - 76 Neave Crescent,Supported Other Accommodation - Private Contractors Payment,1597.92,0.00,COMMERCIAL SUPPLIER 
 05-04-2023,Adults,Outreach Support Services Ltd,Supported Other Accommodation - Private Contractors Payment,1600.00,0.00,COMMERCIAL SUPPLIER 
 05-04-2023,Adults,Affinia Healthcare Ltd_a,Supported Other Accommodation - Private Contractors Payment,1604.40,0.00,COMMERCIAL SUPPLIER 
 05-04-2023,Adults,Ashking House Ltd,Residential Placements - Private Contractors Payment,1616.84,0.00,COMMERCIAL SUPPLIER 
 05-04-2023,Adults,The Riverside Group,Supported Other Accommodation - Private Contractors Payment,1623.12,0.00, 
 05-04-2023,Adults,Moreland House_a,Respite Care - Private Contractors Payment,1625.14,0.00,COMMERCIAL SUPPLIER 
 05-04-2023,Adults,Affinia Healthcare Ltd_a,Supported Other Accommodation - Private Contractors Payment,1650.76,0.00,COMMERCIAL SUPPLIER 
 11-04-2023,Adults,Morepower Ltd t/a Aqs Homecare,Home Care - Private Contractors Payment,1652.79,0.00,COMMERCIAL SUPPLIER 
 12-04-2023,Adults,Home Sweet Home Care Ltd,Home Care - Private Contractors Payment,1661.98,0.00,COMMERCIAL SUPPLIER 
 05-04-2023,Adults,Outlook Care - 76 Neave Crescent,Supported Other Accommodation - Private Contractors Payment,1677.92,0.00,COMMERCIAL SUPPLIER 
 05-04-2023,Adults,Protecthand Care Ltd ,Supported Other Accommodation - Private Contractors Payment,1680.00,0.00,COMMERCIAL SUPPLIER 
 05-04-2023,Adults,2 Peel Way - Outlook Care,Supported Other Accommodation - Private Contractors Payment,1687.28,0.00,NON COMMERCIAL SUPPLIER 
 05-04-2023,Adults,Masumin Ltd t/s Abbeleigh House,Respite Care - Private Contractors Payment,1687.86,0.00,COMMERCIAL SUPPLIER 
 05-04-2023,Adults,Lodge Lane Care Home Limited,Residential Placements - Private Contractors Payment,1687.86,0.00,COMMERCIAL SUPPLIER 
 04-04-2023,Adults,Home Support Services (Havering & Essex) Ltd,Home Care - Private Contractors Payment,1696.74,0.00,COMMERCIAL SUPPLIER 
 05-04-2023,Adults,Willows Care Home - Churchgate Healthcare (Willows) Ltd,Nursing Homes - Private Contractors Payment,1701.16,0.00,COMMERCIAL SUPPLIER 
 05-04-2023,Adults,Affinia Healthcare Ltd_a,Supported Other Accommodation - Private Contractors Payment,1704.20,0.00,COMMERCIAL SUPPLIER 
 28-04-2023,Adults,Eastway Care Ltd_a,Daycare - Private Contractors Payment,1710.00,0.00,COMMERCIAL SUPPLIER 
 05-04-2023,Adults,Bettertogether Limited,Supported Other Accommodation - Private Contractors Payment,1712.57,0.00,NON COMMERCIAL SUPPLIER 
 05-04-2023,Adults,GCH - Hillside Nursing Home,Nursing Homes - Private Contractors Payment,1714.29,0.00,COMMERCIAL SUPPLIER 
 05-04-2023,Adults,Moreland House_a,Respite Care - Private Contractors Payment,1715.43,0.00,COMMERCIAL SUPPLIER 
 05-04-2023,Adults,Outlook Care - 4 Peel Way,Supported Other Accommodation - Private Contractors Payment,1719.80,0.00,COMMERCIAL SUPPLIER 
 05-04-2023,Adults,Outlook Care - 76 Neave Crescent,Supported Other Accommodation - Private Contractors Payment,1719.88,0.00,COMMERCIAL SUPPLIER 
 05-04-2023,Adults,Outlook Care - 76 Neave Crescent,Supported Other Accommodation - Private Contractors Payment,1719.88,0.00,COMMERCIAL SUPPLIER 
 05-04-2023,Adults,Vibrance ,Residential Placements - Private Contractors Payment,1720.76,0.00,COMMERCIAL SUPPLIER 
 05-04-2023,Adults,2 Peel Way - Outlook Care,Supported Other Accommodation - Private Contractors Payment,1721.00,0.00,NON COMMERCIAL SUPPLIER 
 24-04-2023,Adults,R G Care Ltd ,Daycare - Private Contractors Payment,1725.00,0.00,COMMERCIAL SUPPLIER 
 06-04-2023,Adults,Lodge Group Care UK Ltd,Home Care - Private Contractors Payment,1730.20,0.00,COMMERCIAL SUPPLIER 
 05-04-2023,Adults,Affinia Healthcare Ltd_a,Supported Other Accommodation - Private Contractors Payment,1731.28,0.00,COMMERCIAL SUPPLIER 
 05-04-2023,Adults,Optimal Care Services Ltd,Supported Other Accommodation - Private Contractors Payment,1740.00,0.00,COMMERCIAL SUPPLIER 
 03-04-2023,Adults,Hospiva Care & Associates Agency Ltd_a,Home Care - Private Contractors Payment,1742.34,0.00,COMMERCIAL SUPPLIER 
 05-04-2023,Adults,Barleycroft Care Home Ltd,Nursing Homes - Private Contractors Payment,1743.43,0.00,COMMERCIAL SUPPLIER 
 26-04-2023,Adults,Prestige Care & Support Ltd,Home Care - Private Contractors Payment,1747.26,0.00,COMMERCIAL SUPPLIER 
 05-04-2023,Adults,Affinia Healthcare Ltd_a,Supported Other Accommodation - Private Contractors Payment,1751.12,0.00,COMMERCIAL SUPPLIER 
 05-04-2023,Adults,Affinia Healthcare Ltd_a,Supported Other Accommodation - Private Contractors Payment,1751.12,0.00,COMMERCIAL SUPPLIER 
 05-04-2023,Adults,Affinia Healthcare Ltd_a,Supported Other Accommodation - Private Contractors Payment,1751.12,0.00,COMMERCIAL SUPPLIER 
 05-04-2023,Adults,Affinia Healthcare Ltd_a,Supported Other Accommodation - Private Contractors Payment,1752.48,0.00,COMMERCIAL SUPPLIER 
 24-04-2023,Adults,Outreach Support Services Ltd,Home Care - Private Contractors Payment,1758.17,0.00,COMMERCIAL SUPPLIER 
 27-04-2023,Adults,Jaktol Day Centers,Daycare - Private Contractors Payment,1762.56,0.00,COMMERCIAL SUPPLIER 
 05-04-2023,Adults,Abbottswood Lodge,Residential Placements - Private Contractors Payment,1763.76,0.00,COMMERCIAL SUPPLIER 
 05-04-2023,Adults,Bettertogether Limited,Supported Other Accommodation - Private Contractors Payment,1766.57,0.00,NON COMMERCIAL SUPPLIER 
 05-04-2023,Adults,Bettertogether Limited,Supported Other Accommodation - Private Contractors Payment,1766.57,0.00,NON COMMERCIAL SUPPLIER 
 05-04-2023,Adults,Bettertogether Limited,Supported Other Accommodation - Private Contractors Payment,1766.57,0.00,NON COMMERCIAL SUPPLIER 
 05-04-2023,Adults,Bettertogether Limited,Supported Other Accommodation - Private Contractors Payment,1766.57,0.00,NON COMMERCIAL SUPPLIER 
 05-04-2023,Adults,Bettertogether Limited,Supported Other Accommodation - Private Contractors Payment,1766.57,0.00,NON COMMERCIAL SUPPLIER 
 05-04-2023,Adults,Bettertogether Limited,Supported Other Accommodation - Private Contractors Payment,1766.57,0.00,NON COMMERCIAL SUPPLIER 
 05-04-2023,Adults,Bettertogether Limited,Supported Other Accommodation - Private Contractors Payment,1766.57,0.00,NON COMMERCIAL SUPPLIER 
 05-04-2023,Adults,Lodge Lane Care Home Limited,Respite Care - Private Contractors Payment,1787.14,0.00,COMMERCIAL SUPPLIER 
 05-04-2023,Adults,Outlook Care - 4 Peel Way,Supported Other Accommodation - Private Contractors Payment,1796.08,0.00,COMMERCIAL SUPPLIER 
 05-04-2023,Adults,Outlook Care - 4 Peel Way,Supported Other Accommodation - Private Contractors Payment,1796.08,0.00,COMMERCIAL SUPPLIER 
 12-04-2023,Adults,Home Sweet Home Care Ltd,Home Care - Private Contractors Payment,1796.13,0.00,COMMERCIAL SUPPLIER 
 14-04-2023,Adults,Trinity London Care Ltd,Daycare - Private Contractors Payment,1807.15,0.00,COMMERCIAL SUPPLIER 
 14-04-2023,Adults,Trinity London Care Ltd,Daycare - Private Contractors Payment,1807.15,0.00,COMMERCIAL SUPPLIER 
 14-04-2023,Adults,Trinity London Care Ltd,Daycare - Private Contractors Payment,1807.15,0.00,COMMERCIAL SUPPLIER 
 05-04-2023,Adults,Affinia Healthcare Ltd_a,Supported Other Accommodation - Private Contractors Payment,1817.80,0.00,COMMERCIAL SUPPLIER 
 25-04-2023,Adults,Be You,Daycare - Private Contractors Payment,1823.56,0.00,NON COMMERCIAL SUPPLIER 
 05-04-2023,Adults,Forward Support Ltd ,Residential Placements - Private Contractors Payment,1830.00,0.00,COMMERCIAL SUPPLIER 
 12-04-2023,Adults,Care-Away Ltd T/A Care Support,Home Care - Private Contractors Payment,1834.56,0.00,COMMERCIAL SUPPLIER 
 24-04-2023,Adults,Outreach Support Services Ltd,Home Care - Private Contractors Payment,1856.44,0.00,COMMERCIAL SUPPLIER 
 24-04-2023,Adults,Outreach Support Services Ltd,Home Care - Private Contractors Payment,1856.44,0.00,COMMERCIAL SUPPLIER 
 24-04-2023,Adults,Outreach Support Services Ltd,Home Care - Private Contractors Payment,1856.44,0.00,COMMERCIAL SUPPLIER 
 24-04-2023,Adults,Outreach Support Services Ltd,Home Care - Private Contractors Payment,1856.44,0.00,COMMERCIAL SUPPLIER 
 05-04-2023,Adults,Ladyville Lodge_a,Residential Placements - Private Contractors Payment,1885.71,0.00,COMMERCIAL SUPPLIER 
 15-04-2023,Adults,Pleasant Home Healthcare Ltd,Home Care - Private Contractors Payment,1889.28,0.00,COMMERCIAL SUPPLIER 
 05-04-2023,Adults,Maison Moti Ltd,Supported Other Accommodation - Private Contractors Payment,1890.00,0.00,COMMERCIAL SUPPLIER 
 05-04-2023,Adults,Affinia Healthcare Ltd_a,Supported Other Accommodation - Private Contractors Payment,1901.04,0.00,COMMERCIAL SUPPLIER 
 05-04-2023,Adults,S & S Support Service Ltd   ,Supported Other Accommodation - Private Contractors Payment,1904.00,0.00,COMMERCIAL SUPPLIER 
 28-04-2023,Adults,Eastway Care Ltd_a,Daycare - Private Contractors Payment,1925.00,0.00,COMMERCIAL SUPPLIER 
 05-04-2023,Adults,Endsleigh Care Ltd,Residential Placements - Private Contractors Payment,1940.84,0.00,COMMERCIAL SUPPLIER 
 03-04-2023,Adults,Hospiva Care & Associates Agency Ltd_a,Home Care - Private Contractors Payment,1941.10,0.00,COMMERCIAL SUPPLIER 
 05-04-2023,Adults,One Tree Estates Ltd t/a Ashbrook Nursing Home,Respite Care - Private Contractors Payment,1942.86,0.00,COMMERCIAL SUPPLIER 
 01-04-2023,Adults,Marlow,Residential Placements - Private Contractors Payment,1946.39,0.00,COMMERCIAL SUPPLIER 
 06-04-2023,Adults,Care-Away Ltd T/A Care Support,Home Care - Private Contractors Payment,1946.88,0.00,COMMERCIAL SUPPLIER 
 05-04-2023,Adults,New Century Care (Borough Green) T/A Westbank Care Home,Nursing Homes - Private Contractors Payment,1971.43,0.00,COMMERCIAL SUPPLIER 
 05-04-2023,Adults,Bettertogether Limited,Supported Other Accommodation - Private Contractors Payment,1982.57,0.00,NON COMMERCIAL SUPPLIER 
 05-04-2023,Adults,Bettertogether Limited,Supported Other Accommodation - Private Contractors Payment,1982.57,0.00,NON COMMERCIAL SUPPLIER 
 05-04-2023,Adults,Bettertogether Limited,Supported Other Accommodation - Private Contractors Payment,1982.57,0.00,NON COMMERCIAL SUPPLIER 
 05-04-2023,Adults,Affinia Healthcare Ltd_a,Supported Other Accommodation - Private Contractors Payment,1987.72,0.00,COMMERCIAL SUPPLIER 
 05-04-2023,Adults,Ebony Health Care Services Limited,Supported Other Accommodation - Private Contractors Payment,1991.60,0.00,COMMERCIAL SUPPLIER 
 05-04-2023,Adults,Blueboard Care Services Ltd,Supported Other Accommodation - Private Contractors Payment,1999.20,0.00,COMMERCIAL SUPPLIER 
 04-04-2023,Adults,R G Care Ltd ,Daycare - Private Contractors Payment,2000.00,0.00,COMMERCIAL SUPPLIER 
 03-04-2023,Adults,London Borough of Barking & Dagenham_a,Daycare - Private Contractors Payment,2005.72,0.00,LOCAL AUTHORITY SERVICES 
 03-04-2023,Adults,London Borough of Barking & Dagenham_a,Daycare - Private Contractors Payment,2005.72,0.00,LOCAL AUTHORITY SERVICES 
 05-04-2023,Adults,S&A Care Services Ltd.,Supported Other Accommodation - Private Contractors Payment,2016.00,0.00,COMMERCIAL SUPPLIER 
 05-04-2023,Adults,Adjuvo Care Essex Ltd ,Supported Other Accommodation - Private Contractors Payment,2033.72,0.00,COMMERCIAL SUPPLIER 
 05-04-2023,Adults,DMP Healthcare (Heatherbrook) Ltd,Nursing Homes - Private Contractors Payment,2034.00,0.00,NON COMMERCIAL SUPPLIER 
 05-04-2023,Adults,Black Swan International Ltd - Drummonds,Residential Placements - Private Contractors Payment,2044.00,0.00,COMMERCIAL SUPPLIER 
 05-04-2023,Adults,Affinia Healthcare Ltd_a,Supported Other Accommodation - Private Contractors Payment,2053.68,0.00,COMMERCIAL SUPPLIER 
 05-04-2023,Adults,Gemstone Properties Ltd,Residential Placements - Private Contractors Payment,2078.44,0.00,COMMERCIAL SUPPLIER 
 05-04-2023,Adults,Hillsview Care Services Ltd,Residential Placements - Private Contractors Payment,2079.00,0.00,COMMERCIAL SUPPLIER 
 05-04-2023,Adults,Masumin Ltd t/s Abbeleigh House,Respite Care - Private Contractors Payment,2085.00,0.00,COMMERCIAL SUPPLIER 
 12-04-2023,Adults,Care-Away Ltd T/A Care Support,Home Care - Private Contractors Payment,2096.64,0.00,COMMERCIAL SUPPLIER 
 24-04-2023,Adults,London Homecare Ltd,Home Care - Private Contractors Payment,2096.65,0.00,COMMERCIAL SUPPLIER 
 05-04-2023,Adults,Alpine Resources UK Ltd,Supported Other Accommodation - Private Contractors Payment,2100.00,0.00,COMMERCIAL SUPPLIER 
 05-04-2023,Adults,Cygnet (OE) Ltd ,Residential Placements - Private Contractors Payment,2100.00,0.00,COMMERCIAL SUPPLIER 
 28-04-2023,Adults,Eastway Care Ltd_a,Daycare - Private Contractors Payment,2117.50,0.00,COMMERCIAL SUPPLIER 
 05-04-2023,Adults,Outreach Support Services Ltd,Supported Other Accommodation - Private Contractors Payment,2121.00,0.00,COMMERCIAL SUPPLIER 
 28-04-2023,Adults,Eastway Care Ltd_a,Daycare - Private Contractors Payment,2121.15,0.00,COMMERCIAL SUPPLIER 
 28-04-2023,Adults,Eastway Care Ltd_a,Daycare - Private Contractors Payment,2121.15,0.00,COMMERCIAL SUPPLIER 
 17-04-2023,Adults,All Therapy Solutions Ltd,Occupational Health,2150.00,0.00,COMMERCIAL SUPPLIER 
 05-04-2023,Adults,Bettertogether Limited,Supported Other Accommodation - Private Contractors Payment,2156.14,0.00,NON COMMERCIAL SUPPLIER 
 05-04-2023,Adults,Gims Care Solution Ltd_a,Home Care - Private Contractors Payment,2204.16,0.00,NON COMMERCIAL SUPPLIER 
 05-04-2023,Adults,Cygnet Health Care,Residential Placements - Private Contractors Payment,2205.00,0.00,COMMERCIAL SUPPLIER 
 05-04-2023,Adults,Affinia Healthcare Ltd_a,Supported Other Accommodation - Private Contractors Payment,2225.00,0.00,COMMERCIAL SUPPLIER 
 27-04-2023,Adults,Jaktol Day Centers,Daycare - Private Contractors Payment,2239.68,0.00,COMMERCIAL SUPPLIER 
 05-04-2023,Adults,Outlook Care_a,Supported Other Accommodation - Private Contractors Payment,2253.44,0.00,COMMERCIAL SUPPLIER 
 05-04-2023,Adults,Masumin Ltd t/s Abbeleigh House,Respite Care - Private Contractors Payment,2266.43,0.00,COMMERCIAL SUPPLIER 
 05-04-2023,Adults,Faris Lodge,Supported Other Accommodation - Private Contractors Payment,2267.72,0.00,COMMERCIAL SUPPLIER 
 05-04-2023,Adults,Ashgate House Ltd_a,Residential Placements - Private Contractors Payment,2280.96,0.00,COMMERCIAL SUPPLIER 
 05-04-2023,Adults,Pathways Care Group Ltd,Residential Placements - Private Contractors Payment,2285.56,0.00,COMMERCIAL SUPPLIER 
 05-04-2023,Adults,DMP Healthcare (Cherry Orchard) Ltd,Residential Placements - Private Contractors Payment,2300.12,0.00,COMMERCIAL SUPPLIER 
 05-04-2023,Adults,Livability - John Grooms Court,Residential Placements - Private Contractors Payment,2311.28,0.00,COMMERCIAL SUPPLIER 
 05-04-2023,Adults,Livability - John Grooms Court,Residential Placements - Private Contractors Payment,2311.28,0.00,COMMERCIAL SUPPLIER 
 05-04-2023,Adults,Priory Supporting Care Ltd,Residential Placements - Private Contractors Payment,2314.29,0.00,COMMERCIAL SUPPLIER 
 12-04-2023,Adults,Care-Away Ltd T/A Care Support,Home Care - Private Contractors Payment,2329.60,0.00,COMMERCIAL SUPPLIER 
 05-04-2023,Adults,2 Peel Way - Outlook Care,Supported Other Accommodation - Private Contractors Payment,2344.96,0.00,NON COMMERCIAL SUPPLIER 
 05-04-2023,Adults,Fresh Tree Care Services,Supported Other Accommodation - Private Contractors Payment,2352.00,0.00,COMMERCIAL SUPPLIER 
 05-04-2023,Adults,Fresh Tree Care Services,Supported Other Accommodation - Private Contractors Payment,2352.00,0.00,COMMERCIAL SUPPLIER 
 05-04-2023,Adults,DMP Healthcare (Heatherbrook) Ltd,Nursing Homes - Private Contractors Payment,2367.86,0.00,NON COMMERCIAL SUPPLIER 
 05-04-2023,Adults,Beechcourt Care Centre - Bondcare,Nursing Homes - Private Contractors Payment,2394.00,0.00,COMMERCIAL SUPPLIER 
 27-04-2023,Adults,Jaktol Day Centers,Daycare - Private Contractors Payment,2399.68,0.00,COMMERCIAL SUPPLIER 
 05-04-2023,Adults,Five Stacks Residential Care Home Ltd,Residential Placements - Private Contractors Payment,2402.14,0.00,COMMERCIAL SUPPLIER 
 05-04-2023,Adults,Clearwater Care (Hackney) Ltd - Craigdale,Supported Other Accommodation - Private Contractors Payment,2413.04,0.00,COMMERCIAL SUPPLIER 
 05-04-2023,Adults,Ebony Health Care Services Limited,Supported Other Accommodation - Private Contractors Payment,2417.68,0.00,COMMERCIAL SUPPLIER 
 05-04-2023,Adults,Clearwater Care (Hackney) Ltd - Craigdale,Supported Other Accommodation - Private Contractors Payment,2425.52,0.00,COMMERCIAL SUPPLIER 
 05-04-2023,Adults,R G Care Ltd ,Residential Placements - Private Contractors Payment,2450.00,0.00,COMMERCIAL SUPPLIER 
 05-04-2023,Adults,Adjuvo Care and Support Ltd,Supported Other Accommodation - Private Contractors Payment,2463.68,0.00,COMMERCIAL SUPPLIER 
 05-04-2023,Adults,Black Swan International Ltd - Drummonds,Residential Placements - Private Contractors Payment,2468.80,0.00,COMMERCIAL SUPPLIER 
 05-04-2023,Adults,Black Swan International Ltd - Drummonds,Residential Placements - Private Contractors Payment,2468.80,0.00,COMMERCIAL SUPPLIER 
 05-04-2023,Adults,Royal Masonic Benevolent Institution,Residential Placements - Private Contractors Payment,2470.23,0.00,COMMERCIAL SUPPLIER 
 05-04-2023,Adults,Highfield Care Homes Ltd t/a Romford Grange Care Home,Nursing Homes - Private Contractors Payment,2472.84,0.00,COMMERCIAL SUPPLIER 
 05-04-2023,Adults,Fountains Care Centre - Bondcare,Residential Placements - Private Contractors Payment,2480.00,0.00,COMMERCIAL SUPPLIER 
 05-04-2023,Adults,Fountains Care Centre - Bondcare,Nursing Homes - Private Contractors Payment,2480.00,0.00,COMMERCIAL SUPPLIER 
 05-04-2023,Adults,Fountains Care Centre - Bondcare,Residential Placements - Private Contractors Payment,2480.00,0.00,COMMERCIAL SUPPLIER 
 05-04-2023,Adults,Fountains Care Centre - Bondcare,Residential Placements - Private Contractors Payment,2480.00,0.00,COMMERCIAL SUPPLIER 
 05-04-2023,Adults,Highfield Care Homes Ltd t/a Romford Grange Care Home,Residential Placements - Private Contractors Payment,2480.00,0.00,COMMERCIAL SUPPLIER 
 05-04-2023,Adults,Beechcourt Care Centre - Bondcare,Residential Placements - Private Contractors Payment,2480.00,0.00,COMMERCIAL SUPPLIER 
 05-04-2023,Adults,Oakley Carehomes Ltd t/a Abbey Care Home,Residential Placements - Private Contractors Payment,2480.00,0.00,COMMERCIAL SUPPLIER 
 05-04-2023,Adults,Clover Cottage Ltd,Residential Placements - Private Contractors Payment,2480.00,0.00,COMMERCIAL SUPPLIER 
 05-04-2023,Adults,Clover Cottage Ltd,Residential Placements - Private Contractors Payment,2480.00,0.00,COMMERCIAL SUPPLIER 
 05-04-2023,Adults,Clover Cottage Ltd,Residential Placements - Private Contractors Payment,2480.00,0.00,COMMERCIAL SUPPLIER 
 05-04-2023,Adults,Langley House,Residential Placements - Private Contractors Payment,2480.00,0.00,COMMERCIAL SUPPLIER 
 05-04-2023,Adults,Langley House,Residential Placements - Private Contractors Payment,2480.00,0.00,COMMERCIAL SUPPLIER 
 05-04-2023,Adults,Oaks Residential Home,Residential Placements - Private Contractors Payment,2480.00,0.00,COMMERCIAL SUPPLIER 
 05-04-2023,Adults,Ash Grove Residential Care Home,Residential Placements - Private Contractors Payment,2480.00,0.00,COMMERCIAL SUPPLIER 
 05-04-2023,Adults,Ash Grove Residential Care Home,Residential Placements - Private Contractors Payment,2480.00,0.00,COMMERCIAL SUPPLIER 
 05-04-2023,Adults,GCH - Hillside Nursing Home,Residential Placements - Private Contractors Payment,2480.00,0.00,COMMERCIAL SUPPLIER 
 05-04-2023,Adults,Barleycroft Care Home Ltd,Residential Placements - Private Contractors Payment,2480.00,0.00,COMMERCIAL SUPPLIER 
 05-04-2023,Adults,Barleycroft Care Home Ltd,Residential Placements - Private Contractors Payment,2480.00,0.00,COMMERCIAL SUPPLIER 
 05-04-2023,Adults,Barleycroft Care Home Ltd,Residential Placements - Private Contractors Payment,2480.00,0.00,COMMERCIAL SUPPLIER 
 05-04-2023,Adults,Pathways Care Group Ltd,Residential Placements - Private Contractors Payment,2486.16,0.00,COMMERCIAL SUPPLIER 
 05-04-2023,Adults,Affinia Healthcare Ltd_a,Supported Other Accommodation - Private Contractors Payment,2490.32,0.00,COMMERCIAL SUPPLIER 
 05-04-2023,Adults,Mayesbrook House Ltd ,Supported Other Accommodation - Private Contractors Payment,2507.20,0.00,COMMERCIAL SUPPLIER 
 05-04-2023,Adults,Westminster Health Care Ltd Derham House,Nursing Homes - Private Contractors Payment,2508.00,0.00,COMMERCIAL SUPPLIER 
 05-04-2023,Adults,HC-One Oval Ltd - Chaseview,Nursing Homes - Private Contractors Payment,2516.76,0.00,COMMERCIAL SUPPLIER 
 05-04-2023,Adults,Acer Healthcare Operation Ltd,Nursing Homes - Private Contractors Payment,2516.76,0.00,COMMERCIAL SUPPLIER 
 05-04-2023,Adults,Ebony Health Care Services Limited,Supported Other Accommodation - Private Contractors Payment,2520.00,0.00,COMMERCIAL SUPPLIER 
 05-04-2023,Adults,Independent Community Support Ltd t/a Wingletye Lodge ,Supported Other Accommodation - Private Contractors Payment,2520.00,0.00,COMMERCIAL SUPPLIER 
 05-04-2023,Adults,Havering Care Homes Ltd t/a Abbscross Nursing Home,Nursing Homes - Private Contractors Payment,2528.00,0.00,COMMERCIAL SUPPLIER 
 05-04-2023,Adults,Highfield Care Homes Ltd t/a Romford Grange Care Home,Nursing Homes - Private Contractors Payment,2528.00,0.00,COMMERCIAL SUPPLIER 
 05-04-2023,Adults,Highfield Care Homes Ltd t/a Romford Grange Care Home,Nursing Homes - Private Contractors Payment,2528.00,0.00,COMMERCIAL SUPPLIER 
 05-04-2023,Adults,Highfield Care Homes Ltd t/a Romford Grange Care Home,Nursing Homes - Private Contractors Payment,2528.00,0.00,COMMERCIAL SUPPLIER 
 05-04-2023,Adults,Highfield Care Homes Ltd t/a Romford Grange Care Home,Nursing Homes - Private Contractors Payment,2528.00,0.00,COMMERCIAL SUPPLIER 
 05-04-2023,Adults,Havering Care Homes Ltd t/a Upminster Nursing Home,Nursing Homes - Private Contractors Payment,2528.00,0.00,COMMERCIAL SUPPLIER 
 05-04-2023,Adults,Havering Care Homes Ltd t/a Upminster Nursing Home,Nursing Homes - Private Contractors Payment,2528.00,0.00,COMMERCIAL SUPPLIER 
 05-04-2023,Adults,Havering Care Homes Ltd t/a Upminster Nursing Home,Nursing Homes - Private Contractors Payment,2528.00,0.00,COMMERCIAL SUPPLIER 
 05-04-2023,Adults,HC-One Oval Ltd - The Hornchurch Nursing Centre,Nursing Homes - Private Contractors Payment,2528.00,0.00,COMMERCIAL SUPPLIER 
 05-04-2023,Adults,HC-One Oval Ltd - The Hornchurch Nursing Centre,Nursing Homes - Private Contractors Payment,2528.00,0.00,COMMERCIAL SUPPLIER 
 05-04-2023,Adults,HC-One Oval Ltd - The Hornchurch Nursing Centre,Nursing Homes - Private Contractors Payment,2528.00,0.00,COMMERCIAL SUPPLIER 
 05-04-2023,Adults,Barleycroft Care Home Ltd,Nursing Homes - Private Contractors Payment,2528.00,0.00,COMMERCIAL SUPPLIER 
 05-04-2023,Adults,Barleycroft Care Home Ltd,Nursing Homes - Private Contractors Payment,2528.00,0.00,COMMERCIAL SUPPLIER 
 05-04-2023,Adults,Ranc Care Homes Ltd - Romford Care Centre,Nursing Homes - Private Contractors Payment,2528.00,0.00,COMMERCIAL SUPPLIER 
 05-04-2023,Adults,Highfield Care Homes Ltd t/a Romford Grange Care Home,Residential Placements - Private Contractors Payment,2530.96,0.00,COMMERCIAL SUPPLIER 
 05-04-2023,Adults,Sandstone Care Liverpool Ltd,Residential Placements - Private Contractors Payment,2540.28,0.00,COMMERCIAL SUPPLIER 
 05-04-2023,Adults,St Giles Homes Ltd T/A Forest Home,Residential Placements - Private Contractors Payment,2544.84,0.00,COMMERCIAL SUPPLIER 
 05-04-2023,Adults,HC-One Oval Ltd - The Hornchurch Nursing Centre,Nursing Homes - Private Contractors Payment,2560.00,0.00,COMMERCIAL SUPPLIER 
 05-04-2023,Adults,HC-One Oval Ltd - The Hornchurch Nursing Centre,Nursing Homes - Private Contractors Payment,2560.00,0.00,COMMERCIAL SUPPLIER 
 05-04-2023,Adults,HC-One Oval Ltd - The Hornchurch Nursing Centre,Nursing Homes - Private Contractors Payment,2560.00,0.00,COMMERCIAL SUPPLIER 
 05-04-2023,Adults,HC-One Oval Ltd - The Hornchurch Nursing Centre,Nursing Homes - Private Contractors Payment,2560.00,0.00,COMMERCIAL SUPPLIER 
 05-04-2023,Adults,HC-One Oval Ltd - The Hornchurch Nursing Centre,Nursing Homes - Private Contractors Payment,2560.00,0.00,COMMERCIAL SUPPLIER 
 05-04-2023,Adults,HC-One Oval Ltd - The Hornchurch Nursing Centre,Nursing Homes - Private Contractors Payment,2560.00,0.00,COMMERCIAL SUPPLIER 
 05-04-2023,Adults,HC-One Oval Ltd - The Hornchurch Nursing Centre,Nursing Homes - Private Contractors Payment,2560.00,0.00,COMMERCIAL SUPPLIER 
 05-04-2023,Adults,HC-One Oval Ltd - The Hornchurch Nursing Centre,Nursing Homes - Private Contractors Payment,2560.00,0.00,COMMERCIAL SUPPLIER 
 05-04-2023,Adults,HC-One Oval Ltd - The Hornchurch Nursing Centre,Nursing Homes - Private Contractors Payment,2560.00,0.00,COMMERCIAL SUPPLIER 
 05-04-2023,Adults,HC-One Oval Ltd - The Hornchurch Nursing Centre,Nursing Homes - Private Contractors Payment,2560.00,0.00,COMMERCIAL SUPPLIER 
 05-04-2023,Adults,HC-One Oval Ltd - The Hornchurch Nursing Centre,Nursing Homes - Private Contractors Payment,2560.00,0.00,COMMERCIAL SUPPLIER 
 05-04-2023,Adults,HC-One Oval Ltd - The Hornchurch Nursing Centre,Nursing Homes - Private Contractors Payment,2560.00,0.00,COMMERCIAL SUPPLIER 
 05-04-2023,Adults,HC-One Oval Ltd - The Hornchurch Nursing Centre,Nursing Homes - Private Contractors Payment,2560.00,0.00,COMMERCIAL SUPPLIER 
 12-04-2023,Adults,Care-Away Ltd T/A Care Support,Home Care - Private Contractors Payment,2562.56,0.00,COMMERCIAL SUPPLIER 
 05-04-2023,Adults,Mundy House,Residential Placements - Private Contractors Payment,2579.84,0.00,COMMERCIAL SUPPLIER 
 05-04-2023,Adults,Black Swan International Ltd - Belamacanda,Residential Placements - Private Contractors Payment,2596.48,0.00,COMMERCIAL SUPPLIER 
 05-04-2023,Adults,Westminster Health Care Ltd Derham House,Nursing Homes - Private Contractors Payment,2606.08,0.00,COMMERCIAL SUPPLIER 
 05-04-2023,Adults,Lukka Care Homes Ltd - Ravenscourt,Nursing Homes - Private Contractors Payment,2615.14,0.00,COMMERCIAL SUPPLIER 
 05-04-2023,Adults,Sahara Care Ltd,Residential Placements - Private Contractors Payment,2620.00,0.00,COMMERCIAL SUPPLIER 
 05-04-2023,Adults,Ebony Health Care Services Limited,Supported Other Accommodation - Private Contractors Payment,2621.80,0.00,COMMERCIAL SUPPLIER 
 05-04-2023,Adults,Alexander Court Care Centre - Bondcare,Nursing Homes - Private Contractors Payment,2627.64,0.00,COMMERCIAL SUPPLIER 
 05-04-2023,Adults,Runwood Homes - Windle Court,Residential Placements - Private Contractors Payment,2634.24,0.00,COMMERCIAL SUPPLIER 
 05-04-2023,Adults,MNS Care Plc_a,Nursing Homes - Private Contractors Payment,2636.32,0.00,COMMERCIAL SUPPLIER 
 05-04-2023,Adults,HC-One Oval Ltd - Chaseview,Nursing Homes - Private Contractors Payment,2636.32,0.00,COMMERCIAL SUPPLIER 
 05-04-2023,Adults,Acer Healthcare Operation Ltd,Nursing Homes - Private Contractors Payment,2636.32,0.00,COMMERCIAL SUPPLIER 
 05-04-2023,Adults,St Georges Supported Living Ltd,Supported Other Accommodation - Private Contractors Payment,2640.32,0.00,COMMERCIAL SUPPLIER 
 05-04-2023,Adults,HC-One Oval Ltd - Chaseview,Residential Placements - Private Contractors Payment,2643.04,0.00,COMMERCIAL SUPPLIER 
 05-04-2023,Adults,Brenalwood Care Home,Residential Placements - Private Contractors Payment,2644.72,0.00,COMMERCIAL SUPPLIER 
 05-04-2023,Adults,Black Swan International Ltd - Belamacanda,Residential Placements - Private Contractors Payment,2647.40,0.00,COMMERCIAL SUPPLIER 
 05-04-2023,Adults,HC-One Oval Ltd - The Hornchurch Nursing Centre,Nursing Homes - Private Contractors Payment,2651.43,0.00,COMMERCIAL SUPPLIER 
 05-04-2023,Adults,HC-One Oval Ltd - The Hornchurch Nursing Centre,Nursing Homes - Private Contractors Payment,2651.43,0.00,COMMERCIAL SUPPLIER 
 28-04-2023,Adults,Eastway Care Ltd_a,Daycare - Private Contractors Payment,2651.44,0.00,COMMERCIAL SUPPLIER 
 28-04-2023,Adults,Eastway Care Ltd_a,Daycare - Private Contractors Payment,2651.44,0.00,COMMERCIAL SUPPLIER 
 28-04-2023,Adults,Eastway Care Ltd_a,Daycare - Private Contractors Payment,2651.44,0.00,COMMERCIAL SUPPLIER 
 28-04-2023,Adults,Eastway Care Ltd_a,Daycare - Private Contractors Payment,2651.44,0.00,COMMERCIAL SUPPLIER 
 28-04-2023,Adults,Eastway Care Ltd_a,Daycare - Private Contractors Payment,2651.44,0.00,COMMERCIAL SUPPLIER 
 28-04-2023,Adults,Eastway Care Ltd_a,Daycare - Private Contractors Payment,2651.44,0.00,COMMERCIAL SUPPLIER 
 05-04-2023,Adults,Optimal Care Services Ltd,Supported Other Accommodation - Private Contractors Payment,2660.00,0.00,COMMERCIAL SUPPLIER 
 24-04-2023,Adults,Bluebird Care Havering,Home Care - Private Contractors Payment,2670.50,0.00,COMMERCIAL SUPPLIER 
 24-04-2023,Adults,Bluebird Care Havering,Home Care - Private Contractors Payment,2670.50,0.00,COMMERCIAL SUPPLIER 
 05-04-2023,Adults,Priory Supporting Care Ltd,Residential Placements - Private Contractors Payment,2680.71,0.00,COMMERCIAL SUPPLIER 
 05-04-2023,Adults,Priory Supporting Care Ltd,Residential Placements - Private Contractors Payment,2680.71,0.00,COMMERCIAL SUPPLIER 
 05-04-2023,Adults,Priory Supporting Care Ltd,Residential Placements - Private Contractors Payment,2680.71,0.00,COMMERCIAL SUPPLIER 
 05-04-2023,Adults,Priory Supporting Care Ltd,Residential Placements - Private Contractors Payment,2680.71,0.00,COMMERCIAL SUPPLIER 
 05-04-2023,Adults,St Georges Supported Living Ltd,Supported Other Accommodation - Private Contractors Payment,2681.24,0.00,COMMERCIAL SUPPLIER 
 05-04-2023,Adults,Acer Healthcare Operation Ltd,Nursing Homes - Private Contractors Payment,2681.40,0.00,COMMERCIAL SUPPLIER 
 05-04-2023,Adults,Flourishgate Care Services Ltd,Supported Other Accommodation - Private Contractors Payment,2688.00,0.00,COMMERCIAL SUPPLIER 
 05-04-2023,Adults,Affinia Healthcare Ltd_a,Supported Other Accommodation - Private Contractors Payment,2689.92,0.00,COMMERCIAL SUPPLIER 
 05-04-2023,Adults,Apace Support Services,Supported Other Accommodation - Private Contractors Payment,2700.00,0.00,COMMERCIAL SUPPLIER 
 05-04-2023,Adults,Fountains Care Centre - Bondcare,Nursing Homes - Private Contractors Payment,2712.00,0.00,COMMERCIAL SUPPLIER 
 05-04-2023,Adults,Fountains Care Centre - Bondcare,Nursing Homes - Private Contractors Payment,2712.00,0.00,COMMERCIAL SUPPLIER 
 05-04-2023,Adults,Fountains Care Centre - Bondcare,Nursing Homes - Private Contractors Payment,2712.00,0.00,COMMERCIAL SUPPLIER 
 05-04-2023,Adults,Fountains Care Centre - Bondcare,Nursing Homes - Private Contractors Payment,2712.00,0.00,COMMERCIAL SUPPLIER 
 05-04-2023,Adults,Fountains Care Centre - Bondcare,Nursing Homes - Private Contractors Payment,2712.00,0.00,COMMERCIAL SUPPLIER 
 05-04-2023,Adults,Fountains Care Centre - Bondcare,Nursing Homes - Private Contractors Payment,2712.00,0.00,COMMERCIAL SUPPLIER 
 05-04-2023,Adults,Fountains Care Centre - Bondcare,Nursing Homes - Private Contractors Payment,2712.00,0.00,COMMERCIAL SUPPLIER 
 05-04-2023,Adults,Fountains Care Centre - Bondcare,Nursing Homes - Private Contractors Payment,2712.00,0.00,COMMERCIAL SUPPLIER 
 05-04-2023,Adults,Fountains Care Centre - Bondcare,Nursing Homes - Private Contractors Payment,2712.00,0.00,COMMERCIAL SUPPLIER 
 05-04-2023,Adults,Fountains Care Centre - Bondcare,Nursing Homes - Private Contractors Payment,2712.00,0.00,COMMERCIAL SUPPLIER 
 05-04-2023,Adults,Fountains Care Centre - Bondcare,Nursing Homes - Private Contractors Payment,2712.00,0.00,COMMERCIAL SUPPLIER 
 05-04-2023,Adults,Fountains Care Centre - Bondcare,Nursing Homes - Private Contractors Payment,2712.00,0.00,COMMERCIAL SUPPLIER 
 05-04-2023,Adults,Fountains Care Centre - Bondcare,Nursing Homes - Private Contractors Payment,2712.00,0.00,COMMERCIAL SUPPLIER 
 05-04-2023,Adults,Fountains Care Centre - Bondcare,Nursing Homes - Private Contractors Payment,2712.00,0.00,COMMERCIAL SUPPLIER 
 05-04-2023,Adults,Fountains Care Centre - Bondcare,Nursing Homes - Private Contractors Payment,2712.00,0.00,COMMERCIAL SUPPLIER 
 05-04-2023,Adults,Fountains Care Centre - Bondcare,Nursing Homes - Private Contractors Payment,2712.00,0.00,COMMERCIAL SUPPLIER 
 05-04-2023,Adults,Fountains Care Centre - Bondcare,Nursing Homes - Private Contractors Payment,2712.00,0.00,COMMERCIAL SUPPLIER 
 05-04-2023,Adults,Fountains Care Centre - Bondcare,Nursing Homes - Private Contractors Payment,2712.00,0.00,COMMERCIAL SUPPLIER 
 05-04-2023,Adults,Havering Care Homes Ltd t/a Abbscross Nursing Home,Nursing Homes - Private Contractors Payment,2712.00,0.00,COMMERCIAL SUPPLIER 
 05-04-2023,Adults,Havering Care Homes Ltd t/a Abbscross Nursing Home,Nursing Homes - Private Contractors Payment,2712.00,0.00,COMMERCIAL SUPPLIER 
 05-04-2023,Adults,Havering Care Homes Ltd t/a Abbscross Nursing Home,Nursing Homes - Private Contractors Payment,2712.00,0.00,COMMERCIAL SUPPLIER 
 05-04-2023,Adults,One Tree Estates Ltd t/a Ashbrook Nursing Home,Nursing Homes - Private Contractors Payment,2712.00,0.00,COMMERCIAL SUPPLIER 
 05-04-2023,Adults,One Tree Estates Ltd t/a Ashbrook Nursing Home,Nursing Homes - Private Contractors Payment,2712.00,0.00,COMMERCIAL SUPPLIER 
 05-04-2023,Adults,One Tree Estates Ltd t/a Ashbrook Nursing Home,Nursing Homes - Private Contractors Payment,2712.00,0.00,COMMERCIAL SUPPLIER 
 05-04-2023,Adults,One Tree Estates Ltd t/a Ashbrook Nursing Home,Nursing Homes - Private Contractors Payment,2712.00,0.00,COMMERCIAL SUPPLIER 
 05-04-2023,Adults,One Tree Estates Ltd t/a Ashbrook Nursing Home,Nursing Homes - Private Contractors Payment,2712.00,0.00,COMMERCIAL SUPPLIER 
 05-04-2023,Adults,One Tree Estates Ltd t/a Ashbrook Nursing Home,Nursing Homes - Private Contractors Payment,2712.00,0.00,COMMERCIAL SUPPLIER 
 05-04-2023,Adults,One Tree Estates Ltd t/a Ashbrook Nursing Home,Nursing Homes - Private Contractors Payment,2712.00,0.00,COMMERCIAL SUPPLIER 
 05-04-2023,Adults,Highfield Care Homes Ltd t/a Romford Grange Care Home,Nursing Homes - Private Contractors Payment,2712.00,0.00,COMMERCIAL SUPPLIER 
 05-04-2023,Adults,Highfield Care Homes Ltd t/a Romford Grange Care Home,Nursing Homes - Private Contractors Payment,2712.00,0.00,COMMERCIAL SUPPLIER 
 05-04-2023,Adults,Highfield Care Homes Ltd t/a Romford Grange Care Home,Nursing Homes - Private Contractors Payment,2712.00,0.00,COMMERCIAL SUPPLIER 
 05-04-2023,Adults,Highfield Care Homes Ltd t/a Romford Grange Care Home,Nursing Homes - Private Contractors Payment,2712.00,0.00,COMMERCIAL SUPPLIER 
 05-04-2023,Adults,Highfield Care Homes Ltd t/a Romford Grange Care Home,Nursing Homes - Private Contractors Payment,2712.00,0.00,COMMERCIAL SUPPLIER 
 05-04-2023,Adults,MNS Care Plc_a,Nursing Homes - Private Contractors Payment,2712.00,0.00,COMMERCIAL SUPPLIER 
 05-04-2023,Adults,Bupa Care Homes (HVC) - Havering Court,Nursing Homes - Private Contractors Payment,2712.00,0.00,COMMERCIAL SUPPLIER 
 05-04-2023,Adults,Bupa Care Homes - Hutton Village,Nursing Homes - Private Contractors Payment,2712.00,0.00,COMMERCIAL SUPPLIER 
 05-04-2023,Adults,Havering Care Homes Ltd t/a Upminster Nursing Home,Nursing Homes - Private Contractors Payment,2712.00,0.00,COMMERCIAL SUPPLIER 
 05-04-2023,Adults,Havering Care Homes Ltd t/a Upminster Nursing Home,Nursing Homes - Private Contractors Payment,2712.00,0.00,COMMERCIAL SUPPLIER 
 05-04-2023,Adults,Havering Care Homes Ltd t/a Upminster Nursing Home,Nursing Homes - Private Contractors Payment,2712.00,0.00,COMMERCIAL SUPPLIER 
 05-04-2023,Adults,HC-One Oval Ltd - The Hornchurch Nursing Centre,Nursing Homes - Private Contractors Payment,2712.00,0.00,COMMERCIAL SUPPLIER 
 05-04-2023,Adults,HC-One Oval Ltd - The Hornchurch Nursing Centre,Nursing Homes - Private Contractors Payment,2712.00,0.00,COMMERCIAL SUPPLIER 
 05-04-2023,Adults,HC-One Oval Ltd - The Hornchurch Nursing Centre,Nursing Homes - Private Contractors Payment,2712.00,0.00,COMMERCIAL SUPPLIER 
 05-04-2023,Adults,HC-One Oval Ltd - The Hornchurch Nursing Centre,Nursing Homes - Private Contractors Payment,2712.00,0.00,COMMERCIAL SUPPLIER 
 05-04-2023,Adults,HC-One Oval Ltd - The Hornchurch Nursing Centre,Nursing Homes - Private Contractors Payment,2712.00,0.00,COMMERCIAL SUPPLIER 
 05-04-2023,Adults,HC-One Oval Ltd - The Hornchurch Nursing Centre,Nursing Homes - Private Contractors Payment,2712.00,0.00,COMMERCIAL SUPPLIER 
 05-04-2023,Adults,HC-One Oval Ltd - The Hornchurch Nursing Centre,Nursing Homes - Private Contractors Payment,2712.00,0.00,COMMERCIAL SUPPLIER 
 05-04-2023,Adults,HC-One Oval Ltd - The Hornchurch Nursing Centre,Nursing Homes - Private Contractors Payment,2712.00,0.00,COMMERCIAL SUPPLIER 
 05-04-2023,Adults,HC-One Oval Ltd - The Hornchurch Nursing Centre,Nursing Homes - Private Contractors Payment,2712.00,0.00,COMMERCIAL SUPPLIER 
 05-04-2023,Adults,HC-One Oval Ltd - The Hornchurch Nursing Centre,Nursing Homes - Private Contractors Payment,2712.00,0.00,COMMERCIAL SUPPLIER 
 05-04-2023,Adults,HC-One Oval Ltd - The Hornchurch Nursing Centre,Nursing Homes - Private Contractors Payment,2712.00,0.00,COMMERCIAL SUPPLIER 
 05-04-2023,Adults,HC-One Oval Ltd - The Hornchurch Nursing Centre,Nursing Homes - Private Contractors Payment,2712.00,0.00,COMMERCIAL SUPPLIER 
 05-04-2023,Adults,Bondcare (London) Ltd ,Nursing Homes - Private Contractors Payment,2712.00,0.00,COMMERCIAL SUPPLIER 
 05-04-2023,Adults,Bondcare (London) Ltd ,Nursing Homes - Private Contractors Payment,2712.00,0.00,COMMERCIAL SUPPLIER 
 05-04-2023,Adults,Alexander Court Care Centre - Bondcare,Nursing Homes - Private Contractors Payment,2712.00,0.00,COMMERCIAL SUPPLIER 
 05-04-2023,Adults,Alexander Court Care Centre - Bondcare,Nursing Homes - Private Contractors Payment,2712.00,0.00,COMMERCIAL SUPPLIER 
 05-04-2023,Adults,Alexander Court Care Centre - Bondcare,Nursing Homes - Private Contractors Payment,2712.00,0.00,COMMERCIAL SUPPLIER 
 05-04-2023,Adults,DMP Healthcare (Heatherbrook) Ltd,Nursing Homes - Private Contractors Payment,2712.00,0.00,NON COMMERCIAL SUPPLIER 
 05-04-2023,Adults,DMP Healthcare (Heatherbrook) Ltd,Nursing Homes - Private Contractors Payment,2712.00,0.00,NON COMMERCIAL SUPPLIER 
 05-04-2023,Adults,DMP Healthcare (Heatherbrook) Ltd,Nursing Homes - Private Contractors Payment,2712.00,0.00,NON COMMERCIAL SUPPLIER 
 05-04-2023,Adults,DMP Healthcare (Heatherbrook) Ltd,Nursing Homes - Private Contractors Payment,2712.00,0.00,NON COMMERCIAL SUPPLIER 
 05-04-2023,Adults,DMP Healthcare (Heatherbrook) Ltd,Nursing Homes - Private Contractors Payment,2712.00,0.00,NON COMMERCIAL SUPPLIER 
 05-04-2023,Adults,DMP Healthcare (Heatherbrook) Ltd,Nursing Homes - Private Contractors Payment,2712.00,0.00,NON COMMERCIAL SUPPLIER 
 05-04-2023,Adults,DMP Healthcare (Heatherbrook) Ltd,Nursing Homes - Private Contractors Payment,2712.00,0.00,NON COMMERCIAL SUPPLIER 
 05-04-2023,Adults,DMP Healthcare (Heatherbrook) Ltd,Nursing Homes - Private Contractors Payment,2712.00,0.00,NON COMMERCIAL SUPPLIER 
 05-04-2023,Adults,DMP Healthcare (Heatherbrook) Ltd,Nursing Homes - Private Contractors Payment,2712.00,0.00,NON COMMERCIAL SUPPLIER 
 05-04-2023,Adults,Moreland House_a,Nursing Homes - Private Contractors Payment,2712.00,0.00,COMMERCIAL SUPPLIER 
 05-04-2023,Adults,Moreland House_a,Nursing Homes - Private Contractors Payment,2712.00,0.00,COMMERCIAL SUPPLIER 
 05-04-2023,Adults,Moreland House_a,Nursing Homes - Private Contractors Payment,2712.00,0.00,COMMERCIAL SUPPLIER 
 05-04-2023,Adults,Moreland House_a,Nursing Homes - Private Contractors Payment,2712.00,0.00,COMMERCIAL SUPPLIER 
 05-04-2023,Adults,Moreland House_a,Nursing Homes - Private Contractors Payment,2712.00,0.00,COMMERCIAL SUPPLIER 
 05-04-2023,Adults,Moreland House_a,Nursing Homes - Private Contractors Payment,2712.00,0.00,COMMERCIAL SUPPLIER 
 05-04-2023,Adults,Moreland House_a,Nursing Homes - Private Contractors Payment,2712.00,0.00,COMMERCIAL SUPPLIER 
 05-04-2023,Adults,GCH - Hillside Nursing Home,Nursing Homes - Private Contractors Payment,2712.00,0.00,COMMERCIAL SUPPLIER 
 05-04-2023,Adults,GCH - Hillside Nursing Home,Nursing Homes - Private Contractors Payment,2712.00,0.00,COMMERCIAL SUPPLIER 
 05-04-2023,Adults,GCH - Hillside Nursing Home,Nursing Homes - Private Contractors Payment,2712.00,0.00,COMMERCIAL SUPPLIER 
 05-04-2023,Adults,DMP Healthcare (Cherry Orchard) Ltd,Nursing Homes - Private Contractors Payment,2712.00,0.00,COMMERCIAL SUPPLIER 
 05-04-2023,Adults,Castle Care UK Ltd,Nursing Homes - Private Contractors Payment,2712.00,0.00,COMMERCIAL SUPPLIER 
 05-04-2023,Adults,Barleycroft Care Home Ltd,Nursing Homes - Private Contractors Payment,2712.00,0.00,COMMERCIAL SUPPLIER 
 05-04-2023,Adults,Barleycroft Care Home Ltd,Nursing Homes - Private Contractors Payment,2712.00,0.00,COMMERCIAL SUPPLIER 
 05-04-2023,Adults,Barleycroft Care Home Ltd,Nursing Homes - Private Contractors Payment,2712.00,0.00,COMMERCIAL SUPPLIER 
 05-04-2023,Adults,Barleycroft Care Home Ltd,Nursing Homes - Private Contractors Payment,2712.00,0.00,COMMERCIAL SUPPLIER 
 05-04-2023,Adults,Barleycroft Care Home Ltd,Nursing Homes - Private Contractors Payment,2712.00,0.00,COMMERCIAL SUPPLIER 
 05-04-2023,Adults,Barleycroft Care Home Ltd,Nursing Homes - Private Contractors Payment,2712.00,0.00,COMMERCIAL SUPPLIER 
 05-04-2023,Adults,Barleycroft Care Home Ltd,Nursing Homes - Private Contractors Payment,2712.00,0.00,COMMERCIAL SUPPLIER 
 05-04-2023,Adults,Barleycroft Care Home Ltd,Nursing Homes - Private Contractors Payment,2712.00,0.00,COMMERCIAL SUPPLIER 
 05-04-2023,Adults,Barleycroft Care Home Ltd,Nursing Homes - Private Contractors Payment,2712.00,0.00,COMMERCIAL SUPPLIER 
 05-04-2023,Adults,Barleycroft Care Home Ltd,Nursing Homes - Private Contractors Payment,2712.00,0.00,COMMERCIAL SUPPLIER 
 05-04-2023,Adults,Barleycroft Care Home Ltd,Nursing Homes - Private Contractors Payment,2712.00,0.00,COMMERCIAL SUPPLIER 
 05-04-2023,Adults,Ranc Care Homes Ltd - Romford Care Centre,Nursing Homes - Private Contractors Payment,2712.00,0.00,COMMERCIAL SUPPLIER 
 05-04-2023,Adults,Ranc Care Homes Ltd - Romford Care Centre,Residential Placements - Private Contractors Payment,2712.00,0.00,COMMERCIAL SUPPLIER 
 05-04-2023,Adults,Ranc Care Homes Ltd - Romford Care Centre,Nursing Homes - Private Contractors Payment,2712.00,0.00,COMMERCIAL SUPPLIER 
 05-04-2023,Adults,Willows Care Home - Churchgate Healthcare (Willows) Ltd,Nursing Homes - Private Contractors Payment,2712.00,0.00,COMMERCIAL SUPPLIER 
 05-04-2023,Adults,Lancam Care Services Ltd,Nursing Homes - Private Contractors Payment,2712.00,0.00,COMMERCIAL SUPPLIER 
 05-04-2023,Adults,Diagrama Healthcare Servcies Ltd ,Nursing Homes - Private Contractors Payment,2712.00,0.00,COMMERCIAL SUPPLIER 
 05-04-2023,Adults,DMP Healthcare (Cherry Orchard) Ltd,Nursing Homes - Private Contractors Payment,2715.84,0.00,COMMERCIAL SUPPLIER 
 05-04-2023,Adults,Footsteps Support Ltd_a,Supported Other Accommodation - Private Contractors Payment,2719.52,0.00,COMMERCIAL SUPPLIER 
 05-04-2023,Adults,Affinia Healthcare Ltd_a,Supported Other Accommodation - Private Contractors Payment,2722.16,0.00,COMMERCIAL SUPPLIER 
 05-04-2023,Adults,DMP Healthcare (Heatherbrook) Ltd,Nursing Homes - Private Contractors Payment,2722.48,0.00,NON COMMERCIAL SUPPLIER 
 05-04-2023,Adults,Runwood Homes Plc - Woodbury Court,Residential Placements - Private Contractors Payment,2727.20,0.00,COMMERCIAL SUPPLIER 
 05-04-2023,Adults,Ranc Care Homes Ltd - Romford Care Centre,Nursing Homes - Private Contractors Payment,2727.32,0.00,COMMERCIAL SUPPLIER 
 05-04-2023,Adults,Lodge Lane Care Home Limited,Residential Placements - Private Contractors Payment,2755.18,0.00,COMMERCIAL SUPPLIER 
 05-04-2023,Adults,One Tree Estates Ltd t/a Ashbrook Nursing Home,Nursing Homes - Private Contractors Payment,2760.00,0.00,COMMERCIAL SUPPLIER 
 11-04-2023,Adults,All Therapy Solutions Ltd,Occupational Health,2760.00,0.00,COMMERCIAL SUPPLIER 
 20-04-2023,Adults,Lodge Group Care UK Ltd,Home Care - Private Contractors Payment,2760.06,0.00,COMMERCIAL SUPPLIER 
 20-04-2023,Adults,Carers Centre SA Ltd ,Payments To Voluntary Sector,2775.17,0.00,COMMERCIAL SUPPLIER 
 20-04-2023,Adults,Carers Centre SA Ltd ,Payments To Voluntary Sector,2775.17,0.00,COMMERCIAL SUPPLIER 
 20-04-2023,Adults,Carers Centre SA Ltd ,Payments To Voluntary Sector,2775.17,0.00,COMMERCIAL SUPPLIER 
 20-04-2023,Adults,Carers Centre SA Ltd ,Payments To Voluntary Sector,2775.17,0.00,COMMERCIAL SUPPLIER 
 20-04-2023,Adults,Carers Centre SA Ltd ,Payments To Voluntary Sector,2775.17,0.00,COMMERCIAL SUPPLIER 
 05-04-2023,Adults,Fountains Care Centre - Bondcare,Residential Placements - Private Contractors Payment,2780.00,0.00,COMMERCIAL SUPPLIER 
 05-04-2023,Adults,Fountains Care Centre - Bondcare,Residential Placements - Private Contractors Payment,2780.00,0.00,COMMERCIAL SUPPLIER 
 05-04-2023,Adults,Highfield Care Homes Ltd t/a Romford Grange Care Home,Residential Placements - Private Contractors Payment,2780.00,0.00,COMMERCIAL SUPPLIER 
 05-04-2023,Adults,Dudbrook Hall Residential Home,Residential Placements - Private Contractors Payment,2780.00,0.00,COMMERCIAL SUPPLIER 
 05-04-2023,Adults,Dudbrook Hall Residential Home,Residential Placements - Private Contractors Payment,2780.00,0.00,COMMERCIAL SUPPLIER 
 05-04-2023,Adults,Havering Care Homes Ltd t/a Upminster Nursing Home,Residential Placements - Private Contractors Payment,2780.00,0.00,COMMERCIAL SUPPLIER 
 05-04-2023,Adults,Mundy House,Residential Placements - Private Contractors Payment,2780.00,0.00,COMMERCIAL SUPPLIER 
 05-04-2023,Adults,Barchester Healthcare Ltd - Park View Care Home,Residential Placements - Private Contractors Payment,2780.00,0.00,COMMERCIAL SUPPLIER 
 05-04-2023,Adults,HC-One Oval Ltd - Chaseview,Residential Placements - Private Contractors Payment,2780.00,0.00,COMMERCIAL SUPPLIER 
 05-04-2023,Adults,HC-One Oval Ltd - The Hornchurch Nursing Centre,Residential Placements - Private Contractors Payment,2780.00,0.00,COMMERCIAL SUPPLIER 
 05-04-2023,Adults,HC-One Oval Ltd - The Hornchurch Nursing Centre,Residential Placements - Private Contractors Payment,2780.00,0.00,COMMERCIAL SUPPLIER 
 05-04-2023,Adults,HC-One Oval Ltd - The Hornchurch Nursing Centre,Residential Placements - Private Contractors Payment,2780.00,0.00,COMMERCIAL SUPPLIER 
 05-04-2023,Adults,DMP Healthcare (Heatherbrook) Ltd,Residential Placements - Private Contractors Payment,2780.00,0.00,NON COMMERCIAL SUPPLIER 
 05-04-2023,Adults,DMP Healthcare (Heatherbrook) Ltd,Residential Placements - Private Contractors Payment,2780.00,0.00,NON COMMERCIAL SUPPLIER 
 05-04-2023,Adults,Masumin Ltd t/s Abbeleigh House,Residential Placements - Private Contractors Payment,2780.00,0.00,COMMERCIAL SUPPLIER 
 05-04-2023,Adults,Masumin Ltd t/s Abbeleigh House,Residential Placements - Private Contractors Payment,2780.00,0.00,COMMERCIAL SUPPLIER 
 05-04-2023,Adults,Masumin Ltd t/s Abbeleigh House,Residential Placements - Private Contractors Payment,2780.00,0.00,COMMERCIAL SUPPLIER 
 05-04-2023,Adults,Masumin Ltd t/s Abbeleigh House,Residential Placements - Private Contractors Payment,2780.00,0.00,COMMERCIAL SUPPLIER 
 05-04-2023,Adults,Masumin Ltd t/s Abbeleigh House,Residential Placements - Private Contractors Payment,2780.00,0.00,COMMERCIAL SUPPLIER 
 05-04-2023,Adults,Masumin Ltd t/s Abbeleigh House,Residential Placements - Private Contractors Payment,2780.00,0.00,COMMERCIAL SUPPLIER 
 05-04-2023,Adults,Masumin Ltd t/s Abbeleigh House,Residential Placements - Private Contractors Payment,2780.00,0.00,COMMERCIAL SUPPLIER 
 05-04-2023,Adults,Masumin Ltd t/s Abbeleigh House,Residential Placements - Private Contractors Payment,2780.00,0.00,COMMERCIAL SUPPLIER 
 05-04-2023,Adults,Masumin Ltd t/s Abbeleigh House,Residential Placements - Private Contractors Payment,2780.00,0.00,COMMERCIAL SUPPLIER 
 05-04-2023,Adults,Masumin Ltd t/s Abbeleigh House,Residential Placements - Private Contractors Payment,2780.00,0.00,COMMERCIAL SUPPLIER 
 05-04-2023,Adults,Masumin Ltd t/s Abbeleigh House,Residential Placements - Private Contractors Payment,2780.00,0.00,COMMERCIAL SUPPLIER 
 05-04-2023,Adults,Masumin Ltd t/s Abbeleigh House,Residential Placements - Private Contractors Payment,2780.00,0.00,COMMERCIAL SUPPLIER 
 05-04-2023,Adults,Masumin Ltd t/s Abbeleigh House,Residential Placements - Private Contractors Payment,2780.00,0.00,COMMERCIAL SUPPLIER 
 05-04-2023,Adults,Clover Cottage Ltd,Residential Placements - Private Contractors Payment,2780.00,0.00,COMMERCIAL SUPPLIER 
 05-04-2023,Adults,Clover Cottage Ltd,Residential Placements - Private Contractors Payment,2780.00,0.00,COMMERCIAL SUPPLIER 
 05-04-2023,Adults,Clover Cottage Ltd,Residential Placements - Private Contractors Payment,2780.00,0.00,COMMERCIAL SUPPLIER 
 05-04-2023,Adults,Ebury Court_a,Residential Placements - Private Contractors Payment,2780.00,0.00,COMMERCIAL SUPPLIER 
 05-04-2023,Adults,Ebury Court_a,Residential Placements - Private Contractors Payment,2780.00,0.00,COMMERCIAL SUPPLIER 
 05-04-2023,Adults,Ebury Court_a,Residential Placements - Private Contractors Payment,2780.00,0.00,COMMERCIAL SUPPLIER 
 05-04-2023,Adults,May Residential Homes Ltd,Residential Placements - Private Contractors Payment,2780.00,0.00,COMMERCIAL SUPPLIER 
